ORGANISATION NAME,EFEFCTIVE DATE,DIRECTORATE,SUPPLIER NAME,DATE PAID,AMOUNT (�),PURPOSE,TRANSACTION No.
ROCHDALE BOROUGH COUNCIL,09/07/2021,LEARNING DIS & MENTAL HEALTH,CREATIVE SUPPORT LTD,09/07/2021,840.48,PERSONAL BUDGETS - MANAGED,V001202782
ROCHDALE BOROUGH COUNCIL,20/07/2021,NEIGHBOURHOODS AND ENVIRONMENT,PATTERSONS BRISTOL LTD,20/07/2021,13.86,CONSUMABLES,V001678246
ROCHDALE BOROUGH COUNCIL,20/07/2021,NEIGHBOURHOODS AND ENVIRONMENT,PATTERSONS BRISTOL LTD,20/07/2021,8.95,CLEANING MATERIALS,V001678246
ROCHDALE BOROUGH COUNCIL,26/07/2021,NEIGHBOURHOODS AND ENVIRONMENT,XMA LIMITED,26/07/2021,346.42,PURCHASE OF ICT HARDWARE,V001678468
ROCHDALE BOROUGH COUNCIL,21/07/2021,EARLY HELP AND SCHOOLS,TTS GROUP LIMITED,21/07/2021,89.95,EQUIPMENT - GENERAL,V001690195
ROCHDALE BOROUGH COUNCIL,06/07/2021,EARLY HELP AND SCHOOLS,YORKSHIRE PURCHASING ORGANISATION,06/07/2021,56.97,ACTIVITIES,V001690496
ROCHDALE BOROUGH COUNCIL,28/07/2021,NEIGHBOURHOODS AND ENVIRONMENT,INTEGRATED SKILLS  LIMITED,28/07/2021,8415,SOFTWARE,V001694966
ROCHDALE BOROUGH COUNCIL,09/07/2021,CHILDREN�S SOCIAL CARE,SPECIALIST COMPUTER CENTRES PLC,09/07/2021,1062.7,IT EQUIPMENT,V001695195
ROCHDALE BOROUGH COUNCIL,07/07/2021,NEIGHBOURHOODS AND ENVIRONMENT,REACH PUBLISHING SERVICES LTD,07/07/2021,111.47,PROFESSIONAL FEES,V001699113
ROCHDALE BOROUGH COUNCIL,07/07/2021,NEIGHBOURHOODS AND ENVIRONMENT,EXCLUSEC,07/07/2021,275,SECURITY,V001700736
ROCHDALE BOROUGH COUNCIL,01/07/2021,RESOURCES,SHAW & SONS LIMITED,01/07/2021,4519.5,EQUIPMENT - GENERAL,V001700742
ROCHDALE BOROUGH COUNCIL,01/07/2021,NEIGHBOURHOODS AND ENVIRONMENT,ARCO GROUP LIMITED,01/07/2021,30.05,EQUIPMENT - GENERAL,V001700981
ROCHDALE BOROUGH COUNCIL,01/07/2021,NEIGHBOURHOODS AND ENVIRONMENT,ARCO GROUP LIMITED,01/07/2021,30.05,EQUIPMENT - GENERAL,V001700981
ROCHDALE BOROUGH COUNCIL,01/07/2021,NEIGHBOURHOODS AND ENVIRONMENT,ARCO GROUP LIMITED,01/07/2021,30.05,EQUIPMENT - GENERAL,V001700981
ROCHDALE BOROUGH COUNCIL,01/07/2021,NEIGHBOURHOODS AND ENVIRONMENT,ARCO GROUP LIMITED,01/07/2021,30.05,EQUIPMENT - GENERAL,V001700981
ROCHDALE BOROUGH COUNCIL,01/07/2021,NEIGHBOURHOODS AND ENVIRONMENT,ARCO GROUP LIMITED,01/07/2021,30.05,EQUIPMENT - GENERAL,V001700981
ROCHDALE BOROUGH COUNCIL,01/07/2021,NEIGHBOURHOODS AND ENVIRONMENT,ARCO GROUP LIMITED,01/07/2021,30.05,EQUIPMENT - GENERAL,V001700981
ROCHDALE BOROUGH COUNCIL,06/07/2021,NEIGHBOURHOODS AND ENVIRONMENT,ROCHDALE OCCUPATIONAL HEALTH SERVICE LTD,06/07/2021,800,TRAINING-QUALIFICATION,V001701264
ROCHDALE BOROUGH COUNCIL,09/07/2021,RESOURCES,BANNER GROUP LIMITED,09/07/2021,479.24,ELECTION MATERIALS,V001703595
ROCHDALE BOROUGH COUNCIL,16/07/2021,NEIGHBOURHOODS AND ENVIRONMENT,LS SYSTEMS LTD,16/07/2021,409.8,"TREES, SHRUBS, PLANTS",V001703650
ROCHDALE BOROUGH COUNCIL,09/07/2021,RESOURCES,ROCHDALE ONLINE LIMITED,09/07/2021,762.5,PRINTING & STATIONERY,V001703705
ROCHDALE BOROUGH COUNCIL,06/07/2021,EARLY HELP AND SCHOOLS,YORKSHIRE PURCHASING ORGANISATION,06/07/2021,460.8,EQUIPMENT - GENERAL,V001704819
ROCHDALE BOROUGH COUNCIL,02/07/2021,CHILDREN�S SOCIAL CARE,DR A ZAMAN DR I K BABAR AND PARTNERS,02/07/2021,73.86,MEDICAL FEES,V001705382
ROCHDALE BOROUGH COUNCIL,02/07/2021,CHILDREN�S SOCIAL CARE,DR A ZAMAN DR I K BABAR AND PARTNERS,02/07/2021,73.86,MEDICAL FEES,V001705383
ROCHDALE BOROUGH COUNCIL,20/07/2021,NEIGHBOURHOODS AND ENVIRONMENT,PATTERSONS BRISTOL LTD,20/07/2021,27.72,CONSUMABLES,V001705726
ROCHDALE BOROUGH COUNCIL,20/07/2021,NEIGHBOURHOODS AND ENVIRONMENT,PATTERSONS BRISTOL LTD,20/07/2021,27.28,CONSUMABLES,V001705726
ROCHDALE BOROUGH COUNCIL,01/07/2021,PROPERTY AND HIGHWAYS,J C MILLS & SON LIMITED,01/07/2021,60,CENTRAL HEATING,V001705811
ROCHDALE BOROUGH COUNCIL,20/07/2021,NEIGHBOURHOODS AND ENVIRONMENT,PATTERSONS BRISTOL LTD,20/07/2021,7.2,CLEANING EQUIPMENT,V001707603
ROCHDALE BOROUGH COUNCIL,20/07/2021,NEIGHBOURHOODS AND ENVIRONMENT,PATTERSONS BRISTOL LTD,20/07/2021,7.2,CLEANING EQUIPMENT,V001707603
ROCHDALE BOROUGH COUNCIL,20/07/2021,NEIGHBOURHOODS AND ENVIRONMENT,PATTERSONS BRISTOL LTD,20/07/2021,5.7,CLEANING MATERIALS,V001707603
ROCHDALE BOROUGH COUNCIL,20/07/2021,NEIGHBOURHOODS AND ENVIRONMENT,PATTERSONS BRISTOL LTD,20/07/2021,13.26,CLEANING MATERIALS,V001707603
ROCHDALE BOROUGH COUNCIL,20/07/2021,NEIGHBOURHOODS AND ENVIRONMENT,PATTERSONS BRISTOL LTD,20/07/2021,14.1,CLEANING MATERIALS,V001707603
ROCHDALE BOROUGH COUNCIL,20/07/2021,NEIGHBOURHOODS AND ENVIRONMENT,PATTERSONS BRISTOL LTD,20/07/2021,14.9,CLEANING MATERIALS,V001707603
ROCHDALE BOROUGH COUNCIL,20/07/2021,NEIGHBOURHOODS AND ENVIRONMENT,PATTERSONS BRISTOL LTD,20/07/2021,7.4,CLEANING MATERIALS,V001707603
ROCHDALE BOROUGH COUNCIL,20/07/2021,NEIGHBOURHOODS AND ENVIRONMENT,PATTERSONS BRISTOL LTD,20/07/2021,8.8,CLEANING EQUIPMENT,V001707603
ROCHDALE BOROUGH COUNCIL,20/07/2021,NEIGHBOURHOODS AND ENVIRONMENT,PATTERSONS BRISTOL LTD,20/07/2021,8.8,CLEANING EQUIPMENT,V001707603
ROCHDALE BOROUGH COUNCIL,20/07/2021,NEIGHBOURHOODS AND ENVIRONMENT,PATTERSONS BRISTOL LTD,20/07/2021,36.9,CLEANING MATERIALS,V001707603
ROCHDALE BOROUGH COUNCIL,20/07/2021,NEIGHBOURHOODS AND ENVIRONMENT,PATTERSONS BRISTOL LTD,20/07/2021,28.2,CLEANING MATERIALS,V001709612
ROCHDALE BOROUGH COUNCIL,01/07/2021,NEIGHBOURHOODS AND ENVIRONMENT,THE PROTON GROUP LIMITED,01/07/2021,247.42,CLEANING MATERIALS,V001709682
ROCHDALE BOROUGH COUNCIL,02/07/2021,CHILDREN�S SOCIAL CARE,CHANGES SUPPORT LTD,02/07/2021,3932,YOUNG PEOPLES RENTS,V001710181
ROCHDALE BOROUGH COUNCIL,02/07/2021,CHILDREN�S SOCIAL CARE,CHANGES SUPPORT LTD,02/07/2021,236.8,YOUNGE PERSONS ALLOWANCE,V001710181
ROCHDALE BOROUGH COUNCIL,02/07/2021,CHILDREN�S SOCIAL CARE,PANORAMIC ASSOCIATES LTD,02/07/2021,1425,AGENCY STAFF,V001710234
ROCHDALE BOROUGH COUNCIL,02/07/2021,CHILDREN�S SOCIAL CARE,PANORAMIC ASSOCIATES LTD,02/07/2021,950,AGENCY STAFF,V001710234
ROCHDALE BOROUGH COUNCIL,01/07/2021,RESOURCES,GRAFFIC  DETAIL,01/07/2021,1520,SOFTWARE,V001710315
ROCHDALE BOROUGH COUNCIL,22/07/2021,NEIGHBOURHOODS AND ENVIRONMENT,ALLIANCE DISPOSABLES LIMITED,22/07/2021,29.38,HEALTH AND SAFETY,V001711180
ROCHDALE BOROUGH COUNCIL,19/07/2021,NEIGHBOURHOODS AND ENVIRONMENT,PATTERSONS BRISTOL LTD,19/07/2021,124.18,CLEANING MATERIALS,V001711186
ROCHDALE BOROUGH COUNCIL,02/07/2021,CHILDREN�S SOCIAL CARE,BRANAS ISAF LTD,02/07/2021,27457.01,EBD (EMOT & BEHAV DIFF) PLACEMENTS,V001711702
ROCHDALE BOROUGH COUNCIL,09/07/2021,NEIGHBOURHOODS AND ENVIRONMENT,MIDDLETON ROUND TABLE,09/07/2021,2360,ACTIVITIES,V001711721
ROCHDALE BOROUGH COUNCIL,09/07/2021,NEIGHBOURHOODS AND ENVIRONMENT,MIDDLETON ROUND TABLE,09/07/2021,1150,ACTIVITIES,V001711722
ROCHDALE BOROUGH COUNCIL,02/07/2021,CHILDREN�S SOCIAL CARE,CHANGES SUPPORT LTD,02/07/2021,3800,YOUNG PEOPLES RENTS,V001711732
ROCHDALE BOROUGH COUNCIL,09/07/2021,NEIGHBOURHOODS AND ENVIRONMENT,MIDDLETON ROUND TABLE,09/07/2021,2650,ACTIVITIES,V001712280
ROCHDALE BOROUGH COUNCIL,16/07/2021,CHILDREN�S SOCIAL CARE,POSTURITE UK LTD,16/07/2021,242,FURNITURE - GENERAL,V001712504
ROCHDALE BOROUGH COUNCIL,09/07/2021,CHILDREN�S SOCIAL CARE,FOSTERING SOLUTIONS LTD,09/07/2021,854.94,FOSTER PARENTS BASIC ALLOWANCE,V001712719
ROCHDALE BOROUGH COUNCIL,09/07/2021,ECONOMY DIRECTORATE,CHUBB FIRE AND SECURITY LIMITED,09/07/2021,123.86,FIRE / BURGLAR ALARMS,V001714827
ROCHDALE BOROUGH COUNCIL,30/07/2021,PROPERTY AND HIGHWAYS,WINTON FLOORING LIMITED,30/07/2021,40307.1,MINOR BUILDING WORKS,V001714857
ROCHDALE BOROUGH COUNCIL,09/07/2021,PROPERTY AND HIGHWAYS,J C MILLS & SON LIMITED,09/07/2021,61.5,REPAIRS & ALTS OF BUILDINGS,V001714872
ROCHDALE BOROUGH COUNCIL,09/07/2021,ECONOMY DIRECTORATE,F S MOULT AND SON,09/07/2021,203.2,REPAIRS & ALTS OF BUILDINGS,V001714897
ROCHDALE BOROUGH COUNCIL,07/07/2021,RESOURCES,PEOPLE ASSET MANAGEMENT LTD,07/07/2021,4171.65,OCCUPATIONAL HEALTH,V001714898
ROCHDALE BOROUGH COUNCIL,20/07/2021,RESOURCES,TFG STAGE TECHNOLOGY LTD,20/07/2021,658.15,ELECTION MATERIALS,V001715045
ROCHDALE BOROUGH COUNCIL,20/07/2021,RESOURCES,TFG STAGE TECHNOLOGY LTD,20/07/2021,658.15,ELECTION MATERIALS,V001715078
ROCHDALE BOROUGH COUNCIL,06/07/2021,PROPERTY AND HIGHWAYS,ARCO GROUP LIMITED,06/07/2021,356.2,"CLOTHES, UNIFORM AND LAUNDRY",V001715117
ROCHDALE BOROUGH COUNCIL,06/07/2021,PROPERTY AND HIGHWAYS,ARCO GROUP LIMITED,06/07/2021,356.2,"CLOTHES, UNIFORM AND LAUNDRY",V001715117
ROCHDALE BOROUGH COUNCIL,06/07/2021,PROPERTY AND HIGHWAYS,ARCO GROUP LIMITED,06/07/2021,356.2,"CLOTHES, UNIFORM AND LAUNDRY",V001715117
ROCHDALE BOROUGH COUNCIL,02/07/2021,RESOURCES,WORKING ON WELLBEING,02/07/2021,4097.44,OCCUPATIONAL HEALTH,V001715678
ROCHDALE BOROUGH COUNCIL,06/07/2021,PUBLIC HEALTH,TURNING POINT,06/07/2021,480,ACTIVITIES,V001715685
ROCHDALE BOROUGH COUNCIL,22/07/2021,ADULT CARE LCO FUNCTIONS,SAICA NATUR UK LTD,22/07/2021,45,PRINTING & STATIONERY,V001715690
ROCHDALE BOROUGH COUNCIL,02/07/2021,ECONOMY DIRECTORATE,A AND D DOOR SYSTEMS LTD,02/07/2021,595,ELECTRICAL,V001716284
ROCHDALE BOROUGH COUNCIL,05/07/2021,NEIGHBOURHOODS AND ENVIRONMENT,UNITED FLAGS AND FLAGSTAFFS LTD,05/07/2021,100.5,ACTIVITIES,V001716287
ROCHDALE BOROUGH COUNCIL,22/07/2021,NEIGHBOURHOODS AND ENVIRONMENT,PATTERSONS BRISTOL LTD,22/07/2021,7.1,CLEANING EQUIPMENT,V001716326
ROCHDALE BOROUGH COUNCIL,22/07/2021,NEIGHBOURHOODS AND ENVIRONMENT,PATTERSONS BRISTOL LTD,22/07/2021,8.76,CLEANING MATERIALS,V001716326
ROCHDALE BOROUGH COUNCIL,22/07/2021,NEIGHBOURHOODS AND ENVIRONMENT,PATTERSONS BRISTOL LTD,22/07/2021,3.34,CLEANING MATERIALS,V001716326
ROCHDALE BOROUGH COUNCIL,22/07/2021,NEIGHBOURHOODS AND ENVIRONMENT,PATTERSONS BRISTOL LTD,22/07/2021,6.74,CLEANING MATERIALS,V001716326
ROCHDALE BOROUGH COUNCIL,22/07/2021,NEIGHBOURHOODS AND ENVIRONMENT,PATTERSONS BRISTOL LTD,22/07/2021,15.56,CONSUMABLES,V001716326
ROCHDALE BOROUGH COUNCIL,22/07/2021,NEIGHBOURHOODS AND ENVIRONMENT,PATTERSONS BRISTOL LTD,22/07/2021,4.92,CONSUMABLES,V001716326
ROCHDALE BOROUGH COUNCIL,22/07/2021,NEIGHBOURHOODS AND ENVIRONMENT,PATTERSONS BRISTOL LTD,22/07/2021,12.1,CLEANING EQUIPMENT,V001716326
ROCHDALE BOROUGH COUNCIL,22/07/2021,NEIGHBOURHOODS AND ENVIRONMENT,PATTERSONS BRISTOL LTD,22/07/2021,15.28,CONSUMABLES,V001716326
ROCHDALE BOROUGH COUNCIL,22/07/2021,NEIGHBOURHOODS AND ENVIRONMENT,PATTERSONS BRISTOL LTD,22/07/2021,7.28,CLEANING MATERIALS,V001716326
ROCHDALE BOROUGH COUNCIL,22/07/2021,NEIGHBOURHOODS AND ENVIRONMENT,PATTERSONS BRISTOL LTD,22/07/2021,2.73,CLEANING MATERIALS,V001716326
ROCHDALE BOROUGH COUNCIL,22/07/2021,NEIGHBOURHOODS AND ENVIRONMENT,PATTERSONS BRISTOL LTD,22/07/2021,14,CONSUMABLES,V001716326
ROCHDALE BOROUGH COUNCIL,22/07/2021,NEIGHBOURHOODS AND ENVIRONMENT,PATTERSONS BRISTOL LTD,22/07/2021,51.38,CONSUMABLES,V001716326
ROCHDALE BOROUGH COUNCIL,09/07/2021,EARLY HELP AND SCHOOLS,BANNER GROUP LIMITED,09/07/2021,7,PRINTING & STATIONERY,V001716328
ROCHDALE BOROUGH COUNCIL,06/07/2021,ECONOMY DIRECTORATE,BLOOM PROCUREMENT SERVICES LTD,06/07/2021,7325.06,CONSULTANTS FEES,V001716361
ROCHDALE BOROUGH COUNCIL,05/07/2021,PROPERTY AND HIGHWAYS,J C MILLS & SON LIMITED,05/07/2021,90,CENTRAL HEATING,V001716362
ROCHDALE BOROUGH COUNCIL,01/07/2021,RESOURCES,COACHING FOCUS,01/07/2021,250,TRAINING-NON QUALIFICATION,V001716363
ROCHDALE BOROUGH COUNCIL,28/07/2021,CHILDREN�S SOCIAL CARE,PARADIGM PROFESSIONAL CONSULTANCY LTD,28/07/2021,1401,AGENCY STAFF,V001716424
ROCHDALE BOROUGH COUNCIL,05/07/2021,ECONOMY DIRECTORATE,EAST LANCASHIRE LIGHT RAILWAY CO LTD,05/07/2021,1400,BRIDGES STRUCTURAL WORK,V001716466
ROCHDALE BOROUGH COUNCIL,19/07/2021,NEIGHBOURHOODS AND ENVIRONMENT,LANES GROUP PLC,19/07/2021,730,MAINTENANCE,V001716469
ROCHDALE BOROUGH COUNCIL,05/07/2021,EARLY HELP AND SCHOOLS,PATTERSONS BRISTOL LTD,05/07/2021,36.12,CONSUMABLES,V001716499
ROCHDALE BOROUGH COUNCIL,05/07/2021,EARLY HELP AND SCHOOLS,PATTERSONS BRISTOL LTD,05/07/2021,16.88,CONSUMABLES,V001716499
ROCHDALE BOROUGH COUNCIL,05/07/2021,EARLY HELP AND SCHOOLS,PATTERSONS BRISTOL LTD,05/07/2021,15.11,CONSUMABLES,V001716499
ROCHDALE BOROUGH COUNCIL,05/07/2021,EARLY HELP AND SCHOOLS,PATTERSONS BRISTOL LTD,05/07/2021,30,CONSUMABLES,V001716499
ROCHDALE BOROUGH COUNCIL,05/07/2021,EARLY HELP AND SCHOOLS,PATTERSONS BRISTOL LTD,05/07/2021,14.9,CLEANING MATERIALS,V001716499
ROCHDALE BOROUGH COUNCIL,05/07/2021,EARLY HELP AND SCHOOLS,PATTERSONS BRISTOL LTD,05/07/2021,14.7,CLEANING MATERIALS,V001716499
ROCHDALE BOROUGH COUNCIL,05/07/2021,EARLY HELP AND SCHOOLS,PATTERSONS BRISTOL LTD,05/07/2021,27.96,CLEANING MATERIALS,V001716499
ROCHDALE BOROUGH COUNCIL,05/07/2021,EARLY HELP AND SCHOOLS,PATTERSONS BRISTOL LTD,05/07/2021,56.07,CONSUMABLES,V001716499
ROCHDALE BOROUGH COUNCIL,20/07/2021,NEIGHBOURHOODS AND ENVIRONMENT,PATTERSONS BRISTOL LTD,20/07/2021,-15.9,CLEANING EQUIPMENT,V001716502
ROCHDALE BOROUGH COUNCIL,05/07/2021,NEIGHBOURHOODS AND ENVIRONMENT,TEACRATE RENTALS LTD,05/07/2021,121.6,REMOVAL EXPENDITURE,V001716807
ROCHDALE BOROUGH COUNCIL,05/07/2021,NEIGHBOURHOODS AND ENVIRONMENT,CHUBB FIRE AND SECURITY LIMITED,05/07/2021,221.83,ELECTRICAL,V001716831
ROCHDALE BOROUGH COUNCIL,05/07/2021,ECONOMY DIRECTORATE,CHUBB FIRE AND SECURITY LIMITED,05/07/2021,299.85,ELECTRICAL,V001716832
ROCHDALE BOROUGH COUNCIL,09/07/2021,PROPERTY AND HIGHWAYS,A AND D DOOR SYSTEMS LTD,09/07/2021,590,ELECTRICAL,V001716843
ROCHDALE BOROUGH COUNCIL,02/07/2021,ADULT CARE LCO FUNCTIONS,REDACTED - PERSONAL DATA,02/07/2021,-116.46,CLIENTS CONTRIBUTIONS COMMUNITY CARE,V001719887
ROCHDALE BOROUGH COUNCIL,02/07/2021,ADULT CARE LCO FUNCTIONS,REDACTED - PERSONAL DATA,02/07/2021,-155.28,CLIENTS CONTRIBUTIONS COMMUNITY CARE,V001719888
ROCHDALE BOROUGH COUNCIL,02/07/2021,ADULT CARE LCO FUNCTIONS,REDACTED - PERSONAL DATA,02/07/2021,-155.28,CLIENTS CONTRIBUTIONS COMMUNITY CARE,V001719889
ROCHDALE BOROUGH COUNCIL,02/07/2021,ADULT CARE LCO FUNCTIONS,REDACTED - PERSONAL DATA,02/07/2021,-347.64,CLIENTS CONTRIBUTIONS COMMUNITY CARE,V001720125
ROCHDALE BOROUGH COUNCIL,02/07/2021,ADULT CARE LCO FUNCTIONS,REDACTED - PERSONAL DATA,02/07/2021,-636.56,CLIENTS CONTRIBUTIONS COMMUNITY CARE,V001720496
ROCHDALE BOROUGH COUNCIL,08/07/2021,NEIGHBOURHOODS AND ENVIRONMENT,FORENSICS LTD,08/07/2021,902.51,TOXICOLOGY PAYMENTS,V001720984
ROCHDALE BOROUGH COUNCIL,05/07/2021,NEIGHBOURHOODS AND ENVIRONMENT,THE OYSTER PARTNERSHIP LTD,05/07/2021,1638.98,AGENCY STAFF,V001720998
ROCHDALE BOROUGH COUNCIL,05/07/2021,NEIGHBOURHOODS AND ENVIRONMENT,THE OYSTER PARTNERSHIP LTD,05/07/2021,212,ACTIVITIES,V001720999
ROCHDALE BOROUGH COUNCIL,05/07/2021,NEIGHBOURHOODS AND ENVIRONMENT,THE OYSTER PARTNERSHIP LTD,05/07/2021,60,ACTIVITIES,V001720999
ROCHDALE BOROUGH COUNCIL,05/07/2021,NEIGHBOURHOODS AND ENVIRONMENT,THE OYSTER PARTNERSHIP LTD,05/07/2021,396,ACTIVITIES,V001721000
ROCHDALE BOROUGH COUNCIL,05/07/2021,NEIGHBOURHOODS AND ENVIRONMENT,THE OYSTER PARTNERSHIP LTD,05/07/2021,154,ACTIVITIES,V001721001
ROCHDALE BOROUGH COUNCIL,05/07/2021,NEIGHBOURHOODS AND ENVIRONMENT,THE OYSTER PARTNERSHIP LTD,05/07/2021,342,ACTIVITIES,V001721002
ROCHDALE BOROUGH COUNCIL,05/07/2021,NEIGHBOURHOODS AND ENVIRONMENT,THE OYSTER PARTNERSHIP LTD,05/07/2021,80,ACTIVITIES,V001721002
ROCHDALE BOROUGH COUNCIL,05/07/2021,EARLY HELP AND SCHOOLS,BROWNS BOOK FOR STUDENTS,05/07/2021,6.65,EQUIPMENT - GENERAL,V001721008
ROCHDALE BOROUGH COUNCIL,05/07/2021,EARLY HELP AND SCHOOLS,BROWNS BOOK FOR STUDENTS,05/07/2021,4.19,EQUIPMENT - GENERAL,V001721008
ROCHDALE BOROUGH COUNCIL,05/07/2021,EARLY HELP AND SCHOOLS,BROWNS BOOK FOR STUDENTS,05/07/2021,4.89,EQUIPMENT - GENERAL,V001721008
ROCHDALE BOROUGH COUNCIL,05/07/2021,NEIGHBOURHOODS AND ENVIRONMENT,THE OYSTER PARTNERSHIP LTD,05/07/2021,1636.73,AGENCY STAFF,V001721009
ROCHDALE BOROUGH COUNCIL,05/07/2021,NEIGHBOURHOODS AND ENVIRONMENT,THE OYSTER PARTNERSHIP LTD,05/07/2021,455,ACTIVITIES,V001721010
ROCHDALE BOROUGH COUNCIL,05/07/2021,NEIGHBOURHOODS AND ENVIRONMENT,THE OYSTER PARTNERSHIP LTD,05/07/2021,140,ACTIVITIES,V001721010
ROCHDALE BOROUGH COUNCIL,05/07/2021,PROPERTY AND HIGHWAYS,FRANK KEY TOOL HIRE LTD,05/07/2021,30,PROPERTY - WORKS ELEMENT,V001721012
ROCHDALE BOROUGH COUNCIL,05/07/2021,ADULT CARE LCO FUNCTIONS,POLLOCK LIFTS,05/07/2021,985,REMOVAL EXPENDITURE,V001721014
ROCHDALE BOROUGH COUNCIL,05/07/2021,ADULT CARE LCO FUNCTIONS,BANNER GROUP LIMITED,05/07/2021,26.14,PRINTING & STATIONERY,V001721015
ROCHDALE BOROUGH COUNCIL,05/07/2021,ADULT CARE LCO FUNCTIONS,BANNER GROUP LIMITED,05/07/2021,23.99,PRINTING & STATIONERY,V001721015
ROCHDALE BOROUGH COUNCIL,05/07/2021,NEIGHBOURHOODS AND ENVIRONMENT,THE OYSTER PARTNERSHIP LTD,05/07/2021,236,ACTIVITIES,V001721018
ROCHDALE BOROUGH COUNCIL,05/07/2021,EARLY HELP AND SCHOOLS,BROWNS BOOK FOR STUDENTS,05/07/2021,4.89,EQUIPMENT - GENERAL,V001721019
ROCHDALE BOROUGH COUNCIL,05/07/2021,ADULT CARE LCO FUNCTIONS,BANNER GROUP LIMITED,05/07/2021,8.15,PRINTING & STATIONERY,V001721020
ROCHDALE BOROUGH COUNCIL,05/07/2021,ADULT CARE LCO FUNCTIONS,BANNER GROUP LIMITED,05/07/2021,2.22,PRINTING & STATIONERY,V001721020
ROCHDALE BOROUGH COUNCIL,05/07/2021,ADULT CARE LCO FUNCTIONS,BANNER GROUP LIMITED,05/07/2021,1.96,PRINTING & STATIONERY,V001721020
ROCHDALE BOROUGH COUNCIL,05/07/2021,ADULT CARE LCO FUNCTIONS,BANNER GROUP LIMITED,05/07/2021,30.93,PRINTING & STATIONERY,V001721020
ROCHDALE BOROUGH COUNCIL,05/07/2021,ADULT CARE LCO FUNCTIONS,BANNER GROUP LIMITED,05/07/2021,0.69,PRINTING & STATIONERY,V001721020
ROCHDALE BOROUGH COUNCIL,05/07/2021,ADULT CARE LCO FUNCTIONS,BANNER GROUP LIMITED,05/07/2021,25.8,PRINTING & STATIONERY,V001721020
ROCHDALE BOROUGH COUNCIL,05/07/2021,ADULT CARE LCO FUNCTIONS,BANNER GROUP LIMITED,05/07/2021,2.62,PRINTING & STATIONERY,V001721020
ROCHDALE BOROUGH COUNCIL,05/07/2021,ADULT CARE LCO FUNCTIONS,BANNER GROUP LIMITED,05/07/2021,0.77,PRINTING & STATIONERY,V001721020
ROCHDALE BOROUGH COUNCIL,12/07/2021,ECONOMY DIRECTORATE,A AND D DOOR SYSTEMS LTD,12/07/2021,96,ELECTRICAL,V001721066
ROCHDALE BOROUGH COUNCIL,05/07/2021,CHILDREN�S SOCIAL CARE,BRANAS ISAF LTD,05/07/2021,26571.3,EBD (EMOT & BEHAV DIFF) PLACEMENTS,V001721088
ROCHDALE BOROUGH COUNCIL,05/07/2021,CHILDREN�S SOCIAL CARE,LANCASHIRE SERVICES LTD,05/07/2021,1200,YOUNG PEOPLES RENTS,V001721098
ROCHDALE BOROUGH COUNCIL,05/07/2021,NEIGHBOURHOODS AND ENVIRONMENT,DATA SPACE LTD,05/07/2021,3046.45,TRANSACTIONS-EXPENDITURE,V001721099
ROCHDALE BOROUGH COUNCIL,06/07/2021,EARLY HELP AND SCHOOLS,YORKSHIRE PURCHASING ORGANISATION,06/07/2021,1.95,ARTS & CRAFTS,V001721102
ROCHDALE BOROUGH COUNCIL,06/07/2021,NEIGHBOURHOODS AND ENVIRONMENT,XMA LIMITED,06/07/2021,23.28,PROJECTS,V001721103
ROCHDALE BOROUGH COUNCIL,05/07/2021,PROPERTY AND HIGHWAYS,CONDUENT PARKING ENFORCEMENT SOL LTD,05/07/2021,53.28,IT EQUIPMENT,V001721106
ROCHDALE BOROUGH COUNCIL,09/07/2021,CHILDREN�S SOCIAL CARE,FLYING COLOURS,09/07/2021,3969,FOSTER PARENTS BASIC ALLOWANCE,V001721107
ROCHDALE BOROUGH COUNCIL,05/07/2021,ADULT CARE LCO FUNCTIONS,ROUTES HEALTHCARE NORTH LTD,05/07/2021,148.5,HOME CARE - ADULT SERVICES,V001721108
ROCHDALE BOROUGH COUNCIL,05/07/2021,CHILDREN�S SOCIAL CARE,CRESTA WORLD TRAVEL LIMITED,05/07/2021,96.6,PUBLIC TRANSPORT,V001721109
ROCHDALE BOROUGH COUNCIL,05/07/2021,ECONOMY DIRECTORATE,S SECURITY GROUP LTD,05/07/2021,6709.19,SECURITY,V001721111
ROCHDALE BOROUGH COUNCIL,05/07/2021,CHILDREN�S SOCIAL CARE,CRESTA WORLD TRAVEL LIMITED,05/07/2021,61.19,STAFF TRAVELLING EXPENSES,V001721114
ROCHDALE BOROUGH COUNCIL,05/07/2021,NEIGHBOURHOODS AND ENVIRONMENT,247 HOTEL,05/07/2021,2567.14,ACCOMMODATION,V001721117
ROCHDALE BOROUGH COUNCIL,05/07/2021,EARLY HELP AND SCHOOLS,CRITIQOM LIMITED,05/07/2021,72.94,PRINTING,V001721118
ROCHDALE BOROUGH COUNCIL,05/07/2021,NEIGHBOURHOODS AND ENVIRONMENT,WHISTL UK LTD,05/07/2021,552.01,TRANSACTIONS-EXPENDITURE,V001721119
ROCHDALE BOROUGH COUNCIL,05/07/2021,PROPERTY AND HIGHWAYS,FRANK KEY TOOL HIRE LTD,05/07/2021,50,PROPERTY - WORKS ELEMENT,V001721128
ROCHDALE BOROUGH COUNCIL,05/07/2021,PROPERTY AND HIGHWAYS,FRANK KEY TOOL HIRE LTD,05/07/2021,45,PROPERTY - WORKS ELEMENT,V001721129
ROCHDALE BOROUGH COUNCIL,05/07/2021,PROPERTY AND HIGHWAYS,FRANK KEY TOOL HIRE LTD,05/07/2021,12.5,PROPERTY - WORKS ELEMENT,V001721130
ROCHDALE BOROUGH COUNCIL,06/07/2021,CHILDREN�S SOCIAL CARE,BALTIMORE CONSULTING LTD,06/07/2021,3281.25,AGENCY STAFF,V001721145
ROCHDALE BOROUGH COUNCIL,06/07/2021,RESOURCES,JACOBS,06/07/2021,0,INPUT VAT -  ADJUSTMENTS,V001721147
ROCHDALE BOROUGH COUNCIL,06/07/2021,EARLY HELP AND SCHOOLS,REDACTED - PERSONAL DATA,06/07/2021,4753.66,OTHER LA`S - SEN PROVISION,V001721149
ROCHDALE BOROUGH COUNCIL,06/07/2021,NEIGHBOURHOODS AND ENVIRONMENT,HILTON CABINET CO LTD,06/07/2021,4650,MINOR BUILDING WORKS,V001721151
ROCHDALE BOROUGH COUNCIL,06/07/2021,EARLY HELP AND SCHOOLS,SALFORD ROYAL NHS FOUNDATION TRUST,06/07/2021,2474.1,ACTIVITIES,V001721152
ROCHDALE BOROUGH COUNCIL,05/07/2021,NEIGHBOURHOODS AND ENVIRONMENT,EC CREATIVE SERVICES LTD,05/07/2021,1950,EQUIPMENT - GENERAL,V001721197
ROCHDALE BOROUGH COUNCIL,05/07/2021,NEIGHBOURHOODS AND ENVIRONMENT,KELTIC CLOTHING,05/07/2021,999.45,"CLOTHES, UNIFORM AND LAUNDRY",V001721204
ROCHDALE BOROUGH COUNCIL,05/07/2021,NEIGHBOURHOODS AND ENVIRONMENT,SHRED STATION,05/07/2021,304.5,CONTRACTS,V001721205
ROCHDALE BOROUGH COUNCIL,05/07/2021,NEIGHBOURHOODS AND ENVIRONMENT,XEROX UK LTD,05/07/2021,36625.66,TRANSACTIONS-EXPENDITURE,V001721209
ROCHDALE BOROUGH COUNCIL,05/07/2021,NEIGHBOURHOODS AND ENVIRONMENT,XEROX UK LTD,05/07/2021,36625.66,TRANSACTIONS-EXPENDITURE,V001721209
ROCHDALE BOROUGH COUNCIL,05/07/2021,CHILDREN�S SOCIAL CARE,CLEARLANDS,05/07/2021,140,ACTIVITIES,V001721213
ROCHDALE BOROUGH COUNCIL,05/07/2021,RESOURCES,CRITIQOM LIMITED,05/07/2021,1721.17,POSTAGE,V001721215
ROCHDALE BOROUGH COUNCIL,05/07/2021,CHILDREN�S SOCIAL CARE,SHARED CARE,05/07/2021,13148.42,EBD (EMOT & BEHAV DIFF) PLACEMENTS,V001721217
ROCHDALE BOROUGH COUNCIL,05/07/2021,EARLY HELP AND SCHOOLS,REDACTED - PERSONAL DATA,05/07/2021,5148.83,OTHER LA`S - SEN PROVISION,V001721224
ROCHDALE BOROUGH COUNCIL,05/07/2021,EARLY HELP AND SCHOOLS,REDACTED - PERSONAL DATA,05/07/2021,1827.8,TRAVELLING GENERAL EXPENSES,V001721225
ROCHDALE BOROUGH COUNCIL,06/07/2021,NEIGHBOURHOODS AND ENVIRONMENT,IDL ENGINEERING SERVICES LTD,06/07/2021,184,CATERING - GENERAL,V001721226
ROCHDALE BOROUGH COUNCIL,06/07/2021,NEIGHBOURHOODS AND ENVIRONMENT,IDL ENGINEERING SERVICES LTD,06/07/2021,184,CATERING - GENERAL,V001721226
ROCHDALE BOROUGH COUNCIL,06/07/2021,EARLY HELP AND SCHOOLS,REDACTED - PERSONAL DATA,06/07/2021,4753.66,OTHER LA`S - SEN PROVISION,V001721227
ROCHDALE BOROUGH COUNCIL,06/07/2021,ECONOMY DIRECTORATE,TALBOT AND DAUGHTERS RESTORATION PROJECT,06/07/2021,3600,CONSULTANTS FEES,V001721229
ROCHDALE BOROUGH COUNCIL,06/07/2021,ECONOMY DIRECTORATE,TALBOT AND DAUGHTERS RESTORATION PROJECT,06/07/2021,618.75,CONSULTANTS FEES,V001721230
ROCHDALE BOROUGH COUNCIL,06/07/2021,NEIGHBOURHOODS AND ENVIRONMENT,THE RIVERSIDE GROUP LIMITED,06/07/2021,23750,GRANTS TO OTHER BODIES,V001721243
ROCHDALE BOROUGH COUNCIL,05/07/2021,NEIGHBOURHOODS AND ENVIRONMENT,HENDHAM HOTEL LTD,05/07/2021,2622,ACCOMMODATION,V001721244
ROCHDALE BOROUGH COUNCIL,20/07/2021,ADULT CARE LCO FUNCTIONS,POLLOCK LIFTS,20/07/2021,900,REMOVAL EXPENDITURE,V001721245
ROCHDALE BOROUGH COUNCIL,05/07/2021,NEIGHBOURHOODS AND ENVIRONMENT,G AND A TAYLOR HOTELS LTD,05/07/2021,4108.8,ACCOMMODATION,V001721246
ROCHDALE BOROUGH COUNCIL,09/07/2021,CHILDREN�S SOCIAL CARE,CFS CARE LTD,09/07/2021,296,YOUNGE PERSONS ALLOWANCE,V001721251
ROCHDALE BOROUGH COUNCIL,09/07/2021,CHILDREN�S SOCIAL CARE,CFS CARE LTD,09/07/2021,5314.29,YOUNG PEOPLES RENTS,V001721251
ROCHDALE BOROUGH COUNCIL,16/07/2021,NEIGHBOURHOODS AND ENVIRONMENT,PATTERSONS BRISTOL LTD,16/07/2021,4.38,CLEANING MATERIALS,V001721256
ROCHDALE BOROUGH COUNCIL,16/07/2021,NEIGHBOURHOODS AND ENVIRONMENT,PATTERSONS BRISTOL LTD,16/07/2021,14.56,CLEANING MATERIALS,V001721256
ROCHDALE BOROUGH COUNCIL,16/07/2021,NEIGHBOURHOODS AND ENVIRONMENT,PATTERSONS BRISTOL LTD,16/07/2021,30,CLEANING MATERIALS,V001721256
ROCHDALE BOROUGH COUNCIL,16/07/2021,NEIGHBOURHOODS AND ENVIRONMENT,PATTERSONS BRISTOL LTD,16/07/2021,37.2,CLEANING MATERIALS,V001721256
ROCHDALE BOROUGH COUNCIL,05/07/2021,EARLY HELP AND SCHOOLS,PATTERSONS BRISTOL LTD,05/07/2021,18.4,CONSUMABLES,V001721257
ROCHDALE BOROUGH COUNCIL,05/07/2021,EARLY HELP AND SCHOOLS,PATTERSONS BRISTOL LTD,05/07/2021,55.96,CONSUMABLES,V001721257
ROCHDALE BOROUGH COUNCIL,05/07/2021,EARLY HELP AND SCHOOLS,PATTERSONS BRISTOL LTD,05/07/2021,33.76,CONSUMABLES,V001721257
ROCHDALE BOROUGH COUNCIL,05/07/2021,EARLY HELP AND SCHOOLS,PATTERSONS BRISTOL LTD,05/07/2021,22.86,CONSUMABLES,V001721257
ROCHDALE BOROUGH COUNCIL,05/07/2021,EARLY HELP AND SCHOOLS,PATTERSONS BRISTOL LTD,05/07/2021,3.59,CONSUMABLES,V001721257
ROCHDALE BOROUGH COUNCIL,05/07/2021,EARLY HELP AND SCHOOLS,PATTERSONS BRISTOL LTD,05/07/2021,6.63,CLEANING MATERIALS,V001721257
ROCHDALE BOROUGH COUNCIL,05/07/2021,EARLY HELP AND SCHOOLS,PATTERSONS BRISTOL LTD,05/07/2021,3.69,CLEANING MATERIALS,V001721257
ROCHDALE BOROUGH COUNCIL,05/07/2021,EARLY HELP AND SCHOOLS,PATTERSONS BRISTOL LTD,05/07/2021,7.45,CLEANING MATERIALS,V001721257
ROCHDALE BOROUGH COUNCIL,06/07/2021,ECONOMY DIRECTORATE,BROADWAY MALYAN LTD,06/07/2021,14991.75,CONSULTANTS FEES,V001721289
ROCHDALE BOROUGH COUNCIL,06/07/2021,NEIGHBOURHOODS AND ENVIRONMENT,ASSOCIATION  PUBLIC SERVICE EXCELLENCE,06/07/2021,259,EQUIPMENT - GENERAL,V001721292
ROCHDALE BOROUGH COUNCIL,06/07/2021,ECONOMY DIRECTORATE,IRWELL STREET METALS,06/07/2021,179.99,REFUSE DISPOSAL,V001721294
ROCHDALE BOROUGH COUNCIL,06/07/2021,NEIGHBOURHOODS AND ENVIRONMENT,ROAD SAFETY SERVICES LIMITED,06/07/2021,1400,CONTRACTS,V001721295
ROCHDALE BOROUGH COUNCIL,06/07/2021,NEIGHBOURHOODS AND ENVIRONMENT,ROAD SAFETY SERVICES LIMITED,06/07/2021,1400,CONTRACTS,V001721295
ROCHDALE BOROUGH COUNCIL,06/07/2021,ECONOMY DIRECTORATE,IRWELL STREET METALS,06/07/2021,116.16,REFUSE DISPOSAL,V001721297
ROCHDALE BOROUGH COUNCIL,06/07/2021,PROPERTY AND HIGHWAYS,WATERMAN INFASTRUCTURE AND ENVIRONMENT LTD,06/07/2021,5229,ENGINEERS FEES,V001721299
ROCHDALE BOROUGH COUNCIL,06/07/2021,PROPERTY AND HIGHWAYS,WATERMAN INFASTRUCTURE AND ENVIRONMENT LTD,06/07/2021,5009.8,ROADWORKS,V001721300
ROCHDALE BOROUGH COUNCIL,06/07/2021,RESOURCES,VICTIM SUPPORT,06/07/2021,0,INPUT VAT -  ADJUSTMENTS,V001721312
ROCHDALE BOROUGH COUNCIL,06/07/2021,NEIGHBOURHOODS AND ENVIRONMENT,STHREE PARTNERSHIP LLP,06/07/2021,750,CAPITAL - STAFFING AGENCY PAYMENTS,V001721315
ROCHDALE BOROUGH COUNCIL,06/07/2021,PROPERTY AND HIGHWAYS,VINK UK LIMITED,06/07/2021,289.89,PROPERTY - WORKS ELEMENT,V001721317
ROCHDALE BOROUGH COUNCIL,09/07/2021,CHILDREN�S SOCIAL CARE,PATHWAYS GROUP LTD,09/07/2021,236.8,YOUNGE PERSONS ALLOWANCE,V001721318
ROCHDALE BOROUGH COUNCIL,06/07/2021,NEIGHBOURHOODS AND ENVIRONMENT,FORENSICS LTD,06/07/2021,491.63,TOXICOLOGY PAYMENTS,V001721319
ROCHDALE BOROUGH COUNCIL,06/07/2021,PROPERTY AND HIGHWAYS,HOWDENS JOINERY CO LIMITED,06/07/2021,5.58,PROPERTY - WORKS ELEMENT,V001721320
ROCHDALE BOROUGH COUNCIL,06/07/2021,PROPERTY AND HIGHWAYS,FRANK KEY TOOL HIRE LTD,06/07/2021,1,PROPERTY - WORKS ELEMENT,V001721321
ROCHDALE BOROUGH COUNCIL,06/07/2021,NEIGHBOURHOODS AND ENVIRONMENT,INITIAL WASHROOM HYGIENE,06/07/2021,70.13,EQUIPMENT - GENERAL,V001721322
ROCHDALE BOROUGH COUNCIL,06/07/2021,NEIGHBOURHOODS AND ENVIRONMENT,VIVEDIA LTD,06/07/2021,410,EQUIPMENT - GENERAL,V001721323
ROCHDALE BOROUGH COUNCIL,06/07/2021,EARLY HELP AND SCHOOLS,MANTRA LINGUA LTD,06/07/2021,43,ACTIVITIES,V001721324
ROCHDALE BOROUGH COUNCIL,01/07/2021,ECONOMY DIRECTORATE,REACH PUBLISHING SERVICES LTD,01/07/2021,101.34,EQUIPMENT - GENERAL,V001721336
ROCHDALE BOROUGH COUNCIL,01/07/2021,ECONOMY DIRECTORATE,REACH PUBLISHING SERVICES LTD,01/07/2021,123.48,EQUIPMENT - GENERAL,V001721338
ROCHDALE BOROUGH COUNCIL,16/07/2021,NEIGHBOURHOODS AND ENVIRONMENT,PRIORY ROSES,16/07/2021,515,"TREES, SHRUBS, PLANTS",V001721339
ROCHDALE BOROUGH COUNCIL,06/07/2021,ECONOMY DIRECTORATE,H H SMITH AND SONS CO LTD,06/07/2021,208462.3,MINOR BUILDING WORKS,V001721348
ROCHDALE BOROUGH COUNCIL,05/07/2021,NEIGHBOURHOODS AND ENVIRONMENT,HIGH PEAK FORENSICS LTD,05/07/2021,276.9,OTHER POST MORTEMS,V001721399
ROCHDALE BOROUGH COUNCIL,05/07/2021,NEIGHBOURHOODS AND ENVIRONMENT,HIGH PEAK FORENSICS LTD,05/07/2021,319,OTHER HISTOLOGY,V001721399
ROCHDALE BOROUGH COUNCIL,05/07/2021,CHILDREN�S SOCIAL CARE,PARADIGM PROFESSIONAL CONSULTANCY LTD,05/07/2021,1488.3,AGENCY STAFF,V001721401
ROCHDALE BOROUGH COUNCIL,06/07/2021,CHILDREN�S SOCIAL CARE,STEPPING STONES CHILDRENS HOMES,06/07/2021,22142.86,EBD (EMOT & BEHAV DIFF) PLACEMENTS,V001721404
ROCHDALE BOROUGH COUNCIL,05/07/2021,NEIGHBOURHOODS AND ENVIRONMENT,MASSEY AND HARRIS ENGINEERING LTD,05/07/2021,6625,ENVIRONMENTAL WORKS LANDSCAPE,V001721407
ROCHDALE BOROUGH COUNCIL,05/07/2021,NEIGHBOURHOODS AND ENVIRONMENT,STORM ENVIRONMENTAL LTD,05/07/2021,1399.3,EQUIPMENT - GENERAL,V001721409
ROCHDALE BOROUGH COUNCIL,06/07/2021,NEIGHBOURHOODS AND ENVIRONMENT,RALPH LIVESEY,06/07/2021,14268.13,PROVISIONS,V001721421
ROCHDALE BOROUGH COUNCIL,06/07/2021,ADULT CARE LCO FUNCTIONS,BANNER GROUP LIMITED,06/07/2021,1.32,PRINTING & STATIONERY,V001721422
ROCHDALE BOROUGH COUNCIL,06/07/2021,RESOURCES,ALLIED PUBLICITY SERVICES MANCHESTER LTD,06/07/2021,1296.06,EXTERNAL CONTRACTED PRINTING,V001721423
ROCHDALE BOROUGH COUNCIL,06/07/2021,EARLY HELP AND SCHOOLS,TEACHING PERSONNEL LTD,06/07/2021,464.88,OTHER LA`S - SEN PROVISION,V001721424
ROCHDALE BOROUGH COUNCIL,06/07/2021,EARLY HELP AND SCHOOLS,TEACHING PERSONNEL LTD,06/07/2021,360,OTHER LA`S - SEN PROVISION,V001721424
ROCHDALE BOROUGH COUNCIL,06/07/2021,EARLY HELP AND SCHOOLS,TEACHING PERSONNEL LTD,06/07/2021,296,OTHER LA`S - SEN PROVISION,V001721424
ROCHDALE BOROUGH COUNCIL,23/07/2021,NEIGHBOURHOODS AND ENVIRONMENT,TRAVIS PERKINS TRADING CO LTD,23/07/2021,43.44,EQUIPMENT - GENERAL,V001721425
ROCHDALE BOROUGH COUNCIL,01/07/2021,ECONOMY DIRECTORATE,C A PICKEN AND SON LTD,01/07/2021,14376,ENVIRONMENTAL WORKS LANDSCAPE,V001721442
ROCHDALE BOROUGH COUNCIL,06/07/2021,ADULT CARE LCO FUNCTIONS,TUNSTALL HEALTHCARE (UK) LTD,06/07/2021,20.8,PURCHASE OF FURNITURE AND EQUIPMENT,V001721469
ROCHDALE BOROUGH COUNCIL,06/07/2021,ADULT CARE LCO FUNCTIONS,TUNSTALL HEALTHCARE (UK) LTD,06/07/2021,1500,PURCHASE OF FURNITURE AND EQUIPMENT,V001721469
ROCHDALE BOROUGH COUNCIL,06/07/2021,ADULT CARE LCO FUNCTIONS,TUNSTALL HEALTHCARE (UK) LTD,06/07/2021,33,PURCHASE OF FURNITURE AND EQUIPMENT,V001721469
ROCHDALE BOROUGH COUNCIL,06/07/2021,ADULT CARE LCO FUNCTIONS,TUNSTALL HEALTHCARE (UK) LTD,06/07/2021,161.5,PURCHASE OF FURNITURE AND EQUIPMENT,V001721469
ROCHDALE BOROUGH COUNCIL,06/07/2021,NEIGHBOURHOODS AND ENVIRONMENT,ARCO GROUP LIMITED,06/07/2021,11.24,EQUIPMENT - GENERAL,V001721474
ROCHDALE BOROUGH COUNCIL,06/07/2021,NEIGHBOURHOODS AND ENVIRONMENT,ARCO GROUP LIMITED,06/07/2021,11.24,EQUIPMENT - GENERAL,V001721474
ROCHDALE BOROUGH COUNCIL,06/07/2021,NEIGHBOURHOODS AND ENVIRONMENT,ARCO GROUP LIMITED,06/07/2021,11.24,EQUIPMENT - GENERAL,V001721474
ROCHDALE BOROUGH COUNCIL,06/07/2021,ECONOMY DIRECTORATE,GILLESPIES LLP,06/07/2021,1000,CONSULTANTS FEES,V001721475
ROCHDALE BOROUGH COUNCIL,06/07/2021,CHILDREN�S SOCIAL CARE,KISS GYMS,06/07/2021,52.48,CHILDRENS SUBSISTENCE,V001721476
ROCHDALE BOROUGH COUNCIL,06/07/2021,CHILDREN�S SOCIAL CARE,INTRAQUEST COMMUNITY CIC,06/07/2021,300,ACTIVITIES,V001721483
ROCHDALE BOROUGH COUNCIL,06/07/2021,NEIGHBOURHOODS AND ENVIRONMENT,AQUACOOL LTD,06/07/2021,20,EXPENSES - GENERAL,V001721484
ROCHDALE BOROUGH COUNCIL,06/07/2021,CHILDREN�S SOCIAL CARE,PARADIGM PROFESSIONAL CONSULTANCY LTD,06/07/2021,1387.5,AGENCY STAFF,V001721485
ROCHDALE BOROUGH COUNCIL,06/07/2021,CHILDREN�S SOCIAL CARE,PARADIGM PROFESSIONAL CONSULTANCY LTD,06/07/2021,1407.75,AGENCY STAFF,V001721487
ROCHDALE BOROUGH COUNCIL,06/07/2021,CHILDREN�S SOCIAL CARE,PARADIGM PROFESSIONAL CONSULTANCY LTD,06/07/2021,1396.88,AGENCY STAFF,V001721488
ROCHDALE BOROUGH COUNCIL,06/07/2021,ADULT CARE LCO FUNCTIONS,ACTION FIRST ASSESSMENTS LTD,06/07/2021,325,FEES / COMMISSION,V001721489
ROCHDALE BOROUGH COUNCIL,06/07/2021,NEIGHBOURHOODS AND ENVIRONMENT,GROUNDWORK LANDSCAPES LIMITED,06/07/2021,50,EQUIPMENT - GENERAL,V001721491
ROCHDALE BOROUGH COUNCIL,09/07/2021,CHILDREN�S SOCIAL CARE,FUSION CARE,09/07/2021,4264.28,YOUNG PEOPLES RENTS,V001721492
ROCHDALE BOROUGH COUNCIL,06/07/2021,EARLY HELP AND SCHOOLS,PENNINE CARE IN PATIENT SERVICES PRIORY,06/07/2021,2300,OTHER EST - SEN PROVISION,V001721495
ROCHDALE BOROUGH COUNCIL,06/07/2021,NEIGHBOURHOODS AND ENVIRONMENT,REDACTED - PERSONAL DATA,06/07/2021,117,WITNESSES EXPENSES,V001721496
ROCHDALE BOROUGH COUNCIL,06/07/2021,EARLY HELP AND SCHOOLS,FORENSIC TESTING SERVICE LTD,06/07/2021,2383.6,MEDICAL FEES,V001721498
ROCHDALE BOROUGH COUNCIL,06/07/2021,CHILDREN�S SOCIAL CARE,FOX AND ASSOCIATES CONSULTING LTD,06/07/2021,2000,TRAINING,V001721499
ROCHDALE BOROUGH COUNCIL,06/07/2021,EARLY HELP AND SCHOOLS,DEBORAH BALL LTD,06/07/2021,1200,AGENCY STAFF,V001721501
ROCHDALE BOROUGH COUNCIL,06/07/2021,NEIGHBOURHOODS AND ENVIRONMENT,EXCLUSEC,06/07/2021,57.38,FIXTURES & FITTINGS,V001721502
ROCHDALE BOROUGH COUNCIL,06/07/2021,EARLY HELP AND SCHOOLS,MANTRA LINGUA LTD,06/07/2021,104.5,ACTIVITIES,V001721504
ROCHDALE BOROUGH COUNCIL,06/07/2021,NEIGHBOURHOODS AND ENVIRONMENT,UPDATA INFRASTRUCTURE UK LTD,06/07/2021,3856.66,COMMUNICATION AND COMPUTING - GENERAL,V001721506
ROCHDALE BOROUGH COUNCIL,06/07/2021,CHILDREN�S SOCIAL CARE,SHRED STATION,06/07/2021,20,DISPOSAL OF CONFIDENTIAL EQUIPMENT AND W,V001721507
ROCHDALE BOROUGH COUNCIL,06/07/2021,CHILDREN�S SOCIAL CARE,SHRED STATION,06/07/2021,20,DISPOSAL OF CONFIDENTIAL EQUIPMENT AND W,V001721508
ROCHDALE BOROUGH COUNCIL,06/07/2021,PROPERTY AND HIGHWAYS,PERFECT COLOURS LTD,06/07/2021,221.41,REPROGRAPHIC EXPENSES,V001721509
ROCHDALE BOROUGH COUNCIL,02/07/2021,RESOURCES,CIVICA UK LIMITED,02/07/2021,227.86,SOFTWARE,V001721516
ROCHDALE BOROUGH COUNCIL,05/07/2021,EARLY HELP AND SCHOOLS,ELKLAN TRAINING LTD,05/07/2021,135,TRAINING,V001721520
ROCHDALE BOROUGH COUNCIL,05/07/2021,EARLY HELP AND SCHOOLS,YORKSHIRE PURCHASING ORGANISATION,05/07/2021,55.9,EQUIPMENT - GENERAL,V001721521
ROCHDALE BOROUGH COUNCIL,01/07/2021,NEIGHBOURHOODS AND ENVIRONMENT,WHISTL UK LTD,01/07/2021,868.96,TRANSACTIONS-EXPENDITURE,V001721524
ROCHDALE BOROUGH COUNCIL,05/07/2021,NEIGHBOURHOODS AND ENVIRONMENT,ORCHARD RECYCLING SERVICE LTD,05/07/2021,1339,CONTRACTS,V001721526
ROCHDALE BOROUGH COUNCIL,09/07/2021,CHILDREN�S SOCIAL CARE,COMPASS FOSTERING NORTH LTD,09/07/2021,3530.01,FOSTER PARENTS BASIC ALLOWANCE,V001721540
ROCHDALE BOROUGH COUNCIL,06/07/2021,ADULT CARE LCO FUNCTIONS,PARAGON MEDICAL LTD,06/07/2021,1444.5,EXPENSES - GENERAL,V001721541
ROCHDALE BOROUGH COUNCIL,09/07/2021,CHILDREN�S SOCIAL CARE,COMPASS FOSTERING NORTH LTD,09/07/2021,3497.1,FOSTER PARENTS BASIC ALLOWANCE,V001721542
ROCHDALE BOROUGH COUNCIL,09/07/2021,CHILDREN�S SOCIAL CARE,COMPASS FOSTERING NORTH LTD,09/07/2021,3401.19,FOSTER PARENTS BASIC ALLOWANCE,V001721543
ROCHDALE BOROUGH COUNCIL,06/07/2021,ADULT CARE LCO FUNCTIONS,SARA MEDICS LTD,06/07/2021,173.37,EXPENSES - GENERAL,V001721545
ROCHDALE BOROUGH COUNCIL,05/07/2021,PUBLIC HEALTH,GEORGE SHAW AND  SONS TOILET HIRE,05/07/2021,230.4,EQUIPMENT - GENERAL,V001721546
ROCHDALE BOROUGH COUNCIL,05/07/2021,ECONOMY DIRECTORATE,S SECURITY GROUP LTD,05/07/2021,787.03,SECURITY,V001721548
ROCHDALE BOROUGH COUNCIL,05/07/2021,EARLY HELP AND SCHOOLS,REDACTED - PERSONAL DATA,05/07/2021,981.67,TRAVELLING GENERAL EXPENSES,V001721557
ROCHDALE BOROUGH COUNCIL,06/07/2021,EARLY HELP AND SCHOOLS,REDACTED - PERSONAL DATA,06/07/2021,5662.33,OTHER LA`S - SEN PROVISION,V001721558
ROCHDALE BOROUGH COUNCIL,06/07/2021,PUBLIC HEALTH,TURNING POINT,06/07/2021,2015,CONTRACTED SERVICES,V001721563
ROCHDALE BOROUGH COUNCIL,06/07/2021,PUBLIC HEALTH,TURNING POINT,06/07/2021,3965,CONTRACTED SERVICES,V001721564
ROCHDALE BOROUGH COUNCIL,06/07/2021,PUBLIC HEALTH,TURNING POINT,06/07/2021,2349.29,CONTRACTED SERVICES,V001721565
ROCHDALE BOROUGH COUNCIL,06/07/2021,EARLY HELP AND SCHOOLS,THE OUTDOORS COMPANY,06/07/2021,162.63,EQUIPMENT - GENERAL,V001721569
ROCHDALE BOROUGH COUNCIL,06/07/2021,NEIGHBOURHOODS AND ENVIRONMENT,PJ COMBUSTION SOLUTIONS LTD,06/07/2021,1565,SPECIFIED MAINTENANCE,V001721570
ROCHDALE BOROUGH COUNCIL,06/07/2021,PUBLIC HEALTH,COMMUNITY HEALTH PARTNERSHIPS,06/07/2021,6575.7,LICENCE,V001721575
ROCHDALE BOROUGH COUNCIL,06/07/2021,NEIGHBOURHOODS AND ENVIRONMENT,SPIN PRINT SOLUTIONS,06/07/2021,28,PROJECTS,V001721576
ROCHDALE BOROUGH COUNCIL,06/07/2021,NEIGHBOURHOODS AND ENVIRONMENT,SPIN PRINT SOLUTIONS,06/07/2021,107,PROJECTS,V001721577
ROCHDALE BOROUGH COUNCIL,06/07/2021,NEIGHBOURHOODS AND ENVIRONMENT,BANNER GROUP LIMITED,06/07/2021,82.48,PRINTING & STATIONERY,V001721579
ROCHDALE BOROUGH COUNCIL,06/07/2021,NEIGHBOURHOODS AND ENVIRONMENT,BANNER GROUP LIMITED,06/07/2021,4.32,PRINTING & STATIONERY,V001721579
ROCHDALE BOROUGH COUNCIL,06/07/2021,NEIGHBOURHOODS AND ENVIRONMENT,BANNER GROUP LIMITED,06/07/2021,16.59,PRINTING & STATIONERY,V001721579
ROCHDALE BOROUGH COUNCIL,06/07/2021,NEIGHBOURHOODS AND ENVIRONMENT,BANNER GROUP LIMITED,06/07/2021,7.06,PRINTING & STATIONERY,V001721579
ROCHDALE BOROUGH COUNCIL,06/07/2021,NEIGHBOURHOODS AND ENVIRONMENT,BANNER GROUP LIMITED,06/07/2021,6.2,PRINTING & STATIONERY,V001721579
ROCHDALE BOROUGH COUNCIL,06/07/2021,NEIGHBOURHOODS AND ENVIRONMENT,BANNER GROUP LIMITED,06/07/2021,9,PRINTING & STATIONERY,V001721579
ROCHDALE BOROUGH COUNCIL,06/07/2021,NEIGHBOURHOODS AND ENVIRONMENT,BANNER GROUP LIMITED,06/07/2021,6.32,PRINTING & STATIONERY,V001721579
ROCHDALE BOROUGH COUNCIL,06/07/2021,NEIGHBOURHOODS AND ENVIRONMENT,BANNER GROUP LIMITED,06/07/2021,15.3,PRINTING & STATIONERY,V001721579
ROCHDALE BOROUGH COUNCIL,06/07/2021,NEIGHBOURHOODS AND ENVIRONMENT,BANNER GROUP LIMITED,06/07/2021,2.16,PRINTING & STATIONERY,V001721579
ROCHDALE BOROUGH COUNCIL,06/07/2021,NEIGHBOURHOODS AND ENVIRONMENT,BANNER GROUP LIMITED,06/07/2021,18.22,PRINTING & STATIONERY,V001721579
ROCHDALE BOROUGH COUNCIL,06/07/2021,NEIGHBOURHOODS AND ENVIRONMENT,BANNER GROUP LIMITED,06/07/2021,29.37,PRINTING & STATIONERY,V001721579
ROCHDALE BOROUGH COUNCIL,06/07/2021,NEIGHBOURHOODS AND ENVIRONMENT,BANNER GROUP LIMITED,06/07/2021,70.23,PRINTING & STATIONERY,V001721579
ROCHDALE BOROUGH COUNCIL,06/07/2021,NEIGHBOURHOODS AND ENVIRONMENT,GROUNDWORK LANDSCAPES LIMITED,06/07/2021,760,MAINTENANCE,V001721580
ROCHDALE BOROUGH COUNCIL,06/07/2021,NEIGHBOURHOODS AND ENVIRONMENT,NEC SOFTWARE SOLUTIONS UK LTD,06/07/2021,6627,SUPPLIES AND SERVICES PROVISION,V001721581
ROCHDALE BOROUGH COUNCIL,06/07/2021,EARLY HELP AND SCHOOLS,THINKING IN SHADES OF GREY,06/07/2021,1278.96,OTHER LA`S - SEN PROVISION,V001721586
ROCHDALE BOROUGH COUNCIL,06/07/2021,NEIGHBOURHOODS AND ENVIRONMENT,BROXAP LIMITED,06/07/2021,490,ACTIVITIES,V001721587
ROCHDALE BOROUGH COUNCIL,06/07/2021,NEIGHBOURHOODS AND ENVIRONMENT,BROXAP LIMITED,06/07/2021,490,ACTIVITIES,V001721587
ROCHDALE BOROUGH COUNCIL,06/07/2021,NEIGHBOURHOODS AND ENVIRONMENT,BROXAP LIMITED,06/07/2021,490,ACTIVITIES,V001721588
ROCHDALE BOROUGH COUNCIL,06/07/2021,NEIGHBOURHOODS AND ENVIRONMENT,BROXAP LIMITED,06/07/2021,490,ACTIVITIES,V001721588
ROCHDALE BOROUGH COUNCIL,06/07/2021,NEIGHBOURHOODS AND ENVIRONMENT,EXCLUSEC,06/07/2021,10231.63,SECURITY,V001721589
ROCHDALE BOROUGH COUNCIL,06/07/2021,PUBLIC HEALTH,EXCLUSEC,06/07/2021,1605.8,SECURITY,V001721590
ROCHDALE BOROUGH COUNCIL,06/07/2021,NEIGHBOURHOODS AND ENVIRONMENT,GROUNDWORK GREATER MANCHESTER,06/07/2021,950,CAPITAL SALARIES,V001721595
ROCHDALE BOROUGH COUNCIL,05/07/2021,RESOURCES,CDER GROUP LTD,05/07/2021,0,INPUT VAT -  ADJUSTMENTS,V001721610
ROCHDALE BOROUGH COUNCIL,06/07/2021,CHILDREN�S SOCIAL CARE,PANORAMIC ASSOCIATES LTD,06/07/2021,1900,AGENCY STAFF,V001721611
ROCHDALE BOROUGH COUNCIL,05/07/2021,RESOURCES,CDER GROUP LTD,05/07/2021,0,INPUT VAT -  ADJUSTMENTS,V001721612
ROCHDALE BOROUGH COUNCIL,06/07/2021,NEIGHBOURHOODS AND ENVIRONMENT,NEC SOFTWARE SOLUTIONS UK LTD,06/07/2021,5442,ACTIVITIES,V001721613
ROCHDALE BOROUGH COUNCIL,05/07/2021,ECONOMY DIRECTORATE,A AND D DOOR SYSTEMS LTD,05/07/2021,89,ELECTRICAL,V001721614
ROCHDALE BOROUGH COUNCIL,05/07/2021,ECONOMY DIRECTORATE,A AND D DOOR SYSTEMS LTD,05/07/2021,89,ELECTRICAL,V001721615
ROCHDALE BOROUGH COUNCIL,06/07/2021,PROPERTY AND HIGHWAYS,WATERMAN INFASTRUCTURE AND ENVIRONMENT LTD,06/07/2021,3764.26,MINOR BUILDING WORKS,V001721616
ROCHDALE BOROUGH COUNCIL,06/07/2021,RESOURCES,ROAD SAFETY SERVICES LIMITED,06/07/2021,175.5,EQUIPMENT - GENERAL,V001721617
ROCHDALE BOROUGH COUNCIL,06/07/2021,RESOURCES,ROAD SAFETY SERVICES LIMITED,06/07/2021,175.5,EQUIPMENT - GENERAL,V001721617
ROCHDALE BOROUGH COUNCIL,06/07/2021,PROPERTY AND HIGHWAYS,CAPITA BUSINESS SERVICES LIMITED,06/07/2021,137.83,FEES / COMMISSION,V001721618
ROCHDALE BOROUGH COUNCIL,06/07/2021,PROPERTY AND HIGHWAYS,CAPITA BUSINESS SERVICES LIMITED,06/07/2021,137.83,FEES / COMMISSION,V001721618
ROCHDALE BOROUGH COUNCIL,06/07/2021,PROPERTY AND HIGHWAYS,WATERMAN INFASTRUCTURE AND ENVIRONMENT LTD,06/07/2021,4296.38,ENGINEERS FEES,V001721620
ROCHDALE BOROUGH COUNCIL,06/07/2021,NEIGHBOURHOODS AND ENVIRONMENT,ROAD SAFETY SERVICES LIMITED,06/07/2021,1089.32,EQUIPMENT - GENERAL,V001721622
ROCHDALE BOROUGH COUNCIL,06/07/2021,NEIGHBOURHOODS AND ENVIRONMENT,ROAD SAFETY SERVICES LIMITED,06/07/2021,1089.32,EQUIPMENT - GENERAL,V001721622
ROCHDALE BOROUGH COUNCIL,06/07/2021,NEIGHBOURHOODS AND ENVIRONMENT,ROAD SAFETY SERVICES LIMITED,06/07/2021,2703,CONTRACTS,V001721622
ROCHDALE BOROUGH COUNCIL,06/07/2021,NEIGHBOURHOODS AND ENVIRONMENT,ROAD SAFETY SERVICES LIMITED,06/07/2021,2703,CONTRACTS,V001721622
ROCHDALE BOROUGH COUNCIL,06/07/2021,PROPERTY AND HIGHWAYS,BARRATT AND HUGHES FLOORING,06/07/2021,2460,MINOR BUILDING WORKS,V001721623
ROCHDALE BOROUGH COUNCIL,06/07/2021,PROPERTY AND HIGHWAYS,INTERSAFETY,06/07/2021,27.55,"CLOTHES, UNIFORM AND LAUNDRY",V001721624
ROCHDALE BOROUGH COUNCIL,06/07/2021,CHILDREN�S SOCIAL CARE,THE BIG WORD,06/07/2021,2189.25,TRANSLATION & INTERPRETATION,V001721626
ROCHDALE BOROUGH COUNCIL,06/07/2021,EARLY HELP AND SCHOOLS,THE BIG WORD,06/07/2021,93.5,TRANSLATION & INTERPRETATION,V001721626
ROCHDALE BOROUGH COUNCIL,06/07/2021,EARLY HELP AND SCHOOLS,THE BIG WORD,06/07/2021,168.75,TRANSLATION & INTERPRETATION,V001721626
ROCHDALE BOROUGH COUNCIL,06/07/2021,EARLY HELP AND SCHOOLS,THE BIG WORD,06/07/2021,71.25,TRANSLATION & INTERPRETATION,V001721626
ROCHDALE BOROUGH COUNCIL,06/07/2021,EARLY HELP AND SCHOOLS,THE BIG WORD,06/07/2021,28.5,TRANSLATION & INTERPRETATION,V001721626
ROCHDALE BOROUGH COUNCIL,06/07/2021,ADULT CARE LCO FUNCTIONS,THE BIG WORD,06/07/2021,64.5,TRANSLATION & INTERPRETATION,V001721626
ROCHDALE BOROUGH COUNCIL,06/07/2021,CHILDREN�S SOCIAL CARE,THE BIG WORD,06/07/2021,64.5,TRANSLATION & INTERPRETATION,V001721626
ROCHDALE BOROUGH COUNCIL,06/07/2021,ADULT CARE LCO FUNCTIONS,THE BIG WORD,06/07/2021,78,TRANSLATION & INTERPRETATION,V001721626
ROCHDALE BOROUGH COUNCIL,06/07/2021,EARLY HELP AND SCHOOLS,THE BIG WORD,06/07/2021,154.5,TRANSLATION & INTERPRETATION,V001721626
ROCHDALE BOROUGH COUNCIL,06/07/2021,EARLY HELP AND SCHOOLS,THE BIG WORD,06/07/2021,167.5,TRANSLATION & INTERPRETATION,V001721626
ROCHDALE BOROUGH COUNCIL,06/07/2021,EARLY HELP AND SCHOOLS,THE BIG WORD,06/07/2021,741.5,TRANSLATION & INTERPRETATION,V001721626
ROCHDALE BOROUGH COUNCIL,06/07/2021,NEIGHBOURHOODS AND ENVIRONMENT,THE BIG WORD,06/07/2021,73.5,TRANSLATION & INTERPRETATION,V001721626
ROCHDALE BOROUGH COUNCIL,06/07/2021,ADULT CARE LCO FUNCTIONS,THE BIG WORD,06/07/2021,481.5,TRANSLATION & INTERPRETATION,V001721626
ROCHDALE BOROUGH COUNCIL,06/07/2021,CHILDREN�S SOCIAL CARE,THE BIG WORD,06/07/2021,1996.56,TRANSLATION & INTERPRETATION,V001721627
ROCHDALE BOROUGH COUNCIL,06/07/2021,ADULT CARE LCO FUNCTIONS,THE BIG WORD,06/07/2021,61.93,TRANSLATION & INTERPRETATION,V001721627
ROCHDALE BOROUGH COUNCIL,06/07/2021,CHILDREN�S SOCIAL CARE,THE BIG WORD,06/07/2021,44.88,TRANSLATION & INTERPRETATION,V001721627
ROCHDALE BOROUGH COUNCIL,06/07/2021,EARLY HELP AND SCHOOLS,THE BIG WORD,06/07/2021,4.66,TRANSLATION & INTERPRETATION,V001721627
ROCHDALE BOROUGH COUNCIL,06/07/2021,EARLY HELP AND SCHOOLS,THE BIG WORD,06/07/2021,55.71,TRANSLATION & INTERPRETATION,V001721627
ROCHDALE BOROUGH COUNCIL,06/07/2021,EARLY HELP AND SCHOOLS,THE BIG WORD,06/07/2021,54.98,TRANSLATION & INTERPRETATION,V001721627
ROCHDALE BOROUGH COUNCIL,06/07/2021,EARLY HELP AND SCHOOLS,THE BIG WORD,06/07/2021,23.71,TRANSLATION & INTERPRETATION,V001721627
ROCHDALE BOROUGH COUNCIL,05/07/2021,PUBLIC HEALTH,EARLY BREAK,05/07/2021,45000,CONTRACTED SERVICES,V001721629
ROCHDALE BOROUGH COUNCIL,05/07/2021,NEIGHBOURHOODS AND ENVIRONMENT,GO PLANT FLEET SERVICES LTD,05/07/2021,2878.66,TRANSACTIONS-EXPENDITURE,V001721630
ROCHDALE BOROUGH COUNCIL,05/07/2021,PROPERTY AND HIGHWAYS,ARCO GROUP LIMITED,05/07/2021,223.23,"CLOTHES, UNIFORM AND LAUNDRY",V001721649
ROCHDALE BOROUGH COUNCIL,05/07/2021,PROPERTY AND HIGHWAYS,ARCO GROUP LIMITED,05/07/2021,223.23,"CLOTHES, UNIFORM AND LAUNDRY",V001721649
ROCHDALE BOROUGH COUNCIL,05/07/2021,PROPERTY AND HIGHWAYS,ARCO GROUP LIMITED,05/07/2021,223.23,"CLOTHES, UNIFORM AND LAUNDRY",V001721649
ROCHDALE BOROUGH COUNCIL,05/07/2021,EARLY HELP AND SCHOOLS,REDACTED - PERSONAL DATA,05/07/2021,5005,OTHER LA`S - SEN PROVISION,V001721654
ROCHDALE BOROUGH COUNCIL,06/07/2021,PROPERTY AND HIGHWAYS,CALEDONIAN LIFTS MANCHESTER LTD,06/07/2021,35,PROPERTY - WORKS ELEMENT,V001721655
ROCHDALE BOROUGH COUNCIL,06/07/2021,ECONOMY DIRECTORATE,THE CREATIVE CORE GROUP LTD,06/07/2021,2404.05,CONSULTANTS FEES,V001721656
ROCHDALE BOROUGH COUNCIL,06/07/2021,ADULT CARE LCO FUNCTIONS,ACTION FIRST ASSESSMENTS LTD,06/07/2021,650,FEES / COMMISSION,V001721658
ROCHDALE BOROUGH COUNCIL,06/07/2021,ADULT CARE LCO FUNCTIONS,ACTION FIRST ASSESSMENTS LTD,06/07/2021,975,FEES / COMMISSION,V001721659
ROCHDALE BOROUGH COUNCIL,06/07/2021,ADULT CARE LCO FUNCTIONS,ACTION FIRST ASSESSMENTS LTD,06/07/2021,1300,FEES / COMMISSION,V001721660
ROCHDALE BOROUGH COUNCIL,06/07/2021,ADULT CARE LCO FUNCTIONS,ACTION FIRST ASSESSMENTS LTD,06/07/2021,1625,FEES / COMMISSION,V001721661
ROCHDALE BOROUGH COUNCIL,06/07/2021,ADULT CARE LCO FUNCTIONS,ACTION FIRST ASSESSMENTS LTD,06/07/2021,1300,FEES / COMMISSION,V001721662
ROCHDALE BOROUGH COUNCIL,06/07/2021,ADULT CARE LCO FUNCTIONS,ACTION FIRST ASSESSMENTS LTD,06/07/2021,650,FEES / COMMISSION,V001721663
ROCHDALE BOROUGH COUNCIL,06/07/2021,ADULT CARE LCO FUNCTIONS,ACTION FIRST ASSESSMENTS LTD,06/07/2021,1300,FEES / COMMISSION,V001721664
ROCHDALE BOROUGH COUNCIL,06/07/2021,ADULT CARE LCO FUNCTIONS,ACTION FIRST ASSESSMENTS LTD,06/07/2021,325,FEES / COMMISSION,V001721665
ROCHDALE BOROUGH COUNCIL,06/07/2021,EARLY HELP AND SCHOOLS,PEARSON EDUCATION LIMITED,06/07/2021,117.75,EQUIPMENT - GENERAL,V001721666
ROCHDALE BOROUGH COUNCIL,06/07/2021,PROPERTY AND HIGHWAYS,CALEDONIAN LIFTS MANCHESTER LTD,06/07/2021,150,PROPERTY - WORKS ELEMENT,V001721681
ROCHDALE BOROUGH COUNCIL,06/07/2021,PROPERTY AND HIGHWAYS,CALEDONIAN LIFTS MANCHESTER LTD,06/07/2021,90,PROPERTY - WORKS ELEMENT,V001721682
ROCHDALE BOROUGH COUNCIL,06/07/2021,PROPERTY AND HIGHWAYS,CALEDONIAN LIFTS MANCHESTER LTD,06/07/2021,35,PROPERTY - WORKS ELEMENT,V001721683
ROCHDALE BOROUGH COUNCIL,06/07/2021,PROPERTY AND HIGHWAYS,CALEDONIAN LIFTS MANCHESTER LTD,06/07/2021,35,PROPERTY - WORKS ELEMENT,V001721684
ROCHDALE BOROUGH COUNCIL,06/07/2021,PROPERTY AND HIGHWAYS,CALEDONIAN LIFTS MANCHESTER LTD,06/07/2021,35,PROPERTY - WORKS ELEMENT,V001721685
ROCHDALE BOROUGH COUNCIL,01/07/2021,NEIGHBOURHOODS AND ENVIRONMENT,ALLSTAR BUSINESS SOLUTIONS LTD,01/07/2021,30.73,FUEL,V001721686
ROCHDALE BOROUGH COUNCIL,01/07/2021,NEIGHBOURHOODS AND ENVIRONMENT,ALLSTAR BUSINESS SOLUTIONS LTD,01/07/2021,18.6,FUEL,V001721686
ROCHDALE BOROUGH COUNCIL,01/07/2021,NEIGHBOURHOODS AND ENVIRONMENT,ALLSTAR BUSINESS SOLUTIONS LTD,01/07/2021,595.12,FUEL,V001721686
ROCHDALE BOROUGH COUNCIL,01/07/2021,NEIGHBOURHOODS AND ENVIRONMENT,ALLSTAR BUSINESS SOLUTIONS LTD,01/07/2021,222.19,FUEL,V001721686
ROCHDALE BOROUGH COUNCIL,01/07/2021,NEIGHBOURHOODS AND ENVIRONMENT,ALLSTAR BUSINESS SOLUTIONS LTD,01/07/2021,58.68,FUEL,V001721686
ROCHDALE BOROUGH COUNCIL,01/07/2021,PROPERTY AND HIGHWAYS,ALLSTAR BUSINESS SOLUTIONS LTD,01/07/2021,35.18,CAR PARKING CONTRACT,V001721686
ROCHDALE BOROUGH COUNCIL,01/07/2021,PROPERTY AND HIGHWAYS,ALLSTAR BUSINESS SOLUTIONS LTD,01/07/2021,145.18,FUEL,V001721686
ROCHDALE BOROUGH COUNCIL,01/07/2021,CHILDREN�S SOCIAL CARE,ALLSTAR BUSINESS SOLUTIONS LTD,01/07/2021,16.38,FUEL,V001721686
ROCHDALE BOROUGH COUNCIL,06/07/2021,PROPERTY AND HIGHWAYS,WOLSELEY UK LIMITED,06/07/2021,13.99,BUILDING MATERIALS,V001721687
ROCHDALE BOROUGH COUNCIL,06/07/2021,PROPERTY AND HIGHWAYS,WOLSELEY UK LIMITED,06/07/2021,7.85,BUILDING MATERIALS,V001721688
ROCHDALE BOROUGH COUNCIL,06/07/2021,PROPERTY AND HIGHWAYS,WOLSELEY UK LIMITED,06/07/2021,20.19,BUILDING MATERIALS,V001721689
ROCHDALE BOROUGH COUNCIL,06/07/2021,PROPERTY AND HIGHWAYS,WOLSELEY UK LIMITED,06/07/2021,9.59,BUILDING MATERIALS,V001721690
ROCHDALE BOROUGH COUNCIL,05/07/2021,PROPERTY AND HIGHWAYS,NSL LIMITED,05/07/2021,4437.5,RENTS,V001721698
ROCHDALE BOROUGH COUNCIL,07/07/2021,EARLY HELP AND SCHOOLS,AQUACOOL LTD,07/07/2021,72.93,REFRESHMENTS,V001721699
ROCHDALE BOROUGH COUNCIL,05/07/2021,PROPERTY AND HIGHWAYS,TMP UK LTD,05/07/2021,1054,ADVERTISING/PUBLICITY,V001721700
ROCHDALE BOROUGH COUNCIL,06/07/2021,PROPERTY AND HIGHWAYS,GMCA,06/07/2021,2470,ROADWORKS,V001721701
ROCHDALE BOROUGH COUNCIL,06/07/2021,ECONOMY DIRECTORATE,IRWELL STREET METALS,06/07/2021,91.4,REFUSE DISPOSAL,V001721702
ROCHDALE BOROUGH COUNCIL,06/07/2021,PROPERTY AND HIGHWAYS,UNITY PARTNERSHIP LTD,06/07/2021,10485.27,MINOR BUILDING WORKS,V001721703
ROCHDALE BOROUGH COUNCIL,06/07/2021,PROPERTY AND HIGHWAYS,UNITY PARTNERSHIP LTD,06/07/2021,9474.14,MINOR BUILDING WORKS,V001721704
ROCHDALE BOROUGH COUNCIL,05/07/2021,PROPERTY AND HIGHWAYS,NSL LIMITED,05/07/2021,44606.24,CAR PARKING CONTRACT,V001721706
ROCHDALE BOROUGH COUNCIL,05/07/2021,PROPERTY AND HIGHWAYS,NSL LIMITED,05/07/2021,120.3,RENTS,V001721708
ROCHDALE BOROUGH COUNCIL,09/07/2021,ADULT CARE LCO FUNCTIONS,BRAHM FUNDCO 1 LTD,09/07/2021,110,MINOR BUILDING WORKS,V001721709
ROCHDALE BOROUGH COUNCIL,06/07/2021,ECONOMY DIRECTORATE,G2 RECRUITMENT SOLUTIONS LTD,06/07/2021,1325.8,AGENCY STAFF,V001721711
ROCHDALE BOROUGH COUNCIL,06/07/2021,PROPERTY AND HIGHWAYS,GMCA,06/07/2021,11701.95,ROADWORKS,V001721712
ROCHDALE BOROUGH COUNCIL,05/07/2021,PROPERTY AND HIGHWAYS,NSL LIMITED,05/07/2021,136.55,RENTS,V001721716
ROCHDALE BOROUGH COUNCIL,05/07/2021,CHILDREN�S SOCIAL CARE,AQUACOOL LTD,05/07/2021,13,PROVISIONS,V001721720
ROCHDALE BOROUGH COUNCIL,06/07/2021,PROPERTY AND HIGHWAYS,E ON ENERGY SOLUTIONS LTD HIGHWAY LIGHTING,06/07/2021,849.71,MINOR BUILDING WORKS,V001721721
ROCHDALE BOROUGH COUNCIL,06/07/2021,PROPERTY AND HIGHWAYS,A AND D DOOR SYSTEMS LTD,06/07/2021,215,ELECTRICAL,V001721746
ROCHDALE BOROUGH COUNCIL,06/07/2021,CHILDREN�S SOCIAL CARE,CRESTA WORLD TRAVEL LIMITED,06/07/2021,290.46,ACCOMMODATION,V001721762
ROCHDALE BOROUGH COUNCIL,06/07/2021,CHILDREN�S SOCIAL CARE,CRESTA WORLD TRAVEL LIMITED,06/07/2021,67.61,ACCOMMODATION,V001721763
ROCHDALE BOROUGH COUNCIL,06/07/2021,CHILDREN�S SOCIAL CARE,CRESTA WORLD TRAVEL LIMITED,06/07/2021,335.22,ACCOMMODATION,V001721764
ROCHDALE BOROUGH COUNCIL,06/07/2021,RESOURCES,VALTECH LTD,06/07/2021,713.4,EXTERNAL CONTRACTED PRINTING,V001721767
ROCHDALE BOROUGH COUNCIL,06/07/2021,PROPERTY AND HIGHWAYS,BRADSHAW GASS AND HOPE LLP,06/07/2021,1260,CONSULTANTS FEES,V001721770
ROCHDALE BOROUGH COUNCIL,06/07/2021,ECONOMY DIRECTORATE,BRADSHAW GASS AND HOPE LLP,06/07/2021,2025,MINOR BUILDING WORKS,V001721771
ROCHDALE BOROUGH COUNCIL,06/07/2021,EARLY HELP AND SCHOOLS,BRADSHAW GASS AND HOPE LLP,06/07/2021,1080,ARCHITECTS FEES,V001721772
ROCHDALE BOROUGH COUNCIL,06/07/2021,PROPERTY AND HIGHWAYS,BRADSHAW GASS AND HOPE LLP,06/07/2021,900,CAPITAL SALARIES,V001721773
ROCHDALE BOROUGH COUNCIL,06/07/2021,ADULT CARE LCO FUNCTIONS,GO2TELECOM LTD,06/07/2021,57.6,IT EQUIPMENT,V001721774
ROCHDALE BOROUGH COUNCIL,06/07/2021,ADULT CARE LCO FUNCTIONS,GO2TELECOM LTD,06/07/2021,44,IT EQUIPMENT,V001721774
ROCHDALE BOROUGH COUNCIL,06/07/2021,ADULT CARE LCO FUNCTIONS,GO2TELECOM LTD,06/07/2021,40,IT EQUIPMENT,V001721774
ROCHDALE BOROUGH COUNCIL,06/07/2021,ADULT CARE LCO FUNCTIONS,GO2TELECOM LTD,06/07/2021,8.95,IT EQUIPMENT,V001721774
ROCHDALE BOROUGH COUNCIL,06/07/2021,EARLY HELP AND SCHOOLS,BRADSHAW GASS AND HOPE LLP,06/07/2021,1400,MINOR BUILDING WORKS,V001721775
ROCHDALE BOROUGH COUNCIL,06/07/2021,EARLY HELP AND SCHOOLS,BRADSHAW GASS AND HOPE LLP,06/07/2021,1800,MINOR BUILDING WORKS,V001721776
ROCHDALE BOROUGH COUNCIL,12/07/2021,CHILDREN�S SOCIAL CARE,PATHWAYS GROUP LTD,12/07/2021,236.8,YOUNGE PERSONS ALLOWANCE,V001721783
ROCHDALE BOROUGH COUNCIL,09/07/2021,EARLY HELP AND SCHOOLS,SHOOTERS MEDIA,09/07/2021,567,ACTIVITIES,V001722146
ROCHDALE BOROUGH COUNCIL,09/07/2021,CHILDREN�S SOCIAL CARE,BANNER GROUP LIMITED,09/07/2021,6.52,PRINTING & STATIONERY,V001722147
ROCHDALE BOROUGH COUNCIL,09/07/2021,CHILDREN�S SOCIAL CARE,BANNER GROUP LIMITED,09/07/2021,0.88,PRINTING & STATIONERY,V001722147
ROCHDALE BOROUGH COUNCIL,09/07/2021,CHILDREN�S SOCIAL CARE,BANNER GROUP LIMITED,09/07/2021,6.48,PRINTING & STATIONERY,V001722147
ROCHDALE BOROUGH COUNCIL,09/07/2021,CHILDREN�S SOCIAL CARE,BANNER GROUP LIMITED,09/07/2021,1.02,PRINTING & STATIONERY,V001722147
ROCHDALE BOROUGH COUNCIL,06/07/2021,EARLY HELP AND SCHOOLS,BROWNS BOOK FOR STUDENTS,06/07/2021,6.65,EQUIPMENT - GENERAL,V001722148
ROCHDALE BOROUGH COUNCIL,06/07/2021,ECONOMY DIRECTORATE,HS  SHOP FRONTS AND BUILDERS LTD,06/07/2021,2100,PREMISES INSURANCE GENERAL,V001722150
ROCHDALE BOROUGH COUNCIL,09/07/2021,CHILDREN�S SOCIAL CARE,FORENSIC TESTING SERVICE LTD,09/07/2021,197.5,MEDICAL FEES,V001722151
ROCHDALE BOROUGH COUNCIL,09/07/2021,CHILDREN�S SOCIAL CARE,FORENSIC TESTING SERVICE LTD,09/07/2021,222.5,MEDICAL FEES,V001722153
ROCHDALE BOROUGH COUNCIL,12/07/2021,CHILDREN�S SOCIAL CARE,BROOKFIELD SURGERY,12/07/2021,73.86,MEDICAL FEES,V001722183
ROCHDALE BOROUGH COUNCIL,12/07/2021,EARLY HELP AND SCHOOLS,FINDEL EDUCATION LIMITED,12/07/2021,129.99,FURNITURE - GENERAL,V001722184
ROCHDALE BOROUGH COUNCIL,12/07/2021,NEIGHBOURHOODS AND ENVIRONMENT,SCHNEIDER ELECTRIC LIMITED,12/07/2021,3053.75,SPECIFIED MAINTENANCE,V001722185
ROCHDALE BOROUGH COUNCIL,09/07/2021,CHILDREN�S SOCIAL CARE,FOSTERING SOLUTIONS LTD,09/07/2021,3206.01,FOSTER PARENTS BASIC ALLOWANCE,V001722186
ROCHDALE BOROUGH COUNCIL,09/07/2021,CHILDREN�S SOCIAL CARE,FOSTERING SOLUTIONS LTD,09/07/2021,3111.78,FOSTER PARENTS BASIC ALLOWANCE,V001722187
ROCHDALE BOROUGH COUNCIL,08/07/2021,EARLY HELP AND SCHOOLS,D A LANGUAGES LIMITED,08/07/2021,63,TRANSLATION & INTERPRETATION,V001722189
ROCHDALE BOROUGH COUNCIL,08/07/2021,NEIGHBOURHOODS AND ENVIRONMENT,WHISTL UK LTD,08/07/2021,543.14,TRANSACTIONS-EXPENDITURE,V001722192
ROCHDALE BOROUGH COUNCIL,12/07/2021,PUBLIC HEALTH,PHOENIX FUTURES,12/07/2021,1128.57,CONTRACTED SERVICES,V001722193
ROCHDALE BOROUGH COUNCIL,12/07/2021,CHILDREN�S SOCIAL CARE,D A LANGUAGES LIMITED,12/07/2021,95.62,TRANSLATION & INTERPRETATION,V001722194
ROCHDALE BOROUGH COUNCIL,12/07/2021,ECONOMY DIRECTORATE,ARROW BUSINESS COMMUNICATIONS LTD,12/07/2021,280.33,TELEPHONE EXPENDITURE,V001722197
ROCHDALE BOROUGH COUNCIL,12/07/2021,ECONOMY DIRECTORATE,ARROW BUSINESS COMMUNICATIONS LTD,12/07/2021,556.29,TELEPHONE EXPENDITURE,V001722198
ROCHDALE BOROUGH COUNCIL,12/07/2021,ECONOMY DIRECTORATE,ND OLIVER & CO LIMITED,12/07/2021,6600,SITE INVESTIGATION,V001722199
ROCHDALE BOROUGH COUNCIL,12/07/2021,NEIGHBOURHOODS AND ENVIRONMENT,CP DAVIDSON AND SONS LTD,12/07/2021,1200,TRANSACTIONS-EXPENDITURE,V001722201
ROCHDALE BOROUGH COUNCIL,12/07/2021,EARLY HELP AND SCHOOLS,SMS COACHING LTD,12/07/2021,6400,OTHER LA`S - SEN PROVISION,V001722202
ROCHDALE BOROUGH COUNCIL,12/07/2021,EARLY HELP AND SCHOOLS,SMS COACHING LTD,12/07/2021,6000,OTHER LA`S - SEN PROVISION,V001722203
ROCHDALE BOROUGH COUNCIL,12/07/2021,EARLY HELP AND SCHOOLS,REDACTED - PERSONAL DATA,12/07/2021,6941.22,OTHER EST - SEN PROVISION,V001722204
ROCHDALE BOROUGH COUNCIL,05/07/2021,ECONOMY DIRECTORATE,ZEN INTERNET LIMITED,05/07/2021,63.5,DATA LEASE LINE,V001722205
ROCHDALE BOROUGH COUNCIL,08/07/2021,NEIGHBOURHOODS AND ENVIRONMENT,FLOGAS BRITAIN LTDS,08/07/2021,1844.04,OIL,V001722206
ROCHDALE BOROUGH COUNCIL,08/07/2021,PUBLIC HEALTH,BARDOC LTD,08/07/2021,19755,PROFESSIONAL FEES,V001722208
ROCHDALE BOROUGH COUNCIL,08/07/2021,NEIGHBOURHOODS AND ENVIRONMENT,ORCHARD RECYCLING SERVICE LTD,08/07/2021,1168.5,CONTRACTS,V001722210
ROCHDALE BOROUGH COUNCIL,08/07/2021,NEIGHBOURHOODS AND ENVIRONMENT,DAISY CORPORATE SERVICES TRADING LTD,08/07/2021,34.96,IT MAINTENANCE,V001722211
ROCHDALE BOROUGH COUNCIL,08/07/2021,NEIGHBOURHOODS AND ENVIRONMENT,DAISY CORPORATE SERVICES TRADING LTD,08/07/2021,2093.82,IT MAINTENANCE,V001722211
ROCHDALE BOROUGH COUNCIL,09/07/2021,NEIGHBOURHOODS AND ENVIRONMENT,GRANART,09/07/2021,78,EQUIPMENT - GENERAL,V001722212
ROCHDALE BOROUGH COUNCIL,09/07/2021,NEIGHBOURHOODS AND ENVIRONMENT,GRANART,09/07/2021,86,EQUIPMENT - GENERAL,V001722212
ROCHDALE BOROUGH COUNCIL,09/07/2021,NEIGHBOURHOODS AND ENVIRONMENT,CFA,09/07/2021,300,ACTIVITIES,V001722214
ROCHDALE BOROUGH COUNCIL,12/07/2021,EARLY HELP AND SCHOOLS,NORNIR LIMITED,12/07/2021,750,IT SUPPORT,V001722218
ROCHDALE BOROUGH COUNCIL,12/07/2021,EARLY HELP AND SCHOOLS,NORNIR LIMITED,12/07/2021,750,IT SUPPORT,V001722218
ROCHDALE BOROUGH COUNCIL,12/07/2021,EARLY HELP AND SCHOOLS,ACTIVE AID LTD,12/07/2021,24,SUBSCRIPTIONS,V001722220
ROCHDALE BOROUGH COUNCIL,12/07/2021,EARLY HELP AND SCHOOLS,ACTIVE AID LTD,12/07/2021,24,SUBSCRIPTIONS,V001722221
ROCHDALE BOROUGH COUNCIL,12/07/2021,EARLY HELP AND SCHOOLS,ACTIVE AID LTD,12/07/2021,100,SUBSCRIPTIONS,V001722222
ROCHDALE BOROUGH COUNCIL,12/07/2021,EARLY HELP AND SCHOOLS,ACTIVE AID LTD,12/07/2021,55,TRAINING,V001722223
ROCHDALE BOROUGH COUNCIL,12/07/2021,RESOURCES,NEC SOFTWARE SOLUTIONS UK LTD,12/07/2021,1250,SOFTWARE,V001722225
ROCHDALE BOROUGH COUNCIL,06/07/2021,ECONOMY DIRECTORATE,G2 RECRUITMENT SOLUTIONS LTD,06/07/2021,1365,AGENCY STAFF,V001722228
ROCHDALE BOROUGH COUNCIL,06/07/2021,EARLY HELP AND SCHOOLS,GROUNDWORK LANDSCAPES LIMITED,06/07/2021,2680,MINOR BUILDING WORKS,V001722233
ROCHDALE BOROUGH COUNCIL,08/07/2021,PROPERTY AND HIGHWAYS,TRANSPORT FOR GREATER MANCHESTER,08/07/2021,285,MINOR BUILDING WORKS,V001722234
ROCHDALE BOROUGH COUNCIL,06/07/2021,NEIGHBOURHOODS AND ENVIRONMENT,VIVEDIA LTD,06/07/2021,1430,EQUIPMENT - GENERAL,V001722236
ROCHDALE BOROUGH COUNCIL,06/07/2021,ADULT CARE LCO FUNCTIONS,STANNAH LIFT SERVICES LTD,06/07/2021,55,REMOVAL EXPENDITURE,V001722237
ROCHDALE BOROUGH COUNCIL,06/07/2021,ADULT CARE LCO FUNCTIONS,STANNAH LIFT SERVICES LTD,06/07/2021,55,TRANSACTIONS-EXPENDITURE,V001722238
ROCHDALE BOROUGH COUNCIL,06/07/2021,RESOURCES,CODEBASE8 LTD,06/07/2021,3402.78,SOFTWARE,V001722240
ROCHDALE BOROUGH COUNCIL,06/07/2021,NEIGHBOURHOODS AND ENVIRONMENT,AQUACOOL LTD,06/07/2021,80,EQUIPMENT - GENERAL,V001722241
ROCHDALE BOROUGH COUNCIL,06/07/2021,ECONOMY DIRECTORATE,AQUACOOL LTD,06/07/2021,24,MAINTENANCE,V001722243
ROCHDALE BOROUGH COUNCIL,06/07/2021,PROPERTY AND HIGHWAYS,GROUNDWORK LANDSCAPES LIMITED,06/07/2021,960,MINOR BUILDING WORKS,V001722244
ROCHDALE BOROUGH COUNCIL,06/07/2021,CHILDREN�S SOCIAL CARE,PARADIGM PROFESSIONAL CONSULTANCY LTD,06/07/2021,1387.5,AGENCY STAFF,V001722245
ROCHDALE BOROUGH COUNCIL,06/07/2021,CHILDREN�S SOCIAL CARE,PARADIGM PROFESSIONAL CONSULTANCY LTD,06/07/2021,404.25,AGENCY STAFF,V001722246
ROCHDALE BOROUGH COUNCIL,06/07/2021,EARLY HELP AND SCHOOLS,FORENSIC TESTING SERVICE LTD,06/07/2021,1746.4,MEDICAL FEES,V001722247
ROCHDALE BOROUGH COUNCIL,06/07/2021,NEIGHBOURHOODS AND ENVIRONMENT,EXCLUSEC,06/07/2021,6669.6,SECURITY,V001722248
ROCHDALE BOROUGH COUNCIL,06/07/2021,EARLY HELP AND SCHOOLS,THINKING IN SHADES OF GREY,06/07/2021,1278.96,OTHER LA`S - SEN PROVISION,V001722249
ROCHDALE BOROUGH COUNCIL,09/07/2021,NEIGHBOURHOODS AND ENVIRONMENT,ALLIANCE DISPOSABLES LIMITED,09/07/2021,218,CONSUMABLES,V001722257
ROCHDALE BOROUGH COUNCIL,12/07/2021,PROPERTY AND HIGHWAYS,CONDUENT PARKING ENFORCEMENT SOL LTD,12/07/2021,68.96,IT EQUIPMENT,V001722258
ROCHDALE BOROUGH COUNCIL,12/07/2021,PROPERTY AND HIGHWAYS,SURVEY SYSTEMS LIMITED,12/07/2021,490,ROADWORKS,V001722259
ROCHDALE BOROUGH COUNCIL,08/07/2021,EARLY HELP AND SCHOOLS,CRITIQOM LIMITED,08/07/2021,64.26,PRINTING,V001722260
ROCHDALE BOROUGH COUNCIL,08/07/2021,PROPERTY AND HIGHWAYS,TRANSPORT FOR GREATER MANCHESTER,08/07/2021,285,MINOR BUILDING WORKS,V001722261
ROCHDALE BOROUGH COUNCIL,12/07/2021,NEIGHBOURHOODS AND ENVIRONMENT,WHISTL UK LTD,12/07/2021,47.88,TRANSACTIONS-EXPENDITURE,V001722262
ROCHDALE BOROUGH COUNCIL,12/07/2021,PROPERTY AND HIGHWAYS,MONITORED GUARDING LTD,12/07/2021,1200,SECURITY,V001722263
ROCHDALE BOROUGH COUNCIL,12/07/2021,ADULT CARE LCO FUNCTIONS,POLLOCK LIFTS,12/07/2021,550,MINOR BUILDING WORKS,V001722269
ROCHDALE BOROUGH COUNCIL,12/07/2021,ADULT CARE LCO FUNCTIONS,THE GUIDE DOGS FOR THE BLIND ASSOCIATION,12/07/2021,821.2,TRAINING,V001722270
ROCHDALE BOROUGH COUNCIL,12/07/2021,ECONOMY DIRECTORATE,HI-FLIER LIMITED,12/07/2021,7000,REPAIRS & ALTS OF BUILDINGS,V001722271
ROCHDALE BOROUGH COUNCIL,12/07/2021,NEIGHBOURHOODS AND ENVIRONMENT,VICTIM SUPPORT,12/07/2021,15302.66,GRANTS TO THE NON VOLUNTARY SECTOR,V001722272
ROCHDALE BOROUGH COUNCIL,12/07/2021,RESOURCES,BELLYFLOP TV LTD,12/07/2021,757,CONTRACTED SERVICES,V001722274
ROCHDALE BOROUGH COUNCIL,12/07/2021,NEIGHBOURHOODS AND ENVIRONMENT,MANCHESTER CABINS LIMITED,12/07/2021,789.6,EQUIPMENT - GENERAL,V001722276
ROCHDALE BOROUGH COUNCIL,06/07/2021,PROPERTY AND HIGHWAYS,BRADSHAW GASS AND HOPE LLP,06/07/2021,950,CONSULTANTS FEES,V001722277
ROCHDALE BOROUGH COUNCIL,06/07/2021,PROPERTY AND HIGHWAYS,BRADSHAW GASS AND HOPE LLP,06/07/2021,750,CONSULTANTS FEES,V001722280
ROCHDALE BOROUGH COUNCIL,09/07/2021,NEIGHBOURHOODS AND ENVIRONMENT,G AND A TAYLOR HOTELS LTD,09/07/2021,2667.01,ACCOMMODATION,V001722286
ROCHDALE BOROUGH COUNCIL,09/07/2021,NEIGHBOURHOODS AND ENVIRONMENT,G AND A TAYLOR HOTELS LTD,09/07/2021,47.8,ACCOMMODATION,V001722286
ROCHDALE BOROUGH COUNCIL,09/07/2021,NEIGHBOURHOODS AND ENVIRONMENT,G AND A TAYLOR HOTELS LTD,09/07/2021,907.48,ACCOMMODATION,V001722286
ROCHDALE BOROUGH COUNCIL,12/07/2021,NEIGHBOURHOODS AND ENVIRONMENT,GROUNDWORK GREATER MANCHESTER,12/07/2021,950,CAPITAL SALARIES,V001722289
ROCHDALE BOROUGH COUNCIL,06/07/2021,PROPERTY AND HIGHWAYS,ABC INDUSTRIAL DOORS LTD,06/07/2021,121.75,ELECTRICAL,V001722403
ROCHDALE BOROUGH COUNCIL,06/07/2021,PROPERTY AND HIGHWAYS,FRANK KEY TOOL HIRE LTD,06/07/2021,12,PROPERTY - WORKS ELEMENT,V001722658
ROCHDALE BOROUGH COUNCIL,06/07/2021,PROPERTY AND HIGHWAYS,UNITY PARTNERSHIP LTD,06/07/2021,6664.6,CONSULTANT FEES,V001722662
ROCHDALE BOROUGH COUNCIL,06/07/2021,RESOURCES,JACOBS,06/07/2021,0,INPUT VAT -  ADJUSTMENTS,V001722663
ROCHDALE BOROUGH COUNCIL,06/07/2021,EARLY HELP AND SCHOOLS,SUEZ RECYCLING AND RECOVERY UK LTD,06/07/2021,103.94,REFUSE DISPOSAL,V001722665
ROCHDALE BOROUGH COUNCIL,06/07/2021,PROPERTY AND HIGHWAYS,CALEDONIAN LIFTS MANCHESTER LTD,06/07/2021,325,PROPERTY - WORKS ELEMENT,V001722666
ROCHDALE BOROUGH COUNCIL,06/07/2021,PROPERTY AND HIGHWAYS,ELECTRIC CENTER,06/07/2021,6.44,PROPERTY - WORKS ELEMENT,V001722667
ROCHDALE BOROUGH COUNCIL,06/07/2021,NEIGHBOURHOODS AND ENVIRONMENT,SOFTCAT LTD,06/07/2021,13.91,PROJECTS,V001722668
ROCHDALE BOROUGH COUNCIL,06/07/2021,NEIGHBOURHOODS AND ENVIRONMENT,SOFTCAT LTD,06/07/2021,7.5,PROJECTS,V001722668
ROCHDALE BOROUGH COUNCIL,06/07/2021,NEIGHBOURHOODS AND ENVIRONMENT,ARCO GROUP LIMITED,06/07/2021,63.2,EQUIPMENT - GENERAL,V001722669
ROCHDALE BOROUGH COUNCIL,06/07/2021,NEIGHBOURHOODS AND ENVIRONMENT,ARCO GROUP LIMITED,06/07/2021,63.2,EQUIPMENT - GENERAL,V001722669
ROCHDALE BOROUGH COUNCIL,06/07/2021,NEIGHBOURHOODS AND ENVIRONMENT,ARCO GROUP LIMITED,06/07/2021,63.2,EQUIPMENT - GENERAL,V001722669
ROCHDALE BOROUGH COUNCIL,06/07/2021,PROPERTY AND HIGHWAYS,WATERMAN INFASTRUCTURE AND ENVIRONMENT LTD,06/07/2021,2668,AGENCY STAFF,V001722670
ROCHDALE BOROUGH COUNCIL,12/07/2021,EARLY HELP AND SCHOOLS,REDACTED - PERSONAL DATA,12/07/2021,9046.36,OTHER EST - SEN PROVISION,V001722671
ROCHDALE BOROUGH COUNCIL,12/07/2021,EARLY HELP AND SCHOOLS,REDACTED - PERSONAL DATA,12/07/2021,455.88,OTHER EST - SEN PROVISION,V001722671
ROCHDALE BOROUGH COUNCIL,06/07/2021,NEIGHBOURHOODS AND ENVIRONMENT,MONARCH SHELVING LIMITED,06/07/2021,728,EQUIPMENT - GENERAL,V001722674
ROCHDALE BOROUGH COUNCIL,06/07/2021,NEIGHBOURHOODS AND ENVIRONMENT,MONARCH SHELVING LIMITED,06/07/2021,25,EQUIPMENT - GENERAL,V001722674
ROCHDALE BOROUGH COUNCIL,06/07/2021,PROPERTY AND HIGHWAYS,CONDUENT PARKING ENFORCEMENT SOL LTD,06/07/2021,582.12,IT EQUIPMENT,V001722675
ROCHDALE BOROUGH COUNCIL,22/07/2021,NEIGHBOURHOODS AND ENVIRONMENT,THE PROTON GROUP LIMITED,22/07/2021,238.98,CLEANING MATERIALS,V001722678
ROCHDALE BOROUGH COUNCIL,13/07/2021,RESOURCES,BANNER GROUP LIMITED,13/07/2021,62,PRINTING & STATIONERY,V001722680
ROCHDALE BOROUGH COUNCIL,12/07/2021,PROPERTY AND HIGHWAYS,FRANK KEY TOOL HIRE LTD,12/07/2021,30,PROPERTY - WORKS ELEMENT,V001722681
ROCHDALE BOROUGH COUNCIL,12/07/2021,NEIGHBOURHOODS AND ENVIRONMENT,MANCHESTER CABINS LIMITED,12/07/2021,827.2,EQUIPMENT - GENERAL,V001722684
ROCHDALE BOROUGH COUNCIL,13/07/2021,NEIGHBOURHOODS AND ENVIRONMENT,BANNER GROUP LIMITED,13/07/2021,52.98,PRINTING & STATIONERY,V001722686
ROCHDALE BOROUGH COUNCIL,13/07/2021,NEIGHBOURHOODS AND ENVIRONMENT,BANNER GROUP LIMITED,13/07/2021,72.6,PRINTING & STATIONERY,V001722686
ROCHDALE BOROUGH COUNCIL,12/07/2021,ECONOMY DIRECTORATE,KEPPIE MASSIE,12/07/2021,2950,PLANNING APPLICATION FEES,V001722687
ROCHDALE BOROUGH COUNCIL,13/07/2021,NEIGHBOURHOODS AND ENVIRONMENT,RIGHTS OF WOMEN,13/07/2021,1200,PROJECTS,V001722688
ROCHDALE BOROUGH COUNCIL,13/07/2021,NEIGHBOURHOODS AND ENVIRONMENT,RIGHTS OF WOMEN,13/07/2021,1200,PROJECTS,V001722688
ROCHDALE BOROUGH COUNCIL,12/07/2021,CHILDREN�S SOCIAL CARE,D A LANGUAGES LIMITED,12/07/2021,58.62,TRANSLATION & INTERPRETATION,V001722689
ROCHDALE BOROUGH COUNCIL,06/07/2021,NEIGHBOURHOODS AND ENVIRONMENT,SPIN PRINT SOLUTIONS,06/07/2021,84,PRINTING & STATIONERY,V001722697
ROCHDALE BOROUGH COUNCIL,09/07/2021,NEIGHBOURHOODS AND ENVIRONMENT,DK MINIBUSES LTD,09/07/2021,2124,TAXI HIRE,V001722701
ROCHDALE BOROUGH COUNCIL,09/07/2021,CHILDREN�S SOCIAL CARE,BANNER GROUP LIMITED,09/07/2021,0.58,PRINTING & STATIONERY,V001722702
ROCHDALE BOROUGH COUNCIL,08/07/2021,PUBLIC HEALTH,TAMESIDE METROPOLITAN BOROUGH COUNCIL,08/07/2021,1350,PH OTHER CONTRACTS,V001722705
ROCHDALE BOROUGH COUNCIL,12/07/2021,EARLY HELP AND SCHOOLS,REDACTED - PERSONAL DATA,12/07/2021,1156.87,OTHER EST - SEN PROVISION,V001722707
ROCHDALE BOROUGH COUNCIL,12/07/2021,EARLY HELP AND SCHOOLS,REDACTED - PERSONAL DATA,12/07/2021,15721.87,OTHER EST - SEN PROVISION,V001722708
ROCHDALE BOROUGH COUNCIL,12/07/2021,ADULT CARE LCO FUNCTIONS,JUST CHECKING LTD,12/07/2021,3042.56,MINOR BUILDING WORKS,V001722709
ROCHDALE BOROUGH COUNCIL,12/07/2021,EARLY HELP AND SCHOOLS,REDACTED - PERSONAL DATA,12/07/2021,70,DIRECT PAYMENTS,V001722714
ROCHDALE BOROUGH COUNCIL,08/07/2021,EARLY HELP AND SCHOOLS,REDACTED - PERSONAL DATA,08/07/2021,8658.07,OTHER EST - SEN PROVISION,V001722718
ROCHDALE BOROUGH COUNCIL,09/07/2021,NEIGHBOURHOODS AND ENVIRONMENT,GRANART,09/07/2021,78,EQUIPMENT - GENERAL,V001722719
ROCHDALE BOROUGH COUNCIL,09/07/2021,NEIGHBOURHOODS AND ENVIRONMENT,GRANART,09/07/2021,78,EQUIPMENT - GENERAL,V001722719
ROCHDALE BOROUGH COUNCIL,09/07/2021,NEIGHBOURHOODS AND ENVIRONMENT,GRANART,09/07/2021,78,EQUIPMENT - GENERAL,V001722719
ROCHDALE BOROUGH COUNCIL,09/07/2021,NEIGHBOURHOODS AND ENVIRONMENT,GRANART,09/07/2021,86,EQUIPMENT - GENERAL,V001722719
ROCHDALE BOROUGH COUNCIL,09/07/2021,NEIGHBOURHOODS AND ENVIRONMENT,GRANART,09/07/2021,20,EQUIPMENT - GENERAL,V001722719
ROCHDALE BOROUGH COUNCIL,09/07/2021,NEIGHBOURHOODS AND ENVIRONMENT,GRANART,09/07/2021,20,EQUIPMENT - GENERAL,V001722719
ROCHDALE BOROUGH COUNCIL,09/07/2021,NEIGHBOURHOODS AND ENVIRONMENT,GRANART,09/07/2021,243,MATERIAL - GENERAL,V001722719
ROCHDALE BOROUGH COUNCIL,09/07/2021,NEIGHBOURHOODS AND ENVIRONMENT,ENVIRONMENT MEDIA GROUP LTD,09/07/2021,510,EQUIPMENT - GENERAL,V001722720
ROCHDALE BOROUGH COUNCIL,09/07/2021,NEIGHBOURHOODS AND ENVIRONMENT,ENVIRONMENT MEDIA GROUP LTD,09/07/2021,510,EQUIPMENT - GENERAL,V001722721
ROCHDALE BOROUGH COUNCIL,23/07/2021,EARLY HELP AND SCHOOLS,RELIANCE MEDICAL,23/07/2021,1.9,EQUIPMENT - GENERAL,V001722723
ROCHDALE BOROUGH COUNCIL,23/07/2021,EARLY HELP AND SCHOOLS,RELIANCE MEDICAL,23/07/2021,9.96,EQUIPMENT - GENERAL,V001722723
ROCHDALE BOROUGH COUNCIL,23/07/2021,EARLY HELP AND SCHOOLS,RELIANCE MEDICAL,23/07/2021,13.2,EQUIPMENT - GENERAL,V001722723
ROCHDALE BOROUGH COUNCIL,23/07/2021,EARLY HELP AND SCHOOLS,RELIANCE MEDICAL,23/07/2021,18.1,EQUIPMENT - GENERAL,V001722723
ROCHDALE BOROUGH COUNCIL,23/07/2021,EARLY HELP AND SCHOOLS,RELIANCE MEDICAL,23/07/2021,19.32,EQUIPMENT - GENERAL,V001722723
ROCHDALE BOROUGH COUNCIL,23/07/2021,EARLY HELP AND SCHOOLS,RELIANCE MEDICAL,23/07/2021,34.56,EQUIPMENT - GENERAL,V001722723
ROCHDALE BOROUGH COUNCIL,23/07/2021,EARLY HELP AND SCHOOLS,RELIANCE MEDICAL,23/07/2021,24.5,EQUIPMENT - GENERAL,V001722723
ROCHDALE BOROUGH COUNCIL,12/07/2021,EARLY HELP AND SCHOOLS,REDACTED - PERSONAL DATA,12/07/2021,696.7,DIRECT PAYMENTS,V001722724
ROCHDALE BOROUGH COUNCIL,09/07/2021,NEIGHBOURHOODS AND ENVIRONMENT,BEECHWOOD TREE SERVICES NORTHWEST LTD,09/07/2021,3700,CONTRACTS,V001722725
ROCHDALE BOROUGH COUNCIL,08/07/2021,EARLY HELP AND SCHOOLS,CRITIQOM LIMITED,08/07/2021,477.01,PRINTING,V001722731
ROCHDALE BOROUGH COUNCIL,12/07/2021,RESOURCES,CODEBASE8 LTD,12/07/2021,24000,SOFTWARE,V001722732
ROCHDALE BOROUGH COUNCIL,12/07/2021,NEIGHBOURHOODS AND ENVIRONMENT,CARRICK SIGNS LTD,12/07/2021,107,PRINTING,V001722733
ROCHDALE BOROUGH COUNCIL,02/07/2021,PROPERTY AND HIGHWAYS,JOHN SISK  AND SON LTD,02/07/2021,595140.15,MINOR BUILDING WORKS,V001722738
ROCHDALE BOROUGH COUNCIL,13/07/2021,EARLY HELP AND SCHOOLS,BRIGHT FUTURES EDUCATIONAL TRUST,13/07/2021,95,TRAINING-QUALIFICATION,V001722740
ROCHDALE BOROUGH COUNCIL,06/07/2021,NEIGHBOURHOODS AND ENVIRONMENT,EXCLUSEC,06/07/2021,13902.49,SECURITY,V001722744
ROCHDALE BOROUGH COUNCIL,06/07/2021,RESOURCES,CRITIQOM LIMITED,06/07/2021,6137.65,POSTAGE,V001722745
ROCHDALE BOROUGH COUNCIL,06/07/2021,RESOURCES,CRITIQOM LIMITED,06/07/2021,1622.79,PRINTING & STATIONERY,V001722746
ROCHDALE BOROUGH COUNCIL,06/07/2021,RESOURCES,CRITIQOM LIMITED,06/07/2021,7,PRINTING & STATIONERY,V001722747
ROCHDALE BOROUGH COUNCIL,13/07/2021,ADULT CARE LCO FUNCTIONS,STANNAH LIFT SERVICES LTD,13/07/2021,55,TRANSACTIONS-EXPENDITURE,V001722748
ROCHDALE BOROUGH COUNCIL,06/07/2021,PROPERTY AND HIGHWAYS,ELECTRIC CENTER,06/07/2021,85.46,PROPERTY - WORKS ELEMENT,V001722756
ROCHDALE BOROUGH COUNCIL,06/07/2021,PROPERTY AND HIGHWAYS,ELECTRIC CENTER,06/07/2021,41.11,PROPERTY - WORKS ELEMENT,V001722757
ROCHDALE BOROUGH COUNCIL,01/07/2021,EARLY HELP AND SCHOOLS,AXIOM EDUCATION ROCHDALE LIMITED,01/07/2021,731265.3,PFI SCHEMES RPIX,V001722758
ROCHDALE BOROUGH COUNCIL,06/07/2021,PUBLIC HEALTH,THE OYSTER PARTNERSHIP LTD,06/07/2021,1406,AGENCY STAFF,V001722759
ROCHDALE BOROUGH COUNCIL,06/07/2021,NEIGHBOURHOODS AND ENVIRONMENT,THE OYSTER PARTNERSHIP LTD,06/07/2021,215,ACTIVITIES,V001722761
ROCHDALE BOROUGH COUNCIL,13/07/2021,EARLY HELP AND SCHOOLS,AXIOM EDUCATION ROCHDALE LIMITED,13/07/2021,1001.46,PFI SCHEMES RPIX,V001722762
ROCHDALE BOROUGH COUNCIL,06/07/2021,EARLY HELP AND SCHOOLS,AQUACOOL LTD,06/07/2021,72.93,REFRESHMENTS,V001722763
ROCHDALE BOROUGH COUNCIL,06/07/2021,NEIGHBOURHOODS AND ENVIRONMENT,AQUACOOL LTD,06/07/2021,40,EQUIPMENT - GENERAL,V001722764
ROCHDALE BOROUGH COUNCIL,06/07/2021,NEIGHBOURHOODS AND ENVIRONMENT,AQUACOOL LTD,06/07/2021,60,EQUIPMENT - GENERAL,V001722765
ROCHDALE BOROUGH COUNCIL,06/07/2021,NEIGHBOURHOODS AND ENVIRONMENT,AQUACOOL LTD,06/07/2021,20,EQUIPMENT - GENERAL,V001722766
ROCHDALE BOROUGH COUNCIL,12/07/2021,CHILDREN�S SOCIAL CARE,ROC NORTHWEST LTD,12/07/2021,14463.9,EBD (EMOT & BEHAV DIFF) PLACEMENTS,V001722767
ROCHDALE BOROUGH COUNCIL,06/07/2021,CHILDREN�S SOCIAL CARE,PARADIGM PROFESSIONAL CONSULTANCY LTD,06/07/2021,1435.65,AGENCY STAFF,V001722770
ROCHDALE BOROUGH COUNCIL,06/07/2021,EARLY HELP AND SCHOOLS,CHEADLE ROYAL SCHOOL PRIORY,06/07/2021,828,OTHER EST - SEN PROVISION,V001722771
ROCHDALE BOROUGH COUNCIL,06/07/2021,EARLY HELP AND SCHOOLS,CHEADLE ROYAL SCHOOL PRIORY,06/07/2021,3312,OTHER EST - SEN PROVISION,V001722772
ROCHDALE BOROUGH COUNCIL,06/07/2021,PROPERTY AND HIGHWAYS,ELECTRIC CENTER,06/07/2021,243.35,PROPERTY - WORKS ELEMENT,V001722773
ROCHDALE BOROUGH COUNCIL,06/07/2021,NEIGHBOURHOODS AND ENVIRONMENT,EXCLUSEC,06/07/2021,351.45,SECURITY,V001722775
ROCHDALE BOROUGH COUNCIL,06/07/2021,PUBLIC HEALTH,TRAFFORD MBC,06/07/2021,675,PH OTHER CONTRACTS,V001722779
ROCHDALE BOROUGH COUNCIL,12/07/2021,CHILDREN�S SOCIAL CARE,CARE IN MIND,12/07/2021,19290,EBD (EMOT & BEHAV DIFF) PLACEMENTS,V001722780
ROCHDALE BOROUGH COUNCIL,06/07/2021,ECONOMY DIRECTORATE,BRADSHAW GASS AND HOPE LLP,06/07/2021,2650,CONDITION SURVEYS,V001722783
ROCHDALE BOROUGH COUNCIL,06/07/2021,ADULT CARE LCO FUNCTIONS,UPS BUILDING AND MAINTENANCE LTD,06/07/2021,3045.69,TRANSACTIONS-EXPENDITURE,V001722788
ROCHDALE BOROUGH COUNCIL,06/07/2021,ADULT CARE LCO FUNCTIONS,UPS BUILDING AND MAINTENANCE LTD,06/07/2021,2030.46,TRANSACTIONS-EXPENDITURE,V001722788
ROCHDALE BOROUGH COUNCIL,06/07/2021,ADULT CARE LCO FUNCTIONS,UPS BUILDING AND MAINTENANCE LTD,06/07/2021,3068.89,MINOR BUILDING WORKS,V001722789
ROCHDALE BOROUGH COUNCIL,06/07/2021,ADULT CARE LCO FUNCTIONS,UPS BUILDING AND MAINTENANCE LTD,06/07/2021,2045.94,MINOR BUILDING WORKS,V001722789
ROCHDALE BOROUGH COUNCIL,06/07/2021,ADULT CARE LCO FUNCTIONS,UPS BUILDING AND MAINTENANCE LTD,06/07/2021,2794.66,TRANSACTIONS-EXPENDITURE,V001722790
ROCHDALE BOROUGH COUNCIL,06/07/2021,ADULT CARE LCO FUNCTIONS,UPS BUILDING AND MAINTENANCE LTD,06/07/2021,1863.11,TRANSACTIONS-EXPENDITURE,V001722790
ROCHDALE BOROUGH COUNCIL,06/07/2021,ADULT CARE LCO FUNCTIONS,UPS BUILDING AND MAINTENANCE LTD,06/07/2021,4620.18,MINOR BUILDING WORKS,V001722791
ROCHDALE BOROUGH COUNCIL,06/07/2021,ADULT CARE LCO FUNCTIONS,UPS BUILDING AND MAINTENANCE LTD,06/07/2021,3080.13,MINOR BUILDING WORKS,V001722791
ROCHDALE BOROUGH COUNCIL,06/07/2021,ADULT CARE LCO FUNCTIONS,UPS BUILDING AND MAINTENANCE LTD,06/07/2021,95,TRANSACTIONS-EXPENDITURE,V001722792
ROCHDALE BOROUGH COUNCIL,13/07/2021,RESOURCES,TOPMARK CLAIMS MANAGEMENT LTD,13/07/2021,4000,TRANSACTIONS-EXPENDITURE,V001722796
ROCHDALE BOROUGH COUNCIL,13/07/2021,NEIGHBOURHOODS AND ENVIRONMENT,THE OYSTER PARTNERSHIP LTD,13/07/2021,130,ACTIVITIES,V001722797
ROCHDALE BOROUGH COUNCIL,13/07/2021,NEIGHBOURHOODS AND ENVIRONMENT,THE OYSTER PARTNERSHIP LTD,13/07/2021,40,ACTIVITIES,V001722797
ROCHDALE BOROUGH COUNCIL,13/07/2021,NEIGHBOURHOODS AND ENVIRONMENT,THE OYSTER PARTNERSHIP LTD,13/07/2021,1671.23,AGENCY STAFF,V001722798
ROCHDALE BOROUGH COUNCIL,13/07/2021,CHILDREN�S SOCIAL CARE,THE BIG WORD,13/07/2021,280.8,TRANSLATION & INTERPRETATION,V001722799
ROCHDALE BOROUGH COUNCIL,13/07/2021,PROPERTY AND HIGHWAYS,LITE LTD,13/07/2021,325,ACTIVITIES,V001722800
ROCHDALE BOROUGH COUNCIL,12/07/2021,EARLY HELP AND SCHOOLS,VISION FOR EDUCATION LIMITED,12/07/2021,350,INDEPENDENT UNITS,V001722802
ROCHDALE BOROUGH COUNCIL,09/07/2021,CHILDREN�S SOCIAL CARE,FOSTERING SOLUTIONS LTD,09/07/2021,3290.32,FOSTER PARENTS BASIC ALLOWANCE,V001722803
ROCHDALE BOROUGH COUNCIL,12/07/2021,PUBLIC HEALTH,TURNING POINT,12/07/2021,2330,CONTRACTED SERVICES,V001722810
ROCHDALE BOROUGH COUNCIL,12/07/2021,EARLY HELP AND SCHOOLS,REDACTED - PERSONAL DATA,12/07/2021,1156.87,OTHER EST - SEN PROVISION,V001722811
ROCHDALE BOROUGH COUNCIL,12/07/2021,EARLY HELP AND SCHOOLS,APOLLO HOME HEALTHCARE,12/07/2021,191.2,HOME CARE - CHILDRENS SERVICES,V001722813
ROCHDALE BOROUGH COUNCIL,12/07/2021,CHILDREN�S SOCIAL CARE,D A LANGUAGES LIMITED,12/07/2021,47.75,TRANSLATION & INTERPRETATION,V001722815
ROCHDALE BOROUGH COUNCIL,12/07/2021,CHILDREN�S SOCIAL CARE,D A LANGUAGES LIMITED,12/07/2021,58.62,TRANSLATION & INTERPRETATION,V001722816
ROCHDALE BOROUGH COUNCIL,12/07/2021,CHILDREN�S SOCIAL CARE,D A LANGUAGES LIMITED,12/07/2021,58.62,TRANSLATION & INTERPRETATION,V001722817
ROCHDALE BOROUGH COUNCIL,12/07/2021,NEIGHBOURHOODS AND ENVIRONMENT,BIG LIFE CENTRES,12/07/2021,50178,GRANTS TO THE VOLUNTARY SECTOR,V001722818
ROCHDALE BOROUGH COUNCIL,08/07/2021,ECONOMY DIRECTORATE,KHIPU NETWORKS LTD,08/07/2021,1170.48,EXPENSES - GENERAL,V001722819
ROCHDALE BOROUGH COUNCIL,08/07/2021,ECONOMY DIRECTORATE,KHIPU NETWORKS LTD,08/07/2021,34.83,EXPENSES - GENERAL,V001722819
ROCHDALE BOROUGH COUNCIL,08/07/2021,ECONOMY DIRECTORATE,KHIPU NETWORKS LTD,08/07/2021,96.24,EXPENSES - GENERAL,V001722819
ROCHDALE BOROUGH COUNCIL,08/07/2021,ECONOMY DIRECTORATE,KHIPU NETWORKS LTD,08/07/2021,96.24,EXPENSES - GENERAL,V001722819
ROCHDALE BOROUGH COUNCIL,08/07/2021,ECONOMY DIRECTORATE,KHIPU NETWORKS LTD,08/07/2021,26.79,EXPENSES - GENERAL,V001722819
ROCHDALE BOROUGH COUNCIL,08/07/2021,NEIGHBOURHOODS AND ENVIRONMENT,KHIPU NETWORKS LTD,08/07/2021,473.26,TRANSACTIONS-EXPENDITURE,V001722820
ROCHDALE BOROUGH COUNCIL,08/07/2021,NEIGHBOURHOODS AND ENVIRONMENT,KHIPU NETWORKS LTD,08/07/2021,473.26,TRANSACTIONS-EXPENDITURE,V001722821
ROCHDALE BOROUGH COUNCIL,08/07/2021,ADULT CARE LCO FUNCTIONS,PHOENIX SOFTWARE LIMITED,08/07/2021,84.97,SOFTWARE,V001722822
ROCHDALE BOROUGH COUNCIL,08/07/2021,ADULT CARE LCO FUNCTIONS,PHOENIX SOFTWARE LIMITED,08/07/2021,84.97,SOFTWARE,V001722822
ROCHDALE BOROUGH COUNCIL,12/07/2021,CHILDREN�S SOCIAL CARE,BALTIMORE CONSULTING LTD,12/07/2021,2625,AGENCY STAFF,V001722824
ROCHDALE BOROUGH COUNCIL,13/07/2021,EARLY HELP AND SCHOOLS,REDACTED - PERSONAL DATA,13/07/2021,425.84,DIRECT PAYMENTS,V001722831
ROCHDALE BOROUGH COUNCIL,13/07/2021,CHILDREN�S SOCIAL CARE,THE BIG WORD,13/07/2021,211.25,TRANSLATION & INTERPRETATION,V001722834
ROCHDALE BOROUGH COUNCIL,13/07/2021,NEIGHBOURHOODS AND ENVIRONMENT,BANNER GROUP LIMITED,13/07/2021,24.8,PRINTING & STATIONERY,V001722835
ROCHDALE BOROUGH COUNCIL,13/07/2021,ECONOMY DIRECTORATE,ARTHUR J GALLAGHER INSURANCE LTD,13/07/2021,536.51,EXPENSES - GENERAL,V001722837
ROCHDALE BOROUGH COUNCIL,13/07/2021,EARLY HELP AND SCHOOLS,AXIOM EDUCATION ROCHDALE LIMITED,13/07/2021,11420.6,"DEV CAP - NEW CONSTRUCTION,CONVERSION",V001722840
ROCHDALE BOROUGH COUNCIL,13/07/2021,EARLY HELP AND SCHOOLS,AXIOM EDUCATION ROCHDALE LIMITED,13/07/2021,2050.63,"DEV CAP - NEW CONSTRUCTION,CONVERSION",V001722841
ROCHDALE BOROUGH COUNCIL,13/07/2021,EARLY HELP AND SCHOOLS,TTS GROUP LIMITED,13/07/2021,27.99,EQUIPMENT - GENERAL,V001722843
ROCHDALE BOROUGH COUNCIL,13/07/2021,EARLY HELP AND SCHOOLS,TTS GROUP LIMITED,13/07/2021,27.99,EQUIPMENT - GENERAL,V001722844
ROCHDALE BOROUGH COUNCIL,13/07/2021,ADULT CARE LCO FUNCTIONS,ROUTES HEALTHCARE NORTH LTD,13/07/2021,543.62,HOME CARE - ADULT SERVICES,V001722845
ROCHDALE BOROUGH COUNCIL,13/07/2021,ADULT CARE LCO FUNCTIONS,ROUTES HEALTHCARE NORTH LTD,13/07/2021,614.46,HOME CARE - ADULT SERVICES,V001722846
ROCHDALE BOROUGH COUNCIL,13/07/2021,ADULT CARE LCO FUNCTIONS,ROUTES HEALTHCARE NORTH LTD,13/07/2021,543.62,HOME CARE - ADULT SERVICES,V001722847
ROCHDALE BOROUGH COUNCIL,13/07/2021,ADULT CARE LCO FUNCTIONS,ROUTES HEALTHCARE NORTH LTD,13/07/2021,543.62,HOME CARE - ADULT SERVICES,V001722848
ROCHDALE BOROUGH COUNCIL,13/07/2021,ADULT CARE LCO FUNCTIONS,ROUTES HEALTHCARE NORTH LTD,13/07/2021,543.62,HOME CARE - ADULT SERVICES,V001722849
ROCHDALE BOROUGH COUNCIL,13/07/2021,NEIGHBOURHOODS AND ENVIRONMENT,ENTERPRISE FLEX-E-RENT,13/07/2021,1433.87,TRANSACTIONS-EXPENDITURE,V001722850
ROCHDALE BOROUGH COUNCIL,13/07/2021,NEIGHBOURHOODS AND ENVIRONMENT,PHS GROUP PLC,13/07/2021,81.75,EQUIPMENT - GENERAL,V001722851
ROCHDALE BOROUGH COUNCIL,13/07/2021,NEIGHBOURHOODS AND ENVIRONMENT,GAMMA BUSINESS COMMUNICATIONS,13/07/2021,3401.99,TELEPHONE EXPENDITURE,V001722852
ROCHDALE BOROUGH COUNCIL,13/07/2021,NEIGHBOURHOODS AND ENVIRONMENT,GAMMA BUSINESS COMMUNICATIONS,13/07/2021,1123.55,TELEPHONE EXPENDITURE,V001722852
ROCHDALE BOROUGH COUNCIL,13/07/2021,RESOURCES,EQUITA LIMITED,13/07/2021,0,TRANSACTIONS-EXPENDITURE,V001722853
ROCHDALE BOROUGH COUNCIL,13/07/2021,RESOURCES,EQUITA LIMITED,13/07/2021,0,TRANSACTIONS-EXPENDITURE,V001722853
ROCHDALE BOROUGH COUNCIL,12/07/2021,NEIGHBOURHOODS AND ENVIRONMENT,STAR TRAQ,12/07/2021,56,EQUIPMENT - GENERAL,V001722860
ROCHDALE BOROUGH COUNCIL,12/07/2021,ADULT CARE LCO FUNCTIONS,PREPAID FINANCIAL SERVICES,12/07/2021,1860,CONTRACTED SERVICES,V001722863
ROCHDALE BOROUGH COUNCIL,08/07/2021,ECONOMY DIRECTORATE,REACH PUBLISHING SERVICES LTD,08/07/2021,50.67,EQUIPMENT - GENERAL,V001722867
ROCHDALE BOROUGH COUNCIL,12/07/2021,RESOURCES,OXYGEN FINANCE LTD,12/07/2021,905.27,FEES / COMMISSION,V001722868
ROCHDALE BOROUGH COUNCIL,09/07/2021,PROPERTY AND HIGHWAYS,A AND D DOOR SYSTEMS LTD,09/07/2021,89,ELECTRICAL,V001722870
ROCHDALE BOROUGH COUNCIL,09/07/2021,PROPERTY AND HIGHWAYS,A AND D DOOR SYSTEMS LTD,09/07/2021,203,ELECTRICAL,V001722871
ROCHDALE BOROUGH COUNCIL,09/07/2021,PROPERTY AND HIGHWAYS,A AND D DOOR SYSTEMS LTD,09/07/2021,135,ELECTRICAL,V001722872
ROCHDALE BOROUGH COUNCIL,09/07/2021,ECONOMY DIRECTORATE,A AND D DOOR SYSTEMS LTD,09/07/2021,226,ELECTRICAL,V001722873
ROCHDALE BOROUGH COUNCIL,07/07/2021,NEIGHBOURHOODS AND ENVIRONMENT,LINK4LIFE CHARITY,07/07/2021,8000,ACTIVITIES,V001722875
ROCHDALE BOROUGH COUNCIL,12/07/2021,ADULT CARE LCO FUNCTIONS,STANNAH LIFT SERVICES LTD,12/07/2021,2867,MINOR BUILDING WORKS,V001722880
ROCHDALE BOROUGH COUNCIL,12/07/2021,NEIGHBOURHOODS AND ENVIRONMENT,HENDHAM HOTEL LTD,12/07/2021,2337,ACCOMMODATION,V001722881
ROCHDALE BOROUGH COUNCIL,12/07/2021,NEIGHBOURHOODS AND ENVIRONMENT,P & R FIRE SECURITY,12/07/2021,1119.89,FIRE / BURGLAR ALARMS,V001722883
ROCHDALE BOROUGH COUNCIL,12/07/2021,NEIGHBOURHOODS AND ENVIRONMENT,NORTH WEST PORTABLES,12/07/2021,368,FEES - PLANT MACHINERY EQUIPMENT,V001722885
ROCHDALE BOROUGH COUNCIL,13/07/2021,NEIGHBOURHOODS AND ENVIRONMENT,ROYAL MAIL GROUP LTD,13/07/2021,12.48,EQUIPMENT - GENERAL,V001722910
ROCHDALE BOROUGH COUNCIL,13/07/2021,EARLY HELP AND SCHOOLS,PATTERSONS BRISTOL LTD,13/07/2021,0.66,CONSUMABLES,V001722912
ROCHDALE BOROUGH COUNCIL,13/07/2021,EARLY HELP AND SCHOOLS,PATTERSONS BRISTOL LTD,13/07/2021,63.93,CONSUMABLES,V001722912
ROCHDALE BOROUGH COUNCIL,13/07/2021,NEIGHBOURHOODS AND ENVIRONMENT,PATTERSONS BRISTOL LTD,13/07/2021,41.58,CONSUMABLES,V001722913
ROCHDALE BOROUGH COUNCIL,13/07/2021,NEIGHBOURHOODS AND ENVIRONMENT,LANCASHIRE COUNTY COUNCIL,13/07/2021,155,ENV HEALTH-SAMPLES,V001722916
ROCHDALE BOROUGH COUNCIL,13/07/2021,NEIGHBOURHOODS AND ENVIRONMENT,LANCASHIRE COUNTY COUNCIL,13/07/2021,146,ENV HEALTH-SAMPLES,V001722916
ROCHDALE BOROUGH COUNCIL,13/07/2021,ADULT CARE LCO FUNCTIONS,ROUTES HEALTHCARE NORTH LTD,13/07/2021,1197,HOME CARE - ADULT SERVICES,V001722917
ROCHDALE BOROUGH COUNCIL,13/07/2021,PROPERTY AND HIGHWAYS,WATERMAN INFASTRUCTURE AND ENVIRONMENT LTD,13/07/2021,7045.2,MINOR BUILDING WORKS,V001722922
ROCHDALE BOROUGH COUNCIL,13/07/2021,PROPERTY AND HIGHWAYS,WATERMAN INFASTRUCTURE AND ENVIRONMENT LTD,13/07/2021,8066.28,ENGINEERS FEES,V001722923
ROCHDALE BOROUGH COUNCIL,13/07/2021,NEIGHBOURHOODS AND ENVIRONMENT,PATTERSONS BRISTOL LTD,13/07/2021,13.86,CONSUMABLES,V001722925
ROCHDALE BOROUGH COUNCIL,13/07/2021,ADULT CARE LCO FUNCTIONS,ROUTES HEALTHCARE NORTH LTD,13/07/2021,1197,HOME CARE - ADULT SERVICES,V001722927
ROCHDALE BOROUGH COUNCIL,13/07/2021,ADULT CARE LCO FUNCTIONS,ROUTES HEALTHCARE NORTH LTD,13/07/2021,968.31,HOME CARE - ADULT SERVICES,V001722928
ROCHDALE BOROUGH COUNCIL,13/07/2021,NEIGHBOURHOODS AND ENVIRONMENT,THE PROTON GROUP LIMITED,13/07/2021,335.52,CLEANING MATERIALS,V001722929
ROCHDALE BOROUGH COUNCIL,13/07/2021,PROPERTY AND HIGHWAYS,HOWARTH TIMBER AND BUILDING SUPPLIES LTD,13/07/2021,44.53,PROPERTY - WORKS ELEMENT,V001722930
ROCHDALE BOROUGH COUNCIL,13/07/2021,RESOURCES,FORBES SOLICITORS,13/07/2021,225,INPUT VAT -  ADJUSTMENTS,V001722931
ROCHDALE BOROUGH COUNCIL,13/07/2021,NEIGHBOURHOODS AND ENVIRONMENT,ANGLIA SIGN CASTING LIMITED,13/07/2021,50.17,EQUIPMENT - GENERAL,V001722932
ROCHDALE BOROUGH COUNCIL,13/07/2021,ADULT CARE LCO FUNCTIONS,MI HUB LTD,13/07/2021,20.98,"CLOTHES, UNIFORM AND LAUNDRY",V001722934
ROCHDALE BOROUGH COUNCIL,13/07/2021,NEIGHBOURHOODS AND ENVIRONMENT,STRATA RENEWABLES LTD,13/07/2021,1432.5,REPAIRS & ALTS OF BUILDINGS,V001722935
ROCHDALE BOROUGH COUNCIL,13/07/2021,PROPERTY AND HIGHWAYS,TAZIKER INDUSTRAIL LTD,13/07/2021,5834.61,ROADWORKS,V001722939
ROCHDALE BOROUGH COUNCIL,13/07/2021,PUBLIC HEALTH,STOCKPORT METROPOLITAN BOROUGH COUNCIL,13/07/2021,450,PH OTHER CONTRACTS,V001722958
ROCHDALE BOROUGH COUNCIL,13/07/2021,PUBLIC HEALTH,STOCKPORT METROPOLITAN BOROUGH COUNCIL,13/07/2021,450,PH OTHER CONTRACTS,V001722958
ROCHDALE BOROUGH COUNCIL,13/07/2021,ADULT CARE LCO FUNCTIONS,TUNSTALL HEALTHCARE (UK) LTD,13/07/2021,140,PURCHASE OF FURNITURE AND EQUIPMENT,V001722960
ROCHDALE BOROUGH COUNCIL,13/07/2021,ADULT CARE LCO FUNCTIONS,TUNSTALL HEALTHCARE (UK) LTD,13/07/2021,160,PURCHASE OF FURNITURE AND EQUIPMENT,V001722960
ROCHDALE BOROUGH COUNCIL,13/07/2021,ADULT CARE LCO FUNCTIONS,TUNSTALL HEALTHCARE (UK) LTD,13/07/2021,280,PURCHASE OF FURNITURE AND EQUIPMENT,V001722960
ROCHDALE BOROUGH COUNCIL,13/07/2021,ADULT CARE LCO FUNCTIONS,TUNSTALL HEALTHCARE (UK) LTD,13/07/2021,280,PURCHASE OF FURNITURE AND EQUIPMENT,V001722960
ROCHDALE BOROUGH COUNCIL,13/07/2021,ADULT CARE LCO FUNCTIONS,TUNSTALL HEALTHCARE (UK) LTD,13/07/2021,300,PURCHASE OF FURNITURE AND EQUIPMENT,V001722960
ROCHDALE BOROUGH COUNCIL,13/07/2021,PROPERTY AND HIGHWAYS,HOWARTH TIMBER AND BUILDING SUPPLIES LTD,13/07/2021,17.99,PROPERTY - WORKS ELEMENT,V001722963
ROCHDALE BOROUGH COUNCIL,05/07/2021,NEIGHBOURHOODS AND ENVIRONMENT,ALPINE RESCUE AND RECOVERY SERVICES LTD.,05/07/2021,150,VEHICLE MAINTENANCE,V001723052
ROCHDALE BOROUGH COUNCIL,05/07/2021,NEIGHBOURHOODS AND ENVIRONMENT,ALPINE RESCUE AND RECOVERY SERVICES LTD.,05/07/2021,150,VEHICLE MAINTENANCE,V001723052
ROCHDALE BOROUGH COUNCIL,05/07/2021,NEIGHBOURHOODS AND ENVIRONMENT,ALPINE RESCUE AND RECOVERY SERVICES LTD.,05/07/2021,250,VEHICLE MAINTENANCE,V001723052
ROCHDALE BOROUGH COUNCIL,05/07/2021,NEIGHBOURHOODS AND ENVIRONMENT,ALPINE RESCUE AND RECOVERY SERVICES LTD.,05/07/2021,150,VEHICLE MAINTENANCE,V001723052
ROCHDALE BOROUGH COUNCIL,05/07/2021,NEIGHBOURHOODS AND ENVIRONMENT,CICELEY COMMERCIALS LIMITED,05/07/2021,5.13,VEHICLE MAINTENANCE,V001723054
ROCHDALE BOROUGH COUNCIL,05/07/2021,NEIGHBOURHOODS AND ENVIRONMENT,CICELEY COMMERCIALS LIMITED,05/07/2021,82.8,VEHICLE MAINTENANCE,V001723054
ROCHDALE BOROUGH COUNCIL,05/07/2021,NEIGHBOURHOODS AND ENVIRONMENT,CICELEY COMMERCIALS LIMITED,05/07/2021,76.95,VEHICLE MAINTENANCE,V001723054
ROCHDALE BOROUGH COUNCIL,05/07/2021,NEIGHBOURHOODS AND ENVIRONMENT,CICELEY COMMERCIALS LIMITED,05/07/2021,10.26,VEHICLE MAINTENANCE,V001723054
ROCHDALE BOROUGH COUNCIL,05/07/2021,NEIGHBOURHOODS AND ENVIRONMENT,CICELEY COMMERCIALS LIMITED,05/07/2021,51.3,VEHICLE MAINTENANCE,V001723054
ROCHDALE BOROUGH COUNCIL,06/07/2021,NEIGHBOURHOODS AND ENVIRONMENT,TACHOGRAPH SERVICES,06/07/2021,73.81,VEHICLE MAINTENANCE,V001723055
ROCHDALE BOROUGH COUNCIL,06/07/2021,NEIGHBOURHOODS AND ENVIRONMENT,TACHOGRAPH SERVICES,06/07/2021,73.81,VEHICLE MAINTENANCE,V001723056
ROCHDALE BOROUGH COUNCIL,06/07/2021,NEIGHBOURHOODS AND ENVIRONMENT,F R SHARROCK LIMITED,06/07/2021,150,TRANSACTIONS-EXPENDITURE,V001723057
ROCHDALE BOROUGH COUNCIL,06/07/2021,NEIGHBOURHOODS AND ENVIRONMENT,F R SHARROCK LIMITED,06/07/2021,335.04,TRANSACTIONS-EXPENDITURE,V001723057
ROCHDALE BOROUGH COUNCIL,06/07/2021,NEIGHBOURHOODS AND ENVIRONMENT,ROLAND BARNES MAINTENANCE,06/07/2021,766,EQUIPMENT - GENERAL,V001723058
ROCHDALE BOROUGH COUNCIL,06/07/2021,NEIGHBOURHOODS AND ENVIRONMENT,ROLAND BARNES MAINTENANCE,06/07/2021,34.5,VEHICLE MAINTENANCE,V001723059
ROCHDALE BOROUGH COUNCIL,06/07/2021,NEIGHBOURHOODS AND ENVIRONMENT,ROLAND BARNES MAINTENANCE,06/07/2021,8,VEHICLE MAINTENANCE,V001723059
ROCHDALE BOROUGH COUNCIL,06/07/2021,NEIGHBOURHOODS AND ENVIRONMENT,ROLAND BARNES MAINTENANCE,06/07/2021,9.6,VEHICLE MAINTENANCE,V001723059
ROCHDALE BOROUGH COUNCIL,06/07/2021,NEIGHBOURHOODS AND ENVIRONMENT,ROLAND BARNES MAINTENANCE,06/07/2021,25,VEHICLE MAINTENANCE,V001723059
ROCHDALE BOROUGH COUNCIL,06/07/2021,NEIGHBOURHOODS AND ENVIRONMENT,ROLAND BARNES MAINTENANCE,06/07/2021,19.8,VEHICLE MAINTENANCE,V001723059
ROCHDALE BOROUGH COUNCIL,06/07/2021,NEIGHBOURHOODS AND ENVIRONMENT,ROLAND BARNES MAINTENANCE,06/07/2021,29.1,VEHICLE MAINTENANCE,V001723059
ROCHDALE BOROUGH COUNCIL,06/07/2021,NEIGHBOURHOODS AND ENVIRONMENT,ROLAND BARNES MAINTENANCE,06/07/2021,27,VEHICLE MAINTENANCE,V001723059
ROCHDALE BOROUGH COUNCIL,06/07/2021,NEIGHBOURHOODS AND ENVIRONMENT,BOC LIMITED,06/07/2021,24.6,VEHICLE MAINTENANCE,V001723060
ROCHDALE BOROUGH COUNCIL,06/07/2021,NEIGHBOURHOODS AND ENVIRONMENT,BOC LIMITED,06/07/2021,24.6,VEHICLE MAINTENANCE,V001723060
ROCHDALE BOROUGH COUNCIL,06/07/2021,NEIGHBOURHOODS AND ENVIRONMENT,BOC LIMITED,06/07/2021,83.3,VEHICLE MAINTENANCE,V001723060
ROCHDALE BOROUGH COUNCIL,06/07/2021,NEIGHBOURHOODS AND ENVIRONMENT,BOC LIMITED,06/07/2021,83.3,VEHICLE MAINTENANCE,V001723060
ROCHDALE BOROUGH COUNCIL,06/07/2021,NEIGHBOURHOODS AND ENVIRONMENT,BOC LIMITED,06/07/2021,85.75,VEHICLE MAINTENANCE,V001723060
ROCHDALE BOROUGH COUNCIL,06/07/2021,NEIGHBOURHOODS AND ENVIRONMENT,BOC LIMITED,06/07/2021,85.75,VEHICLE MAINTENANCE,V001723060
ROCHDALE BOROUGH COUNCIL,06/07/2021,NEIGHBOURHOODS AND ENVIRONMENT,BOC LIMITED,06/07/2021,71.4,VEHICLE MAINTENANCE,V001723060
ROCHDALE BOROUGH COUNCIL,06/07/2021,NEIGHBOURHOODS AND ENVIRONMENT,BOC LIMITED,06/07/2021,71.4,VEHICLE MAINTENANCE,V001723060
ROCHDALE BOROUGH COUNCIL,06/07/2021,NEIGHBOURHOODS AND ENVIRONMENT,BOC LIMITED,06/07/2021,6.7,VEHICLE MAINTENANCE,V001723060
ROCHDALE BOROUGH COUNCIL,06/07/2021,NEIGHBOURHOODS AND ENVIRONMENT,BOC LIMITED,06/07/2021,6.7,VEHICLE MAINTENANCE,V001723060
ROCHDALE BOROUGH COUNCIL,06/07/2021,NEIGHBOURHOODS AND ENVIRONMENT,BOC LIMITED,06/07/2021,6.5,VEHICLE MAINTENANCE,V001723060
ROCHDALE BOROUGH COUNCIL,06/07/2021,NEIGHBOURHOODS AND ENVIRONMENT,BOC LIMITED,06/07/2021,6.5,VEHICLE MAINTENANCE,V001723060
ROCHDALE BOROUGH COUNCIL,06/07/2021,NEIGHBOURHOODS AND ENVIRONMENT,BOC LIMITED,06/07/2021,3,VEHICLE MAINTENANCE,V001723060
ROCHDALE BOROUGH COUNCIL,06/07/2021,NEIGHBOURHOODS AND ENVIRONMENT,BOC LIMITED,06/07/2021,3,VEHICLE MAINTENANCE,V001723060
ROCHDALE BOROUGH COUNCIL,09/07/2021,NEIGHBOURHOODS AND ENVIRONMENT,VIZWEAR,09/07/2021,73.2,"CLOTHES, UNIFORM AND LAUNDRY",V001723063
ROCHDALE BOROUGH COUNCIL,09/07/2021,NEIGHBOURHOODS AND ENVIRONMENT,VIZWEAR,09/07/2021,145.8,"CLOTHES, UNIFORM AND LAUNDRY",V001723064
ROCHDALE BOROUGH COUNCIL,09/07/2021,NEIGHBOURHOODS AND ENVIRONMENT,VIZWEAR,09/07/2021,146.4,"CLOTHES, UNIFORM AND LAUNDRY",V001723065
ROCHDALE BOROUGH COUNCIL,09/07/2021,NEIGHBOURHOODS AND ENVIRONMENT,VIZWEAR,09/07/2021,243,"CLOTHES, UNIFORM AND LAUNDRY",V001723065
ROCHDALE BOROUGH COUNCIL,09/07/2021,NEIGHBOURHOODS AND ENVIRONMENT,CICELEY COMMERCIALS LIMITED,09/07/2021,239.4,VEHICLE MAINTENANCE,V001723066
ROCHDALE BOROUGH COUNCIL,09/07/2021,NEIGHBOURHOODS AND ENVIRONMENT,CICELEY COMMERCIALS LIMITED,09/07/2021,98.7,VEHICLE MAINTENANCE,V001723066
ROCHDALE BOROUGH COUNCIL,09/07/2021,NEIGHBOURHOODS AND ENVIRONMENT,CICELEY COMMERCIALS LIMITED,09/07/2021,87.12,VEHICLE MAINTENANCE,V001723066
ROCHDALE BOROUGH COUNCIL,05/07/2021,NEIGHBOURHOODS AND ENVIRONMENT,ROCHDALE AND DISTRICT CITIZENS ADVICE BUREAU,05/07/2021,25416.67,CITIZENS ADVICE BUREAU,V001723209
ROCHDALE BOROUGH COUNCIL,05/07/2021,PUBLIC HEALTH,OLDHAM COUNCIL,05/07/2021,550000,CONTRACTED SERVICES,V001723211
ROCHDALE BOROUGH COUNCIL,05/07/2021,PUBLIC HEALTH,THE PENNINE ACUTE HOSPITALS NHS TRUST,05/07/2021,24748.75,PH PENNINE ACUTE CONTRACT,V001723212
ROCHDALE BOROUGH COUNCIL,05/07/2021,NEIGHBOURHOODS AND ENVIRONMENT,PITNEY BOWES POSTAGE BY PHONE,05/07/2021,200,POSTAGE,V001723214
ROCHDALE BOROUGH COUNCIL,05/07/2021,NEIGHBOURHOODS AND ENVIRONMENT,PITNEY BOWES POSTAGE BY PHONE,05/07/2021,200,POSTAGE,V001723214
ROCHDALE BOROUGH COUNCIL,05/07/2021,PUBLIC HEALTH,EARLY BREAK,05/07/2021,75000,CONTRACTED SERVICES,V001723215
ROCHDALE BOROUGH COUNCIL,05/07/2021,PROPERTY AND HIGHWAYS,ENVIRONMENT AGENCY,05/07/2021,25828.5,ENVIRONMENTAL AGENCY FLOOD DEFENCE LEVY,V001723216
ROCHDALE BOROUGH COUNCIL,05/07/2021,NEIGHBOURHOODS AND ENVIRONMENT,LAMBERT SMITH HAMPTON,05/07/2021,11961.25,OTHER LOCAL AUTHORITIES,V001723219
ROCHDALE BOROUGH COUNCIL,05/07/2021,NEIGHBOURHOODS AND ENVIRONMENT,VICTIM SUPPORT,05/07/2021,14276.86,GRANTS TO THE NON VOLUNTARY SECTOR,V001723220
ROCHDALE BOROUGH COUNCIL,05/07/2021,NEIGHBOURHOODS AND ENVIRONMENT,ROCHDALE BOROUGHWIDE HOUSING,05/07/2021,41667,CONTRACTS,V001723221
ROCHDALE BOROUGH COUNCIL,05/07/2021,EARLY HELP AND SCHOOLS,BARNARDOS,05/07/2021,9631.17,ACTIVITIES,V001723222
ROCHDALE BOROUGH COUNCIL,05/07/2021,EARLY HELP AND SCHOOLS,BARNARDOS,05/07/2021,1810,ACTIVITIES,V001723223
ROCHDALE BOROUGH COUNCIL,05/07/2021,EARLY HELP AND SCHOOLS,LINK4LIFE CHARITY,05/07/2021,3511,ACTIVITIES,V001723224
ROCHDALE BOROUGH COUNCIL,05/07/2021,PUBLIC HEALTH,SAFENET DOMESTIC ABUSE SERVICE,05/07/2021,17291.88,PH OTHER CONTRACTS,V001723225
ROCHDALE BOROUGH COUNCIL,05/07/2021,PUBLIC HEALTH,LINK4LIFE CHARITY,05/07/2021,653925,LINK 4 LIFE CONTRACT,V001723226
ROCHDALE BOROUGH COUNCIL,05/07/2021,PUBLIC HEALTH,BRAHM FUNDCO 1 LTD,05/07/2021,6873.36,RENTS,V001723227
ROCHDALE BOROUGH COUNCIL,05/07/2021,NEIGHBOURHOODS AND ENVIRONMENT,JACOBS U.K. LTD,05/07/2021,26.98,RENTS,V001723228
ROCHDALE BOROUGH COUNCIL,05/07/2021,NEIGHBOURHOODS AND ENVIRONMENT,INSPIRE MIDDLETON,05/07/2021,300,SUPPLIES AND SERVICES PROVISION,V001723229
ROCHDALE BOROUGH COUNCIL,05/07/2021,NEIGHBOURHOODS AND ENVIRONMENT,HEYWOOD SVP FOOD BANK,05/07/2021,300,SUPPLIES AND SERVICES PROVISION,V001723230
ROCHDALE BOROUGH COUNCIL,05/07/2021,NEIGHBOURHOODS AND ENVIRONMENT,ROCHDALE FOODBANK,05/07/2021,750,SUPPLIES AND SERVICES PROVISION,V001723231
ROCHDALE BOROUGH COUNCIL,05/07/2021,NEIGHBOURHOODS AND ENVIRONMENT,GRAHAM POOLE LTD,05/07/2021,1625,RENTS,V001723232
ROCHDALE BOROUGH COUNCIL,05/07/2021,EARLY HELP AND SCHOOLS,SPORT WORKS GTR MANCHESTER LTD,05/07/2021,8637.31,ACTIVITIES,V001723233
ROCHDALE BOROUGH COUNCIL,05/07/2021,RESOURCES,PARKING EYE,05/07/2021,41.67,CAR PARKING COSTS,V001723234
ROCHDALE BOROUGH COUNCIL,05/07/2021,PUBLIC HEALTH,HORNBEAM CPAM LIMITED,05/07/2021,3092.14,RENTS,V001723235
ROCHDALE BOROUGH COUNCIL,05/07/2021,PUBLIC HEALTH,BIG LIFE CENTRES,05/07/2021,108780.85,PH BIG LIFE CONTRACT,V001723236
ROCHDALE BOROUGH COUNCIL,05/07/2021,PUBLIC HEALTH,ACTION TOGETHER,05/07/2021,22916.66,PH OTHER CONTRACTS,V001723237
ROCHDALE BOROUGH COUNCIL,05/07/2021,PUBLIC HEALTH,VIRGIN CARE SERVICES LIMITED,05/07/2021,265009.29,VIRGIN CARE,V001723238
ROCHDALE BOROUGH COUNCIL,13/07/2021,RESOURCES,CRITIQOM LIMITED,13/07/2021,553.25,PRINTING & STATIONERY,V001723241
ROCHDALE BOROUGH COUNCIL,13/07/2021,RESOURCES,CRITIQOM LIMITED,13/07/2021,1605.25,POSTAGE,V001723242
ROCHDALE BOROUGH COUNCIL,13/07/2021,PROPERTY AND HIGHWAYS,H2O FLOWTECH LTD,13/07/2021,232,MINOR BUILDING WORKS,V001723245
ROCHDALE BOROUGH COUNCIL,13/07/2021,NEIGHBOURHOODS AND ENVIRONMENT,FORENSICS LTD,13/07/2021,1251.64,TOXICOLOGY PAYMENTS,V001723246
ROCHDALE BOROUGH COUNCIL,13/07/2021,CHILDREN�S SOCIAL CARE,PARADIGM PROFESSIONAL CONSULTANCY LTD,13/07/2021,1333.2,AGENCY STAFF,V001723249
ROCHDALE BOROUGH COUNCIL,13/07/2021,CHILDREN�S SOCIAL CARE,PARADIGM PROFESSIONAL CONSULTANCY LTD,13/07/2021,335.75,AGENCY STAFF,V001723250
ROCHDALE BOROUGH COUNCIL,13/07/2021,CHILDREN�S SOCIAL CARE,PARADIGM PROFESSIONAL CONSULTANCY LTD,13/07/2021,1176.3,AGENCY STAFF,V001723251
ROCHDALE BOROUGH COUNCIL,12/07/2021,NEIGHBOURHOODS AND ENVIRONMENT,GAMMA BUSINESS COMMUNICATIONS,12/07/2021,725.38,TELEPHONE EXPENDITURE,V001723252
ROCHDALE BOROUGH COUNCIL,12/07/2021,NEIGHBOURHOODS AND ENVIRONMENT,GAMMA BUSINESS COMMUNICATIONS,12/07/2021,2270.62,TELEPHONE EXPENDITURE,V001723252
ROCHDALE BOROUGH COUNCIL,02/07/2021,PROPERTY AND HIGHWAYS,WHEELDON BROTHERS WASTE LIMITED,02/07/2021,207.99,TIPPING CHARGES,V001723254
ROCHDALE BOROUGH COUNCIL,02/07/2021,PROPERTY AND HIGHWAYS,WHEELDON BROTHERS WASTE LIMITED,02/07/2021,207.99,TIPPING CHARGES,V001723254
ROCHDALE BOROUGH COUNCIL,13/07/2021,EARLY HELP AND SCHOOLS,BANNER GROUP LIMITED,13/07/2021,9.78,PRINTING & STATIONERY,V001723255
ROCHDALE BOROUGH COUNCIL,13/07/2021,EARLY HELP AND SCHOOLS,BANNER GROUP LIMITED,13/07/2021,10.3,PRINTING & STATIONERY,V001723255
ROCHDALE BOROUGH COUNCIL,13/07/2021,EARLY HELP AND SCHOOLS,BANNER GROUP LIMITED,13/07/2021,2.35,PRINTING & STATIONERY,V001723255
ROCHDALE BOROUGH COUNCIL,13/07/2021,EARLY HELP AND SCHOOLS,BANNER GROUP LIMITED,13/07/2021,3.53,PRINTING & STATIONERY,V001723255
ROCHDALE BOROUGH COUNCIL,13/07/2021,EARLY HELP AND SCHOOLS,BANNER GROUP LIMITED,13/07/2021,5.21,PRINTING & STATIONERY,V001723255
ROCHDALE BOROUGH COUNCIL,13/07/2021,EARLY HELP AND SCHOOLS,BANNER GROUP LIMITED,13/07/2021,0.81,PRINTING & STATIONERY,V001723255
ROCHDALE BOROUGH COUNCIL,13/07/2021,EARLY HELP AND SCHOOLS,BANNER GROUP LIMITED,13/07/2021,7.7,PRINTING & STATIONERY,V001723255
ROCHDALE BOROUGH COUNCIL,13/07/2021,NEIGHBOURHOODS AND ENVIRONMENT,MTC SERVICES LIMITED,13/07/2021,85,VEHICLE MAINTENANCE,V001723266
ROCHDALE BOROUGH COUNCIL,13/07/2021,NEIGHBOURHOODS AND ENVIRONMENT,MTC SERVICES LIMITED,13/07/2021,176.52,VEHICLE MAINTENANCE,V001723267
ROCHDALE BOROUGH COUNCIL,06/07/2021,NEIGHBOURHOODS AND ENVIRONMENT,PETERS LIMITED,06/07/2021,225.06,REFERENCE BOOKS/NEWSPAPERS/PERIODICALS,V001723279
ROCHDALE BOROUGH COUNCIL,06/07/2021,NEIGHBOURHOODS AND ENVIRONMENT,PETERS LIMITED,06/07/2021,225.06,REFERENCE BOOKS/NEWSPAPERS/PERIODICALS,V001723279
ROCHDALE BOROUGH COUNCIL,06/07/2021,NEIGHBOURHOODS AND ENVIRONMENT,PETERS LIMITED,06/07/2021,731.52,REFERENCE BOOKS/NEWSPAPERS/PERIODICALS,V001723280
ROCHDALE BOROUGH COUNCIL,06/07/2021,NEIGHBOURHOODS AND ENVIRONMENT,PETERS LIMITED,06/07/2021,731.52,REFERENCE BOOKS/NEWSPAPERS/PERIODICALS,V001723280
ROCHDALE BOROUGH COUNCIL,12/07/2021,NEIGHBOURHOODS AND ENVIRONMENT,PETERS LIMITED,12/07/2021,160.3,REFERENCE BOOKS/NEWSPAPERS/PERIODICALS,V001723281
ROCHDALE BOROUGH COUNCIL,12/07/2021,NEIGHBOURHOODS AND ENVIRONMENT,PETERS LIMITED,12/07/2021,160.3,REFERENCE BOOKS/NEWSPAPERS/PERIODICALS,V001723281
ROCHDALE BOROUGH COUNCIL,12/07/2021,NEIGHBOURHOODS AND ENVIRONMENT,PETERS LIMITED,12/07/2021,409.26,REFERENCE BOOKS/NEWSPAPERS/PERIODICALS,V001723282
ROCHDALE BOROUGH COUNCIL,12/07/2021,NEIGHBOURHOODS AND ENVIRONMENT,PETERS LIMITED,12/07/2021,409.26,REFERENCE BOOKS/NEWSPAPERS/PERIODICALS,V001723282
ROCHDALE BOROUGH COUNCIL,12/07/2021,NEIGHBOURHOODS AND ENVIRONMENT,DANDY BOOKSELLERS,12/07/2021,4.49,REFERENCE BOOKS/NEWSPAPERS/PERIODICALS,V001723283
ROCHDALE BOROUGH COUNCIL,12/07/2021,NEIGHBOURHOODS AND ENVIRONMENT,DANDY BOOKSELLERS,12/07/2021,4.49,REFERENCE BOOKS/NEWSPAPERS/PERIODICALS,V001723283
ROCHDALE BOROUGH COUNCIL,02/07/2021,NEIGHBOURHOODS AND ENVIRONMENT,ASKEWS AND HOLTS LIBRARY SERVICES LTD,02/07/2021,9.99,REFERENCE BOOKS/NEWSPAPERS/PERIODICALS,V001723284
ROCHDALE BOROUGH COUNCIL,13/07/2021,ECONOMY DIRECTORATE,ADT FIRE & SECURITY PLC,13/07/2021,179,SECURITY,V001723286
ROCHDALE BOROUGH COUNCIL,16/07/2021,EARLY HELP AND SCHOOLS,SECURITY PLUS LIMITED,16/07/2021,12.21,TRANSACTIONS-EXPENDITURE,V001723292
ROCHDALE BOROUGH COUNCIL,13/07/2021,ECONOMY DIRECTORATE,TALKTALK BUSINESS,13/07/2021,410.31,TELEPHONE EXPENDITURE,V001723294
ROCHDALE BOROUGH COUNCIL,01/07/2021,CHILDREN�S SOCIAL CARE,REDACTED - PERSONAL DATA,01/07/2021,270,CHILDRENS SUBSISTENCE,V001723296
ROCHDALE BOROUGH COUNCIL,06/07/2021,NEIGHBOURHOODS AND ENVIRONMENT,UNITED UTILITIES WATER PLC,06/07/2021,149.24,WATER CHARGES,V001723298
ROCHDALE BOROUGH COUNCIL,06/07/2021,NEIGHBOURHOODS AND ENVIRONMENT,UNITED UTILITIES WATER PLC,06/07/2021,149.24,WATER CHARGES,V001723298
ROCHDALE BOROUGH COUNCIL,16/07/2021,NEIGHBOURHOODS AND ENVIRONMENT,WHISTL UK LTD,16/07/2021,104.81,TRANSACTIONS-EXPENDITURE,V001723301
ROCHDALE BOROUGH COUNCIL,16/07/2021,NEIGHBOURHOODS AND ENVIRONMENT,STANDARD FUEL OILS,16/07/2021,1197,TRANSACTIONS-EXPENDITURE,V001723303
ROCHDALE BOROUGH COUNCIL,16/07/2021,NEIGHBOURHOODS AND ENVIRONMENT,STANDARD FUEL OILS,16/07/2021,30000,TRANSACTIONS-EXPENDITURE,V001723303
ROCHDALE BOROUGH COUNCIL,14/07/2021,ADULT CARE LCO FUNCTIONS,POLLOCK LIFTS,14/07/2021,15508,ADAPTATIONS,V001723306
ROCHDALE BOROUGH COUNCIL,16/07/2021,NEIGHBOURHOODS AND ENVIRONMENT,JGM AGENCY,16/07/2021,540,PUBLICITY,V001723307
ROCHDALE BOROUGH COUNCIL,16/07/2021,NEIGHBOURHOODS AND ENVIRONMENT,VICTIM SUPPORT,16/07/2021,4000,PROJECTS,V001723308
ROCHDALE BOROUGH COUNCIL,13/07/2021,EARLY HELP AND SCHOOLS,CROSSROADS TOGETHER LTD,13/07/2021,7977.28,HOME CARE - CHILDRENS SERVICES,V001723309
ROCHDALE BOROUGH COUNCIL,13/07/2021,EARLY HELP AND SCHOOLS,APOLLO HOME HEALTHCARE,13/07/2021,382.4,HOME CARE - CHILDRENS SERVICES,V001723310
ROCHDALE BOROUGH COUNCIL,13/07/2021,ADULT CARE LCO FUNCTIONS,ACTION FIRST ASSESSMENTS LTD,13/07/2021,1300,FEES / COMMISSION,V001723311
ROCHDALE BOROUGH COUNCIL,13/07/2021,EARLY HELP AND SCHOOLS,MCQUEENS MUSICAL INSTRUMENTS REPAIR SPEC,13/07/2021,1395,MAINTENANCE,V001723313
ROCHDALE BOROUGH COUNCIL,13/07/2021,ADULT CARE LCO FUNCTIONS,SARA MEDICS LTD,13/07/2021,173.37,EXPENSES - GENERAL,V001723314
ROCHDALE BOROUGH COUNCIL,13/07/2021,PROPERTY AND HIGHWAYS,ARCO GROUP LIMITED,13/07/2021,81.5,"CLOTHES, UNIFORM AND LAUNDRY",V001723315
ROCHDALE BOROUGH COUNCIL,13/07/2021,PROPERTY AND HIGHWAYS,ARCO GROUP LIMITED,13/07/2021,81.5,"CLOTHES, UNIFORM AND LAUNDRY",V001723315
ROCHDALE BOROUGH COUNCIL,13/07/2021,PROPERTY AND HIGHWAYS,ARCO GROUP LIMITED,13/07/2021,81.5,"CLOTHES, UNIFORM AND LAUNDRY",V001723315
ROCHDALE BOROUGH COUNCIL,16/07/2021,CHILDREN�S SOCIAL CARE,THE BIG WORD,16/07/2021,1925.95,TRANSLATION & INTERPRETATION,V001723317
ROCHDALE BOROUGH COUNCIL,16/07/2021,PROPERTY AND HIGHWAYS,HOWARTH TIMBER AND BUILDING SUPPLIES LTD,16/07/2021,73.17,PROPERTY - WORKS ELEMENT,V001723319
ROCHDALE BOROUGH COUNCIL,16/07/2021,NEIGHBOURHOODS AND ENVIRONMENT,JGM AGENCY,16/07/2021,4455,PUBLICITY,V001723320
ROCHDALE BOROUGH COUNCIL,02/07/2021,NEIGHBOURHOODS AND ENVIRONMENT,GRAVITAS RECRUITMENT GROUP,02/07/2021,1150,CAPITAL - STAFFING AGENCY PAYMENTS,V001723321
ROCHDALE BOROUGH COUNCIL,16/07/2021,NEIGHBOURHOODS AND ENVIRONMENT,AGM TELECOMMUNICATIONS LIMITED,16/07/2021,10,TELEPHONE EXPENDITURE,V001723322
ROCHDALE BOROUGH COUNCIL,16/07/2021,NEIGHBOURHOODS AND ENVIRONMENT,AGM TELECOMMUNICATIONS LIMITED,16/07/2021,10,TELEPHONE EXPENDITURE,V001723322
ROCHDALE BOROUGH COUNCIL,16/07/2021,NEIGHBOURHOODS AND ENVIRONMENT,JGM AGENCY,16/07/2021,1608.75,PUBLICITY,V001723323
ROCHDALE BOROUGH COUNCIL,16/07/2021,NEIGHBOURHOODS AND ENVIRONMENT,ASSOCIATED CLEANING CONTRACTORS,16/07/2021,55,CLEANING AND CARETAKING COSTS,V001723324
ROCHDALE BOROUGH COUNCIL,16/07/2021,NEIGHBOURHOODS AND ENVIRONMENT,SECURITY PLUS LIMITED,16/07/2021,24.42,SECURITY,V001723325
ROCHDALE BOROUGH COUNCIL,16/07/2021,NEIGHBOURHOODS AND ENVIRONMENT,SECURITY PLUS LIMITED,16/07/2021,30.6,SECURITY,V001723325
ROCHDALE BOROUGH COUNCIL,16/07/2021,PROPERTY AND HIGHWAYS,SECURITY PLUS LIMITED,16/07/2021,45.9,SECURITY,V001723325
ROCHDALE BOROUGH COUNCIL,13/07/2021,ADULT CARE LCO FUNCTIONS,ROUTES HEALTHCARE NORTH LTD,13/07/2021,86.28,HOME CARE - ADULT SERVICES,V001723326
ROCHDALE BOROUGH COUNCIL,13/07/2021,PROPERTY AND HIGHWAYS,FRANK KEY TOOL HIRE LTD,13/07/2021,39,PROPERTY - WORKS ELEMENT,V001723329
ROCHDALE BOROUGH COUNCIL,13/07/2021,NEIGHBOURHOODS AND ENVIRONMENT,PATTERSONS BRISTOL LTD,13/07/2021,2,CLEANING EQUIPMENT,V001723330
ROCHDALE BOROUGH COUNCIL,13/07/2021,NEIGHBOURHOODS AND ENVIRONMENT,PATTERSONS BRISTOL LTD,13/07/2021,3.03,CLEANING MATERIALS,V001723330
ROCHDALE BOROUGH COUNCIL,13/07/2021,NEIGHBOURHOODS AND ENVIRONMENT,PATTERSONS BRISTOL LTD,13/07/2021,8.55,CLEANING MATERIALS,V001723330
ROCHDALE BOROUGH COUNCIL,13/07/2021,NEIGHBOURHOODS AND ENVIRONMENT,PATTERSONS BRISTOL LTD,13/07/2021,9.81,CLEANING EQUIPMENT,V001723330
ROCHDALE BOROUGH COUNCIL,13/07/2021,NEIGHBOURHOODS AND ENVIRONMENT,PATTERSONS BRISTOL LTD,13/07/2021,19.89,CLEANING MATERIALS,V001723330
ROCHDALE BOROUGH COUNCIL,13/07/2021,NEIGHBOURHOODS AND ENVIRONMENT,PATTERSONS BRISTOL LTD,13/07/2021,28.2,CLEANING MATERIALS,V001723330
ROCHDALE BOROUGH COUNCIL,13/07/2021,NEIGHBOURHOODS AND ENVIRONMENT,PATTERSONS BRISTOL LTD,13/07/2021,8.35,CLEANING MATERIALS,V001723330
ROCHDALE BOROUGH COUNCIL,13/07/2021,NEIGHBOURHOODS AND ENVIRONMENT,PATTERSONS BRISTOL LTD,13/07/2021,44.7,CLEANING MATERIALS,V001723330
ROCHDALE BOROUGH COUNCIL,13/07/2021,NEIGHBOURHOODS AND ENVIRONMENT,PATTERSONS BRISTOL LTD,13/07/2021,24.2,CLEANING EQUIPMENT,V001723330
ROCHDALE BOROUGH COUNCIL,13/07/2021,NEIGHBOURHOODS AND ENVIRONMENT,PATTERSONS BRISTOL LTD,13/07/2021,18,CLEANING EQUIPMENT,V001723330
ROCHDALE BOROUGH COUNCIL,13/07/2021,NEIGHBOURHOODS AND ENVIRONMENT,PATTERSONS BRISTOL LTD,13/07/2021,22.5,CLEANING MATERIALS,V001723330
ROCHDALE BOROUGH COUNCIL,13/07/2021,NEIGHBOURHOODS AND ENVIRONMENT,GRANART,13/07/2021,78,EQUIPMENT - GENERAL,V001723333
ROCHDALE BOROUGH COUNCIL,13/07/2021,NEIGHBOURHOODS AND ENVIRONMENT,GRANART,13/07/2021,20,EQUIPMENT - GENERAL,V001723333
ROCHDALE BOROUGH COUNCIL,13/07/2021,NEIGHBOURHOODS AND ENVIRONMENT,GRANART,13/07/2021,3352,MATERIAL - GENERAL,V001723334
ROCHDALE BOROUGH COUNCIL,01/07/2021,EARLY HELP AND SCHOOLS,PRESTIGE NURSING AND CARE,01/07/2021,479.4,SEN COSTS MET BY SCHOOLS,V001723347
ROCHDALE BOROUGH COUNCIL,01/07/2021,EARLY HELP AND SCHOOLS,PRESTIGE NURSING AND CARE,01/07/2021,453.7,SEN COSTS MET BY SCHOOLS,V001723348
ROCHDALE BOROUGH COUNCIL,12/07/2021,NEIGHBOURHOODS AND ENVIRONMENT,WILKES VENDING SERVICES LIMITED,12/07/2021,138.93,VENDING MACHINES,V001723349
ROCHDALE BOROUGH COUNCIL,12/07/2021,NEIGHBOURHOODS AND ENVIRONMENT,WILKES VENDING SERVICES LIMITED,12/07/2021,138.93,VENDING MACHINES,V001723349
ROCHDALE BOROUGH COUNCIL,09/07/2021,ADULT CARE LCO FUNCTIONS,UPS BUILDING AND MAINTENANCE LTD,09/07/2021,3716.44,MINOR BUILDING WORKS,V001723352
ROCHDALE BOROUGH COUNCIL,09/07/2021,ADULT CARE LCO FUNCTIONS,UPS BUILDING AND MAINTENANCE LTD,09/07/2021,2477.64,MINOR BUILDING WORKS,V001723352
ROCHDALE BOROUGH COUNCIL,09/07/2021,ADULT CARE LCO FUNCTIONS,UPS BUILDING AND MAINTENANCE LTD,09/07/2021,2458.71,MINOR BUILDING WORKS,V001723353
ROCHDALE BOROUGH COUNCIL,09/07/2021,ADULT CARE LCO FUNCTIONS,UPS BUILDING AND MAINTENANCE LTD,09/07/2021,1639.15,MINOR BUILDING WORKS,V001723353
ROCHDALE BOROUGH COUNCIL,13/07/2021,NEIGHBOURHOODS AND ENVIRONMENT,COLO CARE GENERAL SURGICAL SERVICES LTD,13/07/2021,1540,EXPERT REPORTS,V001723354
ROCHDALE BOROUGH COUNCIL,13/07/2021,PROPERTY AND HIGHWAYS,ARCO GROUP LIMITED,13/07/2021,136.45,"CLOTHES, UNIFORM AND LAUNDRY",V001723357
ROCHDALE BOROUGH COUNCIL,13/07/2021,PROPERTY AND HIGHWAYS,ARCO GROUP LIMITED,13/07/2021,136.45,"CLOTHES, UNIFORM AND LAUNDRY",V001723357
ROCHDALE BOROUGH COUNCIL,13/07/2021,PROPERTY AND HIGHWAYS,ARCO GROUP LIMITED,13/07/2021,136.45,"CLOTHES, UNIFORM AND LAUNDRY",V001723357
ROCHDALE BOROUGH COUNCIL,06/07/2021,RESOURCES,ROSSENDALES,06/07/2021,0,INPUT VAT -  ADJUSTMENTS,V001723358
ROCHDALE BOROUGH COUNCIL,12/07/2021,NEIGHBOURHOODS AND ENVIRONMENT,H2O FLOWTECH LTD,12/07/2021,969.3,REPAIRS & ALTS OF BUILDINGS,V001723359
ROCHDALE BOROUGH COUNCIL,06/07/2021,RESOURCES,NSL LIMITED,06/07/2021,0,INPUT VAT -  ADJUSTMENTS,V001723360
ROCHDALE BOROUGH COUNCIL,06/07/2021,RESOURCES,ROSSENDALES,06/07/2021,0,INPUT VAT -  ADJUSTMENTS,V001723361
ROCHDALE BOROUGH COUNCIL,12/07/2021,EARLY HELP AND SCHOOLS,VISION FOR EDUCATION LIMITED,12/07/2021,350,INDEPENDENT UNITS,V001723362
ROCHDALE BOROUGH COUNCIL,12/07/2021,RESOURCES,ROCHDALE OCCUPATIONAL HEALTH SERVICE LTD,12/07/2021,200,TRAINING-QUALIFICATION,V001723365
ROCHDALE BOROUGH COUNCIL,06/07/2021,ADULT CARE LCO FUNCTIONS,SARA MEDICS LTD,06/07/2021,173.37,EXPENSES - GENERAL,V001723367
ROCHDALE BOROUGH COUNCIL,06/07/2021,ADULT CARE LCO FUNCTIONS,SARA MEDICS LTD,06/07/2021,173.37,EXPENSES - GENERAL,V001723368
ROCHDALE BOROUGH COUNCIL,06/07/2021,ADULT CARE LCO FUNCTIONS,SARA MEDICS LTD,06/07/2021,173.37,EXPENSES - GENERAL,V001723369
ROCHDALE BOROUGH COUNCIL,06/07/2021,ADULT CARE LCO FUNCTIONS,SARA MEDICS LTD,06/07/2021,173.37,EXPENSES - GENERAL,V001723370
ROCHDALE BOROUGH COUNCIL,06/07/2021,ADULT CARE LCO FUNCTIONS,SARA MEDICS LTD,06/07/2021,173.37,EXPENSES - GENERAL,V001723371
ROCHDALE BOROUGH COUNCIL,06/07/2021,ADULT CARE LCO FUNCTIONS,SARA MEDICS LTD,06/07/2021,173.37,EXPENSES - GENERAL,V001723372
ROCHDALE BOROUGH COUNCIL,06/07/2021,ADULT CARE LCO FUNCTIONS,SARA MEDICS LTD,06/07/2021,173.37,EXPENSES - GENERAL,V001723373
ROCHDALE BOROUGH COUNCIL,12/07/2021,ADULT CARE LCO FUNCTIONS,UPS BUILDING AND MAINTENANCE LTD,12/07/2021,3132.39,MINOR BUILDING WORKS,V001723374
ROCHDALE BOROUGH COUNCIL,12/07/2021,ADULT CARE LCO FUNCTIONS,UPS BUILDING AND MAINTENANCE LTD,12/07/2021,2088.27,MINOR BUILDING WORKS,V001723374
ROCHDALE BOROUGH COUNCIL,13/07/2021,PROPERTY AND HIGHWAYS,FRANK KEY TOOL HIRE LTD,13/07/2021,57.2,PROPERTY - WORKS ELEMENT,V001723382
ROCHDALE BOROUGH COUNCIL,14/07/2021,EARLY HELP AND SCHOOLS,BBB PRINTING,14/07/2021,1,PRINTING & STATIONERY,V001723383
ROCHDALE BOROUGH COUNCIL,14/07/2021,EARLY HELP AND SCHOOLS,BBB PRINTING,14/07/2021,7,PRINTING & STATIONERY,V001723383
ROCHDALE BOROUGH COUNCIL,13/07/2021,ECONOMY DIRECTORATE,G2 RECRUITMENT SOLUTIONS LTD,13/07/2021,1207.5,AGENCY STAFF,V001723390
ROCHDALE BOROUGH COUNCIL,13/07/2021,ECONOMY DIRECTORATE,G2 RECRUITMENT SOLUTIONS LTD,13/07/2021,1297.65,AGENCY STAFF,V001723391
ROCHDALE BOROUGH COUNCIL,09/07/2021,NEIGHBOURHOODS AND ENVIRONMENT,KINGS CHAMBERS,09/07/2021,150,CAPITAL SALARIES,V001723392
ROCHDALE BOROUGH COUNCIL,13/07/2021,EARLY HELP AND SCHOOLS,BRADSHAW GASS AND HOPE LLP,13/07/2021,2631.45,CONSULTANTS FEES,V001723393
ROCHDALE BOROUGH COUNCIL,12/07/2021,NEIGHBOURHOODS AND ENVIRONMENT,RAPID SECURE,12/07/2021,170,MINOR BUILDING WORKS,V001723394
ROCHDALE BOROUGH COUNCIL,13/07/2021,PROPERTY AND HIGHWAYS,WATERMAN INFASTRUCTURE AND ENVIRONMENT LTD,13/07/2021,5485.5,AGENCY STAFF,V001723395
ROCHDALE BOROUGH COUNCIL,13/07/2021,PROPERTY AND HIGHWAYS,WATERMAN INFASTRUCTURE AND ENVIRONMENT LTD,13/07/2021,9212.63,ENGINEERS FEES,V001723396
ROCHDALE BOROUGH COUNCIL,13/07/2021,NEIGHBOURHOODS AND ENVIRONMENT,STAR TRAQ,13/07/2021,8000,EQUIPMENT - GENERAL,V001723397
ROCHDALE BOROUGH COUNCIL,13/07/2021,PROPERTY AND HIGHWAYS,METRIC GROUP LTD,13/07/2021,8268,EQUIPMENT - GENERAL,V001723398
ROCHDALE BOROUGH COUNCIL,16/07/2021,CHILDREN�S SOCIAL CARE,FORENSIC TESTING SERVICE LTD,16/07/2021,50,MEDICAL FEES,V001724970
ROCHDALE BOROUGH COUNCIL,16/07/2021,NEIGHBOURHOODS AND ENVIRONMENT,CARRICK SIGNS LTD,16/07/2021,41,EQUIPMENT - GENERAL,V001724971
ROCHDALE BOROUGH COUNCIL,01/07/2021,ADULT CARE LCO FUNCTIONS,CHERISH UK LTD,01/07/2021,24290,HOME CARE - ADULT SERVICES,V001724973
ROCHDALE BOROUGH COUNCIL,07/07/2021,NEIGHBOURHOODS AND ENVIRONMENT,E ON ENERGY SOLUTIONS LIMITED,07/07/2021,65.21,STATUTORY UNDERTAKING-UTILITY COMPANIES,V001725005
ROCHDALE BOROUGH COUNCIL,02/07/2021,PROPERTY AND HIGHWAYS,H ROTHWELL AND CO LTD,02/07/2021,13.82,PROPERTY - WORKS ELEMENT,V001725006
ROCHDALE BOROUGH COUNCIL,13/07/2021,PROPERTY AND HIGHWAYS,ELECTRIC CENTER,13/07/2021,25,PROPERTY - WORKS ELEMENT,V001725007
ROCHDALE BOROUGH COUNCIL,13/07/2021,PROPERTY AND HIGHWAYS,ELECTRIC CENTER,13/07/2021,128.37,PROPERTY - WORKS ELEMENT,V001725008
ROCHDALE BOROUGH COUNCIL,13/07/2021,PROPERTY AND HIGHWAYS,ELECTRIC CENTER,13/07/2021,66.97,PROPERTY - WORKS ELEMENT,V001725009
ROCHDALE BOROUGH COUNCIL,13/07/2021,ADULT CARE LCO FUNCTIONS,ROUTES HEALTHCARE NORTH LTD,13/07/2021,931.5,HOME CARE - ADULT SERVICES,V001725010
ROCHDALE BOROUGH COUNCIL,13/07/2021,ADULT CARE LCO FUNCTIONS,ROUTES HEALTHCARE NORTH LTD,13/07/2021,1086.75,HOME CARE - ADULT SERVICES,V001725011
ROCHDALE BOROUGH COUNCIL,13/07/2021,ADULT CARE LCO FUNCTIONS,ROUTES HEALTHCARE NORTH LTD,13/07/2021,1118.25,HOME CARE - ADULT SERVICES,V001725012
ROCHDALE BOROUGH COUNCIL,13/07/2021,ADULT CARE LCO FUNCTIONS,ROUTES HEALTHCARE NORTH LTD,13/07/2021,414.99,HOME CARE - ADULT SERVICES,V001725013
ROCHDALE BOROUGH COUNCIL,13/07/2021,ADULT CARE LCO FUNCTIONS,PHOENIX SOFTWARE LIMITED,13/07/2021,144,TRAINING,V001725471
ROCHDALE BOROUGH COUNCIL,13/07/2021,ADULT CARE LCO FUNCTIONS,PHOENIX SOFTWARE LIMITED,13/07/2021,144,TRAINING,V001725471
ROCHDALE BOROUGH COUNCIL,16/07/2021,NEIGHBOURHOODS AND ENVIRONMENT,SPIN PRINT SOLUTIONS,16/07/2021,45,EXTERNAL CONTRACTED PRINTING,V001725478
ROCHDALE BOROUGH COUNCIL,13/07/2021,RESOURCES,EQUITA LIMITED,13/07/2021,0,TRANSACTIONS-EXPENDITURE,V001725484
ROCHDALE BOROUGH COUNCIL,13/07/2021,RESOURCES,EQUITA LIMITED,13/07/2021,0,TRANSACTIONS-EXPENDITURE,V001725484
ROCHDALE BOROUGH COUNCIL,13/07/2021,RESOURCES,EQUITA LIMITED,13/07/2021,0,TRANSACTIONS-EXPENDITURE,V001725486
ROCHDALE BOROUGH COUNCIL,13/07/2021,RESOURCES,EQUITA LIMITED,13/07/2021,0,TRANSACTIONS-EXPENDITURE,V001725486
ROCHDALE BOROUGH COUNCIL,13/07/2021,RESOURCES,EQUITA LIMITED,13/07/2021,0,TRANSACTIONS-EXPENDITURE,V001725487
ROCHDALE BOROUGH COUNCIL,13/07/2021,RESOURCES,EQUITA LIMITED,13/07/2021,0,TRANSACTIONS-EXPENDITURE,V001725487
ROCHDALE BOROUGH COUNCIL,13/07/2021,RESOURCES,EQUITA LIMITED,13/07/2021,0,TRANSACTIONS-EXPENDITURE,V001725488
ROCHDALE BOROUGH COUNCIL,13/07/2021,RESOURCES,EQUITA LIMITED,13/07/2021,0,TRANSACTIONS-EXPENDITURE,V001725488
ROCHDALE BOROUGH COUNCIL,13/07/2021,PROPERTY AND HIGHWAYS,WATERMAN INFASTRUCTURE AND ENVIRONMENT LTD,13/07/2021,3486,ENGINEERS FEES,V001725489
ROCHDALE BOROUGH COUNCIL,13/07/2021,ADULT CARE LCO FUNCTIONS,ROUTES HEALTHCARE NORTH LTD,13/07/2021,1003.57,HOME CARE - ADULT SERVICES,V001725490
ROCHDALE BOROUGH COUNCIL,13/07/2021,ADULT CARE LCO FUNCTIONS,ROUTES HEALTHCARE NORTH LTD,13/07/2021,1112.06,HOME CARE - ADULT SERVICES,V001725491
ROCHDALE BOROUGH COUNCIL,13/07/2021,ADULT CARE LCO FUNCTIONS,ROUTES HEALTHCARE NORTH LTD,13/07/2021,968.31,HOME CARE - ADULT SERVICES,V001725492
ROCHDALE BOROUGH COUNCIL,13/07/2021,ADULT CARE LCO FUNCTIONS,ROUTES HEALTHCARE NORTH LTD,13/07/2021,1086.75,HOME CARE - ADULT SERVICES,V001725493
ROCHDALE BOROUGH COUNCIL,13/07/2021,ECONOMY DIRECTORATE,ARROW BUSINESS COMMUNICATIONS LTD,13/07/2021,160,TELEPHONE EXPENDITURE,V001725507
ROCHDALE BOROUGH COUNCIL,13/07/2021,PROPERTY AND HIGHWAYS,METRIC GROUP LTD,13/07/2021,18.5,EQUIPMENT - GENERAL,V001725511
ROCHDALE BOROUGH COUNCIL,13/07/2021,ADULT CARE LCO FUNCTIONS,ROUTES HEALTHCARE NORTH LTD,13/07/2021,1086.75,HOME CARE - ADULT SERVICES,V001725531
ROCHDALE BOROUGH COUNCIL,19/07/2021,NEIGHBOURHOODS AND ENVIRONMENT,JENKINSON OFFICE SUPPLIES,19/07/2021,139.3,EXPENSES - GENERAL,V001725538
ROCHDALE BOROUGH COUNCIL,19/07/2021,ECONOMY DIRECTORATE,BRITISH TELECOMMUNICATIONS PLC,19/07/2021,203.8,TELEPHONE EXPENDITURE,V001725539
ROCHDALE BOROUGH COUNCIL,19/07/2021,ECONOMY DIRECTORATE,BRITISH TELECOMMUNICATIONS PLC,19/07/2021,203.8,TELEPHONE EXPENDITURE,V001725539
ROCHDALE BOROUGH COUNCIL,19/07/2021,ECONOMY DIRECTORATE,BRITISH TELECOMMUNICATIONS PLC,19/07/2021,203.8,TELEPHONE EXPENDITURE,V001725539
ROCHDALE BOROUGH COUNCIL,19/07/2021,ECONOMY DIRECTORATE,BRITISH TELECOMMUNICATIONS PLC,19/07/2021,44,TELEPHONE EXPENDITURE,V001725539
ROCHDALE BOROUGH COUNCIL,19/07/2021,ECONOMY DIRECTORATE,BRITISH TELECOMMUNICATIONS PLC,19/07/2021,44,TELEPHONE EXPENDITURE,V001725539
ROCHDALE BOROUGH COUNCIL,19/07/2021,ECONOMY DIRECTORATE,BRITISH TELECOMMUNICATIONS PLC,19/07/2021,44,TELEPHONE EXPENDITURE,V001725539
ROCHDALE BOROUGH COUNCIL,19/07/2021,RESOURCES,TRAFFORD MBC,19/07/2021,10000,FEES / COMMISSION,V001725540
ROCHDALE BOROUGH COUNCIL,19/07/2021,EARLY HELP AND SCHOOLS,TOR VIEW SCHOOL,19/07/2021,9131.37,OTHER EST - SEN PROVISION,V001725542
ROCHDALE BOROUGH COUNCIL,19/07/2021,EARLY HELP AND SCHOOLS,TOR VIEW SCHOOL,19/07/2021,4411.04,OTHER EST - SEN PROVISION,V001725542
ROCHDALE BOROUGH COUNCIL,19/07/2021,EARLY HELP AND SCHOOLS,TOR VIEW SCHOOL,19/07/2021,3496.25,OTHER EST - SEN PROVISION,V001725542
ROCHDALE BOROUGH COUNCIL,19/07/2021,EARLY HELP AND SCHOOLS,SADDLEWORTH ENVIRONMENTAL EDUCATION,19/07/2021,1750,OTHER EST - SEN PROVISION,V001725544
ROCHDALE BOROUGH COUNCIL,02/07/2021,CHILDREN�S SOCIAL CARE,STEP AHEAD,02/07/2021,1100.8,YOUNG PEOPLES RENTS,V001725546
ROCHDALE BOROUGH COUNCIL,02/07/2021,CHILDREN�S SOCIAL CARE,STEP AHEAD,02/07/2021,59.2,YOUNGE PERSONS ALLOWANCE,V001725546
ROCHDALE BOROUGH COUNCIL,19/07/2021,CHILDREN�S SOCIAL CARE,RK MEDICAL PRACTICE,19/07/2021,73.86,MEDICAL FEES,V001725547
ROCHDALE BOROUGH COUNCIL,19/07/2021,CHILDREN�S SOCIAL CARE,RK MEDICAL PRACTICE,19/07/2021,73.86,MEDICAL FEES,V001725548
ROCHDALE BOROUGH COUNCIL,19/07/2021,CHILDREN�S SOCIAL CARE,BEECHWOOD MEDICAL CENTRE,19/07/2021,73.86,MEDICAL FEES,V001725549
ROCHDALE BOROUGH COUNCIL,19/07/2021,CHILDREN�S SOCIAL CARE,BEECHWOOD MEDICAL CENTRE,19/07/2021,73.86,MEDICAL FEES,V001725550
ROCHDALE BOROUGH COUNCIL,02/07/2021,CHILDREN�S SOCIAL CARE,DR A ZAMAN DR I K BABAR AND PARTNERS,02/07/2021,73.86,MEDICAL FEES,V001725551
ROCHDALE BOROUGH COUNCIL,02/07/2021,CHILDREN�S SOCIAL CARE,DR A ZAMAN DR I K BABAR AND PARTNERS,02/07/2021,73.86,MEDICAL FEES,V001725552
ROCHDALE BOROUGH COUNCIL,19/07/2021,COMMISSIONING AND STATUTORY,BADENOCH & CLARK,19/07/2021,590,CONSULTANT FEES,V001725554
ROCHDALE BOROUGH COUNCIL,19/07/2021,PROPERTY AND HIGHWAYS,ARCO GROUP LIMITED,19/07/2021,18.59,"CLOTHES, UNIFORM AND LAUNDRY",V001725555
ROCHDALE BOROUGH COUNCIL,19/07/2021,PROPERTY AND HIGHWAYS,ARCO GROUP LIMITED,19/07/2021,18.59,"CLOTHES, UNIFORM AND LAUNDRY",V001725555
ROCHDALE BOROUGH COUNCIL,19/07/2021,PROPERTY AND HIGHWAYS,ARCO GROUP LIMITED,19/07/2021,18.59,"CLOTHES, UNIFORM AND LAUNDRY",V001725555
ROCHDALE BOROUGH COUNCIL,19/07/2021,RESOURCES,CRITIQOM LIMITED,19/07/2021,30,PRINTING & STATIONERY,V001725557
ROCHDALE BOROUGH COUNCIL,19/07/2021,NEIGHBOURHOODS AND ENVIRONMENT,PPL PRS LIMITED,19/07/2021,1759.19,LICENCE,V001725559
ROCHDALE BOROUGH COUNCIL,19/07/2021,ADULT CARE LCO FUNCTIONS,POLLOCK LIFTS,19/07/2021,10352.68,MINOR BUILDING WORKS,V001725560
ROCHDALE BOROUGH COUNCIL,19/07/2021,FINANCE CONTROL,NHS BUSINESS SERVICES AUTHORITY,19/07/2021,3072.66,PENS INC ACT PMTS,V001725561
ROCHDALE BOROUGH COUNCIL,19/07/2021,RESOURCES,LAVAT CONSULTING LIMITED,19/07/2021,270,PROFESSIONAL FEES,V001725563
ROCHDALE BOROUGH COUNCIL,19/07/2021,ECONOMY DIRECTORATE,OPUS ENERGY LTD,19/07/2021,42.11,GAS,V001725564
ROCHDALE BOROUGH COUNCIL,19/07/2021,NEIGHBOURHOODS AND ENVIRONMENT,ORCHARD RECYCLING SERVICE LTD,19/07/2021,1377.5,CONTRACTS,V001725565
ROCHDALE BOROUGH COUNCIL,19/07/2021,RESOURCES,FORBES SOLICITORS,19/07/2021,478,INPUT VAT -  ADJUSTMENTS,V001725566
ROCHDALE BOROUGH COUNCIL,19/07/2021,EARLY HELP AND SCHOOLS,EVAC AND CHAIR INTERNATIONAL LIMITED,19/07/2021,900,TRAINING-NON QUALIFICATION,V001725567
ROCHDALE BOROUGH COUNCIL,19/07/2021,EARLY HELP AND SCHOOLS,EVAC AND CHAIR INTERNATIONAL LIMITED,19/07/2021,75,TRAINING-NON QUALIFICATION,V001725567
ROCHDALE BOROUGH COUNCIL,19/07/2021,EARLY HELP AND SCHOOLS,EVAC AND CHAIR INTERNATIONAL LIMITED,19/07/2021,40,TRAINING-NON QUALIFICATION,V001725567
ROCHDALE BOROUGH COUNCIL,19/07/2021,NEIGHBOURHOODS AND ENVIRONMENT,ROYAL MAIL GROUP LTD,19/07/2021,6.16,POSTAGE,V001725568
ROCHDALE BOROUGH COUNCIL,13/07/2021,ADULT CARE LCO FUNCTIONS,ELDERCARE UK LTD,13/07/2021,1890,SERVICE LEVEL AGREEMENTS,V001725572
ROCHDALE BOROUGH COUNCIL,13/07/2021,NEIGHBOURHOODS AND ENVIRONMENT,ENTERPRISE FLEX-E-RENT,13/07/2021,1741.63,TRANSACTIONS-EXPENDITURE,V001725573
ROCHDALE BOROUGH COUNCIL,13/07/2021,RESOURCES,EQUITA LIMITED,13/07/2021,0,TRANSACTIONS-EXPENDITURE,V001725574
ROCHDALE BOROUGH COUNCIL,13/07/2021,RESOURCES,EQUITA LIMITED,13/07/2021,0,TRANSACTIONS-EXPENDITURE,V001725574
ROCHDALE BOROUGH COUNCIL,13/07/2021,NEIGHBOURHOODS AND ENVIRONMENT,BLACKPOOL  COUNCIL,13/07/2021,72900,SOFTWARE,V001725576
ROCHDALE BOROUGH COUNCIL,13/07/2021,NEIGHBOURHOODS AND ENVIRONMENT,SPIN PRINT SOLUTIONS,13/07/2021,19,PRINTING,V001725580
ROCHDALE BOROUGH COUNCIL,13/07/2021,NEIGHBOURHOODS AND ENVIRONMENT,BRADSHAW GASS AND HOPE LLP,13/07/2021,675,TRANSACTIONS-EXPENDITURE,V001725581
ROCHDALE BOROUGH COUNCIL,13/07/2021,NEIGHBOURHOODS AND ENVIRONMENT,PJ COMBUSTION SOLUTIONS LTD,13/07/2021,380,SPECIFIED MAINTENANCE,V001725589
ROCHDALE BOROUGH COUNCIL,13/07/2021,ECONOMY DIRECTORATE,IRWELL STREET METALS,13/07/2021,212.88,REFUSE DISPOSAL,V001725590
ROCHDALE BOROUGH COUNCIL,13/07/2021,CHILDREN�S SOCIAL CARE,PARADIGM PROFESSIONAL CONSULTANCY LTD,13/07/2021,1125,AGENCY STAFF,V001725592
ROCHDALE BOROUGH COUNCIL,13/07/2021,NEIGHBOURHOODS AND ENVIRONMENT,STHREE PARTNERSHIP LLP,13/07/2021,750,CAPITAL - STAFFING AGENCY PAYMENTS,V001725593
ROCHDALE BOROUGH COUNCIL,13/07/2021,ADULT CARE LCO FUNCTIONS,SARA MEDICS LTD,13/07/2021,173.37,EXPENSES - GENERAL,V001725595
ROCHDALE BOROUGH COUNCIL,13/07/2021,ECONOMY DIRECTORATE,ROSSLEE CONSTRUCTION,13/07/2021,49603.79,MINOR BUILDING WORKS,V001725596
ROCHDALE BOROUGH COUNCIL,13/07/2021,ECONOMY DIRECTORATE,ARROW BUSINESS COMMUNICATIONS LTD,13/07/2021,161,SUPPLIES AND SERVICES PROVISION,V001725598
ROCHDALE BOROUGH COUNCIL,13/07/2021,PUBLIC HEALTH,TURNING POINT,13/07/2021,6524,CONTRACTED SERVICES,V001725600
ROCHDALE BOROUGH COUNCIL,13/07/2021,PUBLIC HEALTH,TURNING POINT,13/07/2021,3262,CONTRACTED SERVICES,V001725601
ROCHDALE BOROUGH COUNCIL,16/07/2021,EARLY HELP AND SCHOOLS,ADT FIRE & SECURITY PLC,16/07/2021,610.16,ENGINEERS FEES,V001725602
ROCHDALE BOROUGH COUNCIL,01/07/2021,CHILDREN�S SOCIAL CARE,TIMEOUT CHILDRENS HOMES LTD,01/07/2021,19600,EBD (EMOT & BEHAV DIFF) PLACEMENTS,V001725603
ROCHDALE BOROUGH COUNCIL,13/07/2021,NEIGHBOURHOODS AND ENVIRONMENT,STRATA RENEWABLES LTD,13/07/2021,2526,MINOR BUILDING WORKS,V001725604
ROCHDALE BOROUGH COUNCIL,13/07/2021,ADULT CARE LCO FUNCTIONS,SHERIDAN LIFTS LTD,13/07/2021,2978.64,MAINTENANCE STAIRLIFTS,V001725605
ROCHDALE BOROUGH COUNCIL,13/07/2021,ECONOMY DIRECTORATE,PROFILE HARDWARE LTD,13/07/2021,58,FIRE,V001725606
ROCHDALE BOROUGH COUNCIL,16/07/2021,PROPERTY AND HIGHWAYS,ATG ACCESS LTD,16/07/2021,4251.61,REPAIRS & ALTS OF BUILDINGS,V001725608
ROCHDALE BOROUGH COUNCIL,16/07/2021,NEIGHBOURHOODS AND ENVIRONMENT,BANNER GROUP LIMITED,16/07/2021,515.5,PRINTING & STATIONERY,V001725610
ROCHDALE BOROUGH COUNCIL,13/07/2021,EARLY HELP AND SCHOOLS,CROSSROADS TOGETHER LTD,13/07/2021,344,HOME CARE - CHILDRENS SERVICES,V001725611
ROCHDALE BOROUGH COUNCIL,13/07/2021,EARLY HELP AND SCHOOLS,KHIPU NETWORKS LTD,13/07/2021,473.26,REPAIRS & ALTS OF BUILDINGS,V001725612
ROCHDALE BOROUGH COUNCIL,13/07/2021,ECONOMY DIRECTORATE,ELECTRIC CENTER,13/07/2021,36.75,PROPERTY - WORKS ELEMENT,V001725613
ROCHDALE BOROUGH COUNCIL,13/07/2021,ADULT CARE LCO FUNCTIONS,ACTION FIRST ASSESSMENTS LTD,13/07/2021,1625,FEES / COMMISSION,V001725614
ROCHDALE BOROUGH COUNCIL,28/07/2021,EARLY HELP AND SCHOOLS,RELIANCE MEDICAL,28/07/2021,2.7,CONSUMABLES,V001725616
ROCHDALE BOROUGH COUNCIL,28/07/2021,EARLY HELP AND SCHOOLS,RELIANCE MEDICAL,28/07/2021,0.07,CONSUMABLES,V001725616
ROCHDALE BOROUGH COUNCIL,28/07/2021,EARLY HELP AND SCHOOLS,RELIANCE MEDICAL,28/07/2021,0.2,CONSUMABLES,V001725616
ROCHDALE BOROUGH COUNCIL,28/07/2021,EARLY HELP AND SCHOOLS,RELIANCE MEDICAL,28/07/2021,4.28,CONSUMABLES,V001725616
ROCHDALE BOROUGH COUNCIL,28/07/2021,EARLY HELP AND SCHOOLS,RELIANCE MEDICAL,28/07/2021,9.95,CONSUMABLES,V001725616
ROCHDALE BOROUGH COUNCIL,13/07/2021,PUBLIC HEALTH,ALLIANCE DISPOSABLES LIMITED,13/07/2021,10.25,CONSUMABLES,V001725617
ROCHDALE BOROUGH COUNCIL,13/07/2021,ECONOMY DIRECTORATE,ADT FIRE & SECURITY PLC,13/07/2021,179,SECURITY,V001725618
ROCHDALE BOROUGH COUNCIL,13/07/2021,PUBLIC HEALTH,ALLIANCE DISPOSABLES LIMITED,13/07/2021,12.41,CONSUMABLES,V001725619
ROCHDALE BOROUGH COUNCIL,13/07/2021,CHILDREN�S SOCIAL CARE,D A LANGUAGES LIMITED,13/07/2021,50.75,TRANSLATION & INTERPRETATION,V001725620
ROCHDALE BOROUGH COUNCIL,13/07/2021,ECONOMY DIRECTORATE,ASSOCIATED CLEANING CONTRACTORS,13/07/2021,60,WINDOWS,V001725622
ROCHDALE BOROUGH COUNCIL,13/07/2021,ECONOMY DIRECTORATE,ASSOCIATED CLEANING CONTRACTORS,13/07/2021,42.44,WINDOWS,V001725634
ROCHDALE BOROUGH COUNCIL,19/07/2021,ECONOMY DIRECTORATE,HI TECH CONTROLS BOLTON LTD,19/07/2021,263.5,MAINTENANCE,V001725642
ROCHDALE BOROUGH COUNCIL,13/07/2021,PROPERTY AND HIGHWAYS,METRIC GROUP LTD,13/07/2021,156.5,EQUIPMENT - GENERAL,V001725648
ROCHDALE BOROUGH COUNCIL,16/07/2021,PROPERTY AND HIGHWAYS,BIKE RIGHT LTD,16/07/2021,3060,ACTIVITIES,V001725649
ROCHDALE BOROUGH COUNCIL,16/07/2021,PROPERTY AND HIGHWAYS,BIKE RIGHT LTD,16/07/2021,3060,ACTIVITIES,V001725649
ROCHDALE BOROUGH COUNCIL,13/07/2021,ECONOMY DIRECTORATE,CHUBB FIRE AND SECURITY LIMITED,13/07/2021,139.59,ELECTRICAL,V001725651
ROCHDALE BOROUGH COUNCIL,23/07/2021,CHILDREN�S SOCIAL CARE,ACTION FOR CHILDREN,23/07/2021,52128,ADOPTION PAYMENTS,V001725652
ROCHDALE BOROUGH COUNCIL,01/07/2021,ADULT CARE LCO FUNCTIONS,REED SPECIALIST RECRUITMENT LTD,01/07/2021,69.6,AGENCY STAFF,V001725716
ROCHDALE BOROUGH COUNCIL,01/07/2021,ADULT CARE LCO FUNCTIONS,REED SPECIALIST RECRUITMENT LTD,01/07/2021,83.76,CAPITAL - STAFFING AGENCY PAYMENTS,V001725716
ROCHDALE BOROUGH COUNCIL,01/07/2021,ADULT CARE LCO FUNCTIONS,REED SPECIALIST RECRUITMENT LTD,01/07/2021,25.2,AGENCY STAFF,V001725716
ROCHDALE BOROUGH COUNCIL,01/07/2021,CHILDREN�S SOCIAL CARE,REED SPECIALIST RECRUITMENT LTD,01/07/2021,54.48,AGENCY STAFF,V001725716
ROCHDALE BOROUGH COUNCIL,01/07/2021,CHILDREN�S SOCIAL CARE,REED SPECIALIST RECRUITMENT LTD,01/07/2021,4.4,AGENCY STAFF,V001725716
ROCHDALE BOROUGH COUNCIL,01/07/2021,CHILDREN�S SOCIAL CARE,REED SPECIALIST RECRUITMENT LTD,01/07/2021,5.68,AGENCY STAFF,V001725716
ROCHDALE BOROUGH COUNCIL,01/07/2021,EARLY HELP AND SCHOOLS,REED SPECIALIST RECRUITMENT LTD,01/07/2021,28.8,AGENCY STAFF,V001725716
ROCHDALE BOROUGH COUNCIL,01/07/2021,CHILDREN�S SOCIAL CARE,REED SPECIALIST RECRUITMENT LTD,01/07/2021,17.1,AGENCY STAFF,V001725716
ROCHDALE BOROUGH COUNCIL,01/07/2021,CHILDREN�S SOCIAL CARE,REED SPECIALIST RECRUITMENT LTD,01/07/2021,14.4,AGENCY STAFF,V001725716
ROCHDALE BOROUGH COUNCIL,01/07/2021,CHILDREN�S SOCIAL CARE,REED SPECIALIST RECRUITMENT LTD,01/07/2021,15.52,AGENCY STAFF,V001725716
ROCHDALE BOROUGH COUNCIL,01/07/2021,CHILDREN�S SOCIAL CARE,REED SPECIALIST RECRUITMENT LTD,01/07/2021,8.8,AGENCY STAFF,V001725716
ROCHDALE BOROUGH COUNCIL,01/07/2021,CHILDREN�S SOCIAL CARE,REED SPECIALIST RECRUITMENT LTD,01/07/2021,18.4,AGENCY STAFF,V001725716
ROCHDALE BOROUGH COUNCIL,01/07/2021,CHILDREN�S SOCIAL CARE,REED SPECIALIST RECRUITMENT LTD,01/07/2021,26.4,AGENCY STAFF,V001725716
ROCHDALE BOROUGH COUNCIL,01/07/2021,CHILDREN�S SOCIAL CARE,REED SPECIALIST RECRUITMENT LTD,01/07/2021,20,AGENCY STAFF,V001725716
ROCHDALE BOROUGH COUNCIL,01/07/2021,CHILDREN�S SOCIAL CARE,REED SPECIALIST RECRUITMENT LTD,01/07/2021,55.6,AGENCY STAFF,V001725716
ROCHDALE BOROUGH COUNCIL,01/07/2021,CHILDREN�S SOCIAL CARE,REED SPECIALIST RECRUITMENT LTD,01/07/2021,21.52,AGENCY STAFF,V001725716
ROCHDALE BOROUGH COUNCIL,01/07/2021,CHILDREN�S SOCIAL CARE,REED SPECIALIST RECRUITMENT LTD,01/07/2021,28.8,AGENCY STAFF,V001725716
ROCHDALE BOROUGH COUNCIL,01/07/2021,CHILDREN�S SOCIAL CARE,REED SPECIALIST RECRUITMENT LTD,01/07/2021,0.64,AGENCY STAFF,V001725716
ROCHDALE BOROUGH COUNCIL,01/07/2021,CHILDREN�S SOCIAL CARE,REED SPECIALIST RECRUITMENT LTD,01/07/2021,10.4,AGENCY STAFF,V001725716
ROCHDALE BOROUGH COUNCIL,01/07/2021,CHILDREN�S SOCIAL CARE,REED SPECIALIST RECRUITMENT LTD,01/07/2021,11.2,AGENCY STAFF,V001725716
ROCHDALE BOROUGH COUNCIL,01/07/2021,ADULT CARE LCO FUNCTIONS,REED SPECIALIST RECRUITMENT LTD,01/07/2021,826.74,AGENCY STAFF,V001725716
ROCHDALE BOROUGH COUNCIL,01/07/2021,CHILDREN�S SOCIAL CARE,REED SPECIALIST RECRUITMENT LTD,01/07/2021,1387.8,AGENCY STAFF,V001725716
ROCHDALE BOROUGH COUNCIL,01/07/2021,PROPERTY AND HIGHWAYS,REED SPECIALIST RECRUITMENT LTD,01/07/2021,870.87,AGENCY STAFF,V001725716
ROCHDALE BOROUGH COUNCIL,01/07/2021,CHILDREN�S SOCIAL CARE,REED SPECIALIST RECRUITMENT LTD,01/07/2021,1387.8,AGENCY STAFF,V001725716
ROCHDALE BOROUGH COUNCIL,01/07/2021,NEIGHBOURHOODS AND ENVIRONMENT,REED SPECIALIST RECRUITMENT LTD,01/07/2021,668.72,AGENCY STAFF,V001725716
ROCHDALE BOROUGH COUNCIL,01/07/2021,ADULT CARE LCO FUNCTIONS,REED SPECIALIST RECRUITMENT LTD,01/07/2021,497.13,AGENCY STAFF,V001725716
ROCHDALE BOROUGH COUNCIL,01/07/2021,ADULT CARE LCO FUNCTIONS,REED SPECIALIST RECRUITMENT LTD,01/07/2021,825.84,AGENCY STAFF,V001725716
ROCHDALE BOROUGH COUNCIL,01/07/2021,ECONOMY DIRECTORATE,REED SPECIALIST RECRUITMENT LTD,01/07/2021,637.31,AGENCY STAFF,V001725716
ROCHDALE BOROUGH COUNCIL,01/07/2021,ADULT CARE LCO FUNCTIONS,REED SPECIALIST RECRUITMENT LTD,01/07/2021,336.85,AGENCY STAFF,V001725716
ROCHDALE BOROUGH COUNCIL,01/07/2021,ECONOMY DIRECTORATE,REED SPECIALIST RECRUITMENT LTD,01/07/2021,1445.27,CAPITAL SALARIES,V001725716
ROCHDALE BOROUGH COUNCIL,01/07/2021,CHILDREN�S SOCIAL CARE,REED SPECIALIST RECRUITMENT LTD,01/07/2021,1276.8,AGENCY STAFF,V001725716
ROCHDALE BOROUGH COUNCIL,01/07/2021,NEIGHBOURHOODS AND ENVIRONMENT,REED SPECIALIST RECRUITMENT LTD,01/07/2021,840.9,AGENCY STAFF,V001725716
ROCHDALE BOROUGH COUNCIL,01/07/2021,CHILDREN�S SOCIAL CARE,REED SPECIALIST RECRUITMENT LTD,01/07/2021,1387.8,AGENCY STAFF,V001725716
ROCHDALE BOROUGH COUNCIL,01/07/2021,CHILDREN�S SOCIAL CARE,REED SPECIALIST RECRUITMENT LTD,01/07/2021,1202.8,AGENCY STAFF,V001725716
ROCHDALE BOROUGH COUNCIL,01/07/2021,CHILDREN�S SOCIAL CARE,REED SPECIALIST RECRUITMENT LTD,01/07/2021,1018.54,AGENCY STAFF,V001725716
ROCHDALE BOROUGH COUNCIL,01/07/2021,PROPERTY AND HIGHWAYS,REED SPECIALIST RECRUITMENT LTD,01/07/2021,666.35,AGENCY STAFF,V001725716
ROCHDALE BOROUGH COUNCIL,01/07/2021,PROPERTY AND HIGHWAYS,REED SPECIALIST RECRUITMENT LTD,01/07/2021,855.1,AGENCY STAFF,V001725716
ROCHDALE BOROUGH COUNCIL,01/07/2021,PROPERTY AND HIGHWAYS,REED SPECIALIST RECRUITMENT LTD,01/07/2021,959.09,AGENCY STAFF,V001725716
ROCHDALE BOROUGH COUNCIL,01/07/2021,ADULT CARE LCO FUNCTIONS,REED SPECIALIST RECRUITMENT LTD,01/07/2021,306.99,AGENCY STAFF,V001725716
ROCHDALE BOROUGH COUNCIL,01/07/2021,ADULT CARE LCO FUNCTIONS,REED SPECIALIST RECRUITMENT LTD,01/07/2021,699.5,CAPITAL - STAFFING AGENCY PAYMENTS,V001725716
ROCHDALE BOROUGH COUNCIL,01/07/2021,NEIGHBOURHOODS AND ENVIRONMENT,REED SPECIALIST RECRUITMENT LTD,01/07/2021,1213.54,AGENCY STAFF,V001725716
ROCHDALE BOROUGH COUNCIL,01/07/2021,NEIGHBOURHOODS AND ENVIRONMENT,REED SPECIALIST RECRUITMENT LTD,01/07/2021,598.33,AGENCY STAFF,V001725716
ROCHDALE BOROUGH COUNCIL,01/07/2021,CHILDREN�S SOCIAL CARE,REED SPECIALIST RECRUITMENT LTD,01/07/2021,1387.8,AGENCY STAFF,V001725716
ROCHDALE BOROUGH COUNCIL,01/07/2021,NEIGHBOURHOODS AND ENVIRONMENT,REED SPECIALIST RECRUITMENT LTD,01/07/2021,302.92,AGENCY STAFF,V001725716
ROCHDALE BOROUGH COUNCIL,01/07/2021,CHILDREN�S SOCIAL CARE,REED SPECIALIST RECRUITMENT LTD,01/07/2021,1202.43,AGENCY STAFF,V001725716
ROCHDALE BOROUGH COUNCIL,01/07/2021,CHILDREN�S SOCIAL CARE,REED SPECIALIST RECRUITMENT LTD,01/07/2021,204.04,AGENCY STAFF,V001725716
ROCHDALE BOROUGH COUNCIL,01/07/2021,ECONOMY DIRECTORATE,REED SPECIALIST RECRUITMENT LTD,01/07/2021,526.7,AGENCY STAFF,V001725716
ROCHDALE BOROUGH COUNCIL,01/07/2021,ECONOMY DIRECTORATE,REED SPECIALIST RECRUITMENT LTD,01/07/2021,649.6,AGENCY STAFF,V001725716
ROCHDALE BOROUGH COUNCIL,01/07/2021,ECONOMY DIRECTORATE,REED SPECIALIST RECRUITMENT LTD,01/07/2021,649.6,AGENCY STAFF,V001725716
ROCHDALE BOROUGH COUNCIL,01/07/2021,PROPERTY AND HIGHWAYS,REED SPECIALIST RECRUITMENT LTD,01/07/2021,491.05,AGENCY STAFF,V001725716
ROCHDALE BOROUGH COUNCIL,01/07/2021,NEIGHBOURHOODS AND ENVIRONMENT,REED SPECIALIST RECRUITMENT LTD,01/07/2021,538.15,AGENCY STAFF,V001725716
ROCHDALE BOROUGH COUNCIL,01/07/2021,CHILDREN�S SOCIAL CARE,REED SPECIALIST RECRUITMENT LTD,01/07/2021,1247.2,AGENCY STAFF,V001725716
ROCHDALE BOROUGH COUNCIL,01/07/2021,NEIGHBOURHOODS AND ENVIRONMENT,REED SPECIALIST RECRUITMENT LTD,01/07/2021,526.7,AGENCY STAFF,V001725716
ROCHDALE BOROUGH COUNCIL,01/07/2021,NEIGHBOURHOODS AND ENVIRONMENT,REED SPECIALIST RECRUITMENT LTD,01/07/2021,496.76,AGENCY STAFF,V001725716
ROCHDALE BOROUGH COUNCIL,01/07/2021,CHILDREN�S SOCIAL CARE,REED SPECIALIST RECRUITMENT LTD,01/07/2021,1454.4,AGENCY STAFF,V001725716
ROCHDALE BOROUGH COUNCIL,01/07/2021,EARLY HELP AND SCHOOLS,REED SPECIALIST RECRUITMENT LTD,01/07/2021,910.22,AGENCY STAFF,V001725716
ROCHDALE BOROUGH COUNCIL,01/07/2021,CHILDREN�S SOCIAL CARE,REED SPECIALIST RECRUITMENT LTD,01/07/2021,1202.8,AGENCY STAFF,V001725716
ROCHDALE BOROUGH COUNCIL,01/07/2021,NEIGHBOURHOODS AND ENVIRONMENT,REED SPECIALIST RECRUITMENT LTD,01/07/2021,490.68,AGENCY STAFF,V001725716
ROCHDALE BOROUGH COUNCIL,01/07/2021,NEIGHBOURHOODS AND ENVIRONMENT,REED SPECIALIST RECRUITMENT LTD,01/07/2021,610.86,AGENCY STAFF,V001725716
ROCHDALE BOROUGH COUNCIL,01/07/2021,NEIGHBOURHOODS AND ENVIRONMENT,REED SPECIALIST RECRUITMENT LTD,01/07/2021,552.68,AGENCY STAFF,V001725716
ROCHDALE BOROUGH COUNCIL,01/07/2021,CHILDREN�S SOCIAL CARE,REED SPECIALIST RECRUITMENT LTD,01/07/2021,1868.8,AGENCY STAFF,V001725716
ROCHDALE BOROUGH COUNCIL,01/07/2021,CHILDREN�S SOCIAL CARE,REED SPECIALIST RECRUITMENT LTD,01/07/2021,1202.8,AGENCY STAFF,V001725716
ROCHDALE BOROUGH COUNCIL,01/07/2021,CHILDREN�S SOCIAL CARE,REED SPECIALIST RECRUITMENT LTD,01/07/2021,1202.8,AGENCY STAFF,V001725716
ROCHDALE BOROUGH COUNCIL,01/07/2021,CHILDREN�S SOCIAL CARE,REED SPECIALIST RECRUITMENT LTD,01/07/2021,1454.4,AGENCY STAFF,V001725716
ROCHDALE BOROUGH COUNCIL,01/07/2021,NEIGHBOURHOODS AND ENVIRONMENT,REED SPECIALIST RECRUITMENT LTD,01/07/2021,496.76,AGENCY STAFF,V001725716
ROCHDALE BOROUGH COUNCIL,01/07/2021,CHILDREN�S SOCIAL CARE,REED SPECIALIST RECRUITMENT LTD,01/07/2021,1202.8,AGENCY STAFF,V001725716
ROCHDALE BOROUGH COUNCIL,01/07/2021,CHILDREN�S SOCIAL CARE,REED SPECIALIST RECRUITMENT LTD,01/07/2021,864.71,AGENCY STAFF,V001725716
ROCHDALE BOROUGH COUNCIL,01/07/2021,NEIGHBOURHOODS AND ENVIRONMENT,REED SPECIALIST RECRUITMENT LTD,01/07/2021,496.76,AGENCY STAFF,V001725716
ROCHDALE BOROUGH COUNCIL,01/07/2021,CHILDREN�S SOCIAL CARE,REED SPECIALIST RECRUITMENT LTD,01/07/2021,1387.8,AGENCY STAFF,V001725716
ROCHDALE BOROUGH COUNCIL,01/07/2021,CHILDREN�S SOCIAL CARE,REED SPECIALIST RECRUITMENT LTD,01/07/2021,1387.8,AGENCY STAFF,V001725716
ROCHDALE BOROUGH COUNCIL,01/07/2021,NEIGHBOURHOODS AND ENVIRONMENT,REED SPECIALIST RECRUITMENT LTD,01/07/2021,496.76,AGENCY STAFF,V001725716
ROCHDALE BOROUGH COUNCIL,01/07/2021,NEIGHBOURHOODS AND ENVIRONMENT,REED SPECIALIST RECRUITMENT LTD,01/07/2021,637.39,AGENCY STAFF,V001725716
ROCHDALE BOROUGH COUNCIL,01/07/2021,NEIGHBOURHOODS AND ENVIRONMENT,REED SPECIALIST RECRUITMENT LTD,01/07/2021,605.52,AGENCY STAFF,V001725716
ROCHDALE BOROUGH COUNCIL,01/07/2021,CHILDREN�S SOCIAL CARE,REED SPECIALIST RECRUITMENT LTD,01/07/2021,1276.8,AGENCY STAFF,V001725716
ROCHDALE BOROUGH COUNCIL,01/07/2021,NEIGHBOURHOODS AND ENVIRONMENT,REED SPECIALIST RECRUITMENT LTD,01/07/2021,496.76,AGENCY STAFF,V001725716
ROCHDALE BOROUGH COUNCIL,01/07/2021,NEIGHBOURHOODS AND ENVIRONMENT,REED SPECIALIST RECRUITMENT LTD,01/07/2021,496.76,AGENCY STAFF,V001725716
ROCHDALE BOROUGH COUNCIL,01/07/2021,ADULT CARE LCO FUNCTIONS,REED SPECIALIST RECRUITMENT LTD,01/07/2021,495.98,AGENCY STAFF,V001725716
ROCHDALE BOROUGH COUNCIL,01/07/2021,NEIGHBOURHOODS AND ENVIRONMENT,REED SPECIALIST RECRUITMENT LTD,01/07/2021,496.76,AGENCY STAFF,V001725716
ROCHDALE BOROUGH COUNCIL,01/07/2021,EARLY HELP AND SCHOOLS,REED SPECIALIST RECRUITMENT LTD,01/07/2021,1202.8,AGENCY STAFF,V001725716
ROCHDALE BOROUGH COUNCIL,01/07/2021,NEIGHBOURHOODS AND ENVIRONMENT,REED SPECIALIST RECRUITMENT LTD,01/07/2021,245.35,AGENCY STAFF,V001725716
ROCHDALE BOROUGH COUNCIL,01/07/2021,NEIGHBOURHOODS AND ENVIRONMENT,REED SPECIALIST RECRUITMENT LTD,01/07/2021,490.68,AGENCY STAFF,V001725716
ROCHDALE BOROUGH COUNCIL,01/07/2021,ECONOMY DIRECTORATE,REED SPECIALIST RECRUITMENT LTD,01/07/2021,649.6,AGENCY STAFF,V001725716
ROCHDALE BOROUGH COUNCIL,01/07/2021,NEIGHBOURHOODS AND ENVIRONMENT,REED SPECIALIST RECRUITMENT LTD,01/07/2021,490.68,AGENCY STAFF,V001725716
ROCHDALE BOROUGH COUNCIL,01/07/2021,CHILDREN�S SOCIAL CARE,REED SPECIALIST RECRUITMENT LTD,01/07/2021,1162.15,AGENCY STAFF,V001725716
ROCHDALE BOROUGH COUNCIL,01/07/2021,NEIGHBOURHOODS AND ENVIRONMENT,REED SPECIALIST RECRUITMENT LTD,01/07/2021,122.68,AGENCY STAFF,V001725716
ROCHDALE BOROUGH COUNCIL,01/07/2021,CHILDREN�S SOCIAL CARE,REED SPECIALIST RECRUITMENT LTD,01/07/2021,1276.8,AGENCY STAFF,V001725716
ROCHDALE BOROUGH COUNCIL,01/07/2021,NEIGHBOURHOODS AND ENVIRONMENT,REED SPECIALIST RECRUITMENT LTD,01/07/2021,575.82,CAPITAL SALARIES,V001725716
ROCHDALE BOROUGH COUNCIL,01/07/2021,NEIGHBOURHOODS AND ENVIRONMENT,REED SPECIALIST RECRUITMENT LTD,01/07/2021,490.68,AGENCY STAFF,V001725716
ROCHDALE BOROUGH COUNCIL,01/07/2021,NEIGHBOURHOODS AND ENVIRONMENT,REED SPECIALIST RECRUITMENT LTD,01/07/2021,490.68,AGENCY STAFF,V001725716
ROCHDALE BOROUGH COUNCIL,01/07/2021,CHILDREN�S SOCIAL CARE,REED SPECIALIST RECRUITMENT LTD,01/07/2021,1276.8,AGENCY STAFF,V001725716
ROCHDALE BOROUGH COUNCIL,01/07/2021,NEIGHBOURHOODS AND ENVIRONMENT,REED SPECIALIST RECRUITMENT LTD,01/07/2021,531.6,AGENCY STAFF,V001725716
ROCHDALE BOROUGH COUNCIL,01/07/2021,NEIGHBOURHOODS AND ENVIRONMENT,REED SPECIALIST RECRUITMENT LTD,01/07/2021,531.6,AGENCY STAFF,V001725716
ROCHDALE BOROUGH COUNCIL,01/07/2021,NEIGHBOURHOODS AND ENVIRONMENT,REED SPECIALIST RECRUITMENT LTD,01/07/2021,496.76,AGENCY STAFF,V001725716
ROCHDALE BOROUGH COUNCIL,01/07/2021,NEIGHBOURHOODS AND ENVIRONMENT,REED SPECIALIST RECRUITMENT LTD,01/07/2021,605.52,AGENCY STAFF,V001725716
ROCHDALE BOROUGH COUNCIL,01/07/2021,NEIGHBOURHOODS AND ENVIRONMENT,REED SPECIALIST RECRUITMENT LTD,01/07/2021,496.76,AGENCY STAFF,V001725716
ROCHDALE BOROUGH COUNCIL,01/07/2021,NEIGHBOURHOODS AND ENVIRONMENT,REED SPECIALIST RECRUITMENT LTD,01/07/2021,496.76,AGENCY STAFF,V001725716
ROCHDALE BOROUGH COUNCIL,01/07/2021,CHILDREN�S SOCIAL CARE,REED SPECIALIST RECRUITMENT LTD,01/07/2021,1454.4,AGENCY STAFF,V001725716
ROCHDALE BOROUGH COUNCIL,01/07/2021,NEIGHBOURHOODS AND ENVIRONMENT,REED SPECIALIST RECRUITMENT LTD,01/07/2021,550.47,AGENCY STAFF,V001725716
ROCHDALE BOROUGH COUNCIL,01/07/2021,NEIGHBOURHOODS AND ENVIRONMENT,REED SPECIALIST RECRUITMENT LTD,01/07/2021,478.52,AGENCY STAFF,V001725716
ROCHDALE BOROUGH COUNCIL,01/07/2021,NEIGHBOURHOODS AND ENVIRONMENT,REED SPECIALIST RECRUITMENT LTD,01/07/2021,496.76,AGENCY STAFF,V001725716
ROCHDALE BOROUGH COUNCIL,01/07/2021,NEIGHBOURHOODS AND ENVIRONMENT,REED SPECIALIST RECRUITMENT LTD,01/07/2021,496.76,AGENCY STAFF,V001725716
ROCHDALE BOROUGH COUNCIL,01/07/2021,NEIGHBOURHOODS AND ENVIRONMENT,REED SPECIALIST RECRUITMENT LTD,01/07/2021,496.76,AGENCY STAFF,V001725716
ROCHDALE BOROUGH COUNCIL,01/07/2021,NEIGHBOURHOODS AND ENVIRONMENT,REED SPECIALIST RECRUITMENT LTD,01/07/2021,490.68,AGENCY STAFF,V001725716
ROCHDALE BOROUGH COUNCIL,01/07/2021,NEIGHBOURHOODS AND ENVIRONMENT,REED SPECIALIST RECRUITMENT LTD,01/07/2021,490.68,AGENCY STAFF,V001725716
ROCHDALE BOROUGH COUNCIL,01/07/2021,CHILDREN�S SOCIAL CARE,REED SPECIALIST RECRUITMENT LTD,01/07/2021,1202.8,AGENCY STAFF,V001725716
ROCHDALE BOROUGH COUNCIL,01/07/2021,NEIGHBOURHOODS AND ENVIRONMENT,REED SPECIALIST RECRUITMENT LTD,01/07/2021,245.35,AGENCY STAFF,V001725716
ROCHDALE BOROUGH COUNCIL,01/07/2021,NEIGHBOURHOODS AND ENVIRONMENT,REED SPECIALIST RECRUITMENT LTD,01/07/2021,496.76,AGENCY STAFF,V001725716
ROCHDALE BOROUGH COUNCIL,01/07/2021,NEIGHBOURHOODS AND ENVIRONMENT,REED SPECIALIST RECRUITMENT LTD,01/07/2021,563.9,AGENCY STAFF,V001725716
ROCHDALE BOROUGH COUNCIL,01/07/2021,CHILDREN�S SOCIAL CARE,REED SPECIALIST RECRUITMENT LTD,01/07/2021,1646.8,AGENCY STAFF,V001725716
ROCHDALE BOROUGH COUNCIL,01/07/2021,CHILDREN�S SOCIAL CARE,REED SPECIALIST RECRUITMENT LTD,01/07/2021,1350.29,AGENCY STAFF,V001725716
ROCHDALE BOROUGH COUNCIL,01/07/2021,CHILDREN�S SOCIAL CARE,REED SPECIALIST RECRUITMENT LTD,01/07/2021,532.62,AGENCY STAFF,V001725716
ROCHDALE BOROUGH COUNCIL,01/07/2021,CHILDREN�S SOCIAL CARE,REED SPECIALIST RECRUITMENT LTD,01/07/2021,1454.4,AGENCY STAFF,V001725716
ROCHDALE BOROUGH COUNCIL,01/07/2021,RESOURCES,REED SPECIALIST RECRUITMENT LTD,01/07/2021,1134.79,AGENCY STAFF,V001725716
ROCHDALE BOROUGH COUNCIL,01/07/2021,CHILDREN�S SOCIAL CARE,REED SPECIALIST RECRUITMENT LTD,01/07/2021,1387.8,AGENCY STAFF,V001725716
ROCHDALE BOROUGH COUNCIL,01/07/2021,CHILDREN�S SOCIAL CARE,REED SPECIALIST RECRUITMENT LTD,01/07/2021,1202.8,AGENCY STAFF,V001725716
ROCHDALE BOROUGH COUNCIL,01/07/2021,CHILDREN�S SOCIAL CARE,REED SPECIALIST RECRUITMENT LTD,01/07/2021,843.93,AGENCY STAFF,V001725716
ROCHDALE BOROUGH COUNCIL,01/07/2021,CHILDREN�S SOCIAL CARE,REED SPECIALIST RECRUITMENT LTD,01/07/2021,1387.8,AGENCY STAFF,V001725716
ROCHDALE BOROUGH COUNCIL,01/07/2021,ADULT CARE LCO FUNCTIONS,REED SPECIALIST RECRUITMENT LTD,01/07/2021,1018.54,AGENCY STAFF,V001725716
ROCHDALE BOROUGH COUNCIL,01/07/2021,ADULT CARE LCO FUNCTIONS,REED SPECIALIST RECRUITMENT LTD,01/07/2021,1018.54,AGENCY STAFF,V001725716
ROCHDALE BOROUGH COUNCIL,01/07/2021,PROPERTY AND HIGHWAYS,REED SPECIALIST RECRUITMENT LTD,01/07/2021,855.1,AGENCY STAFF,V001725716
ROCHDALE BOROUGH COUNCIL,01/07/2021,PROPERTY AND HIGHWAYS,REED SPECIALIST RECRUITMENT LTD,01/07/2021,658.65,AGENCY STAFF,V001725716
ROCHDALE BOROUGH COUNCIL,01/07/2021,PROPERTY AND HIGHWAYS,REED SPECIALIST RECRUITMENT LTD,01/07/2021,926.34,AGENCY STAFF,V001725716
ROCHDALE BOROUGH COUNCIL,01/07/2021,PROPERTY AND HIGHWAYS,REED SPECIALIST RECRUITMENT LTD,01/07/2021,924.72,AGENCY STAFF,V001725716
ROCHDALE BOROUGH COUNCIL,01/07/2021,CHILDREN�S SOCIAL CARE,REED SPECIALIST RECRUITMENT LTD,01/07/2021,1202.8,AGENCY STAFF,V001725716
ROCHDALE BOROUGH COUNCIL,01/07/2021,EARLY HELP AND SCHOOLS,REED SPECIALIST RECRUITMENT LTD,01/07/2021,1061.93,AGENCY STAFF,V001725716
ROCHDALE BOROUGH COUNCIL,01/07/2021,CHILDREN�S SOCIAL CARE,REED SPECIALIST RECRUITMENT LTD,01/07/2021,1387.8,AGENCY STAFF,V001725716
ROCHDALE BOROUGH COUNCIL,13/07/2021,ADULT CARE LCO FUNCTIONS,ELDERCARE UK LTD,13/07/2021,10605.14,SERVICE LEVEL AGREEMENTS,V001725718
ROCHDALE BOROUGH COUNCIL,13/07/2021,EARLY HELP AND SCHOOLS,ANEVAY STOVES LTD,13/07/2021,273.34,ACTIVITIES,V001725719
ROCHDALE BOROUGH COUNCIL,16/07/2021,EARLY HELP AND SCHOOLS,SECURITY PLUS LIMITED,16/07/2021,1025.64,TRANSACTIONS-EXPENDITURE,V001725721
ROCHDALE BOROUGH COUNCIL,06/07/2021,NEIGHBOURHOODS AND ENVIRONMENT,UNITED UTILITIES WATER PLC,06/07/2021,127.92,WATER CHARGES,V001725722
ROCHDALE BOROUGH COUNCIL,06/07/2021,NEIGHBOURHOODS AND ENVIRONMENT,UNITED UTILITIES WATER PLC,06/07/2021,127.92,WATER CHARGES,V001725722
ROCHDALE BOROUGH COUNCIL,16/07/2021,NEIGHBOURHOODS AND ENVIRONMENT,WHISTL UK LTD,16/07/2021,870.63,TRANSACTIONS-EXPENDITURE,V001725724
ROCHDALE BOROUGH COUNCIL,13/07/2021,EARLY HELP AND SCHOOLS,NORMANS BURTON UPON TRENT LTD,13/07/2021,86,EQUIPMENT - GENERAL,V001725726
ROCHDALE BOROUGH COUNCIL,19/07/2021,NEIGHBOURHOODS AND ENVIRONMENT,T I S LIMITED,19/07/2021,264,TRANSACTIONS-EXPENDITURE,V001725730
ROCHDALE BOROUGH COUNCIL,19/07/2021,ECONOMY DIRECTORATE,T I S LIMITED,19/07/2021,688,EXPENSES - GENERAL,V001725731
ROCHDALE BOROUGH COUNCIL,19/07/2021,PUBLIC HEALTH,MANCHESTER CITY COUNCIL,19/07/2021,28125,PH OTHER CONTRACTS,V001725733
ROCHDALE BOROUGH COUNCIL,19/07/2021,EARLY HELP AND SCHOOLS,T I S LIMITED,19/07/2021,294,REPAIRS & ALTS OF BUILDINGS,V001725734
ROCHDALE BOROUGH COUNCIL,19/07/2021,ECONOMY DIRECTORATE,ANTHONY NICKSON ENCOLOGY LTD,19/07/2021,1200,CONSULTANTS FEES,V001725735
ROCHDALE BOROUGH COUNCIL,19/07/2021,PUBLIC HEALTH,ROAD SAFETY SERVICES LIMITED,19/07/2021,702,EQUIPMENT - GENERAL,V001725738
ROCHDALE BOROUGH COUNCIL,19/07/2021,PUBLIC HEALTH,ROAD SAFETY SERVICES LIMITED,19/07/2021,702,EQUIPMENT - GENERAL,V001725738
ROCHDALE BOROUGH COUNCIL,19/07/2021,ECONOMY DIRECTORATE,S HALLIWELL LANDSCAPES LTD,19/07/2021,80,SPECIFIED MAINTENANCE,V001725740
ROCHDALE BOROUGH COUNCIL,13/07/2021,ADULT CARE LCO FUNCTIONS,SARA MEDICS LTD,13/07/2021,173.37,EXPENSES - GENERAL,V001725743
ROCHDALE BOROUGH COUNCIL,13/07/2021,EARLY HELP AND SCHOOLS,CROSSROADS TOGETHER LTD,13/07/2021,344,HOME CARE - CHILDRENS SERVICES,V001725745
ROCHDALE BOROUGH COUNCIL,13/07/2021,ADULT CARE LCO FUNCTIONS,ACTION FIRST ASSESSMENTS LTD,13/07/2021,1950,FEES / COMMISSION,V001725746
ROCHDALE BOROUGH COUNCIL,01/07/2021,ECONOMY DIRECTORATE,C A PICKEN AND SON LTD,01/07/2021,14610,ENVIRONMENTAL WORKS LANDSCAPE,V001725756
ROCHDALE BOROUGH COUNCIL,13/07/2021,RESOURCES,ROSSENDALES,13/07/2021,0,INPUT VAT -  ADJUSTMENTS,V001725764
ROCHDALE BOROUGH COUNCIL,16/07/2021,PROPERTY AND HIGHWAYS,HOWARTH TIMBER AND BUILDING SUPPLIES LTD,16/07/2021,11.43,PROPERTY - WORKS ELEMENT,V001725767
ROCHDALE BOROUGH COUNCIL,13/07/2021,PROPERTY AND HIGHWAYS,A AND D DOOR SYSTEMS LTD,13/07/2021,224,ELECTRICAL,V001725770
ROCHDALE BOROUGH COUNCIL,20/07/2021,CHILDREN�S SOCIAL CARE,CFS CARE LTD,20/07/2021,-118.4,YOUNGE PERSONS ALLOWANCE,V001725771
ROCHDALE BOROUGH COUNCIL,13/07/2021,NEIGHBOURHOODS AND ENVIRONMENT,PATTERSONS BRISTOL LTD,13/07/2021,1.8,CLEANING EQUIPMENT,V001725772
ROCHDALE BOROUGH COUNCIL,13/07/2021,NEIGHBOURHOODS AND ENVIRONMENT,PATTERSONS BRISTOL LTD,13/07/2021,1.8,CLEANING EQUIPMENT,V001725772
ROCHDALE BOROUGH COUNCIL,13/07/2021,NEIGHBOURHOODS AND ENVIRONMENT,PATTERSONS BRISTOL LTD,13/07/2021,6.63,CLEANING MATERIALS,V001725772
ROCHDALE BOROUGH COUNCIL,13/07/2021,NEIGHBOURHOODS AND ENVIRONMENT,PATTERSONS BRISTOL LTD,13/07/2021,13.86,CLEANING MATERIALS,V001725772
ROCHDALE BOROUGH COUNCIL,13/07/2021,NEIGHBOURHOODS AND ENVIRONMENT,PATTERSONS BRISTOL LTD,13/07/2021,15.11,CONSUMABLES,V001725772
ROCHDALE BOROUGH COUNCIL,13/07/2021,NEIGHBOURHOODS AND ENVIRONMENT,PATTERSONS BRISTOL LTD,13/07/2021,21.42,CONSUMABLES,V001725772
ROCHDALE BOROUGH COUNCIL,13/07/2021,NEIGHBOURHOODS AND ENVIRONMENT,PATTERSONS BRISTOL LTD,13/07/2021,6.93,CONSUMABLES,V001725772
ROCHDALE BOROUGH COUNCIL,13/07/2021,NEIGHBOURHOODS AND ENVIRONMENT,PATTERSONS BRISTOL LTD,13/07/2021,7.2,CLEANING EQUIPMENT,V001725773
ROCHDALE BOROUGH COUNCIL,13/07/2021,NEIGHBOURHOODS AND ENVIRONMENT,PATTERSONS BRISTOL LTD,13/07/2021,1.8,CLEANING EQUIPMENT,V001725773
ROCHDALE BOROUGH COUNCIL,13/07/2021,NEIGHBOURHOODS AND ENVIRONMENT,PATTERSONS BRISTOL LTD,13/07/2021,11.4,CLEANING MATERIALS,V001725773
ROCHDALE BOROUGH COUNCIL,13/07/2021,NEIGHBOURHOODS AND ENVIRONMENT,PATTERSONS BRISTOL LTD,13/07/2021,4.38,CLEANING MATERIALS,V001725773
ROCHDALE BOROUGH COUNCIL,13/07/2021,NEIGHBOURHOODS AND ENVIRONMENT,PATTERSONS BRISTOL LTD,13/07/2021,6.68,CLEANING MATERIALS,V001725773
ROCHDALE BOROUGH COUNCIL,13/07/2021,NEIGHBOURHOODS AND ENVIRONMENT,PATTERSONS BRISTOL LTD,13/07/2021,4.92,CONSUMABLES,V001725773
ROCHDALE BOROUGH COUNCIL,13/07/2021,NEIGHBOURHOODS AND ENVIRONMENT,PATTERSONS BRISTOL LTD,13/07/2021,60.44,CONSUMABLES,V001725773
ROCHDALE BOROUGH COUNCIL,13/07/2021,NEIGHBOURHOODS AND ENVIRONMENT,PATTERSONS BRISTOL LTD,13/07/2021,3.36,CLEANING MATERIALS,V001725773
ROCHDALE BOROUGH COUNCIL,13/07/2021,NEIGHBOURHOODS AND ENVIRONMENT,PATTERSONS BRISTOL LTD,13/07/2021,14.36,CONSUMABLES,V001725773
ROCHDALE BOROUGH COUNCIL,13/07/2021,NEIGHBOURHOODS AND ENVIRONMENT,PATTERSONS BRISTOL LTD,13/07/2021,6.36,CLEANING EQUIPMENT,V001725773
ROCHDALE BOROUGH COUNCIL,13/07/2021,NEIGHBOURHOODS AND ENVIRONMENT,PATTERSONS BRISTOL LTD,13/07/2021,24.2,CLEANING EQUIPMENT,V001725773
ROCHDALE BOROUGH COUNCIL,13/07/2021,NEIGHBOURHOODS AND ENVIRONMENT,PATTERSONS BRISTOL LTD,13/07/2021,4.38,CLEANING MATERIALS,V001725774
ROCHDALE BOROUGH COUNCIL,13/07/2021,NEIGHBOURHOODS AND ENVIRONMENT,PATTERSONS BRISTOL LTD,13/07/2021,14.1,CLEANING MATERIALS,V001725774
ROCHDALE BOROUGH COUNCIL,13/07/2021,NEIGHBOURHOODS AND ENVIRONMENT,PATTERSONS BRISTOL LTD,13/07/2021,7.02,CLEANING MATERIALS,V001725774
ROCHDALE BOROUGH COUNCIL,13/07/2021,NEIGHBOURHOODS AND ENVIRONMENT,PATTERSONS BRISTOL LTD,13/07/2021,2.27,CLEANING MATERIALS,V001725774
ROCHDALE BOROUGH COUNCIL,13/07/2021,EARLY HELP AND SCHOOLS,LOCAL GOVERNMENT ASSOCIATION,13/07/2021,99,TRAINING-NON QUALIFICATION,V001725775
ROCHDALE BOROUGH COUNCIL,13/07/2021,COMMISSIONING AND STATUTORY,LBPM LTD,13/07/2021,7750,CONSULTANT FEES,V001725776
ROCHDALE BOROUGH COUNCIL,12/07/2021,ECONOMY DIRECTORATE,POOLE DICK ASSOCIATES,12/07/2021,1800,CONSULTANTS FEES,V001725778
ROCHDALE BOROUGH COUNCIL,12/07/2021,ECONOMY DIRECTORATE,POOLE DICK ASSOCIATES,12/07/2021,300,CONSULTANTS FEES,V001725779
ROCHDALE BOROUGH COUNCIL,12/07/2021,ECONOMY DIRECTORATE,POOLE DICK ASSOCIATES,12/07/2021,500,PROFESSIONAL FEES,V001725780
ROCHDALE BOROUGH COUNCIL,09/07/2021,ECONOMY DIRECTORATE,REDACTED - PERSONAL DATA,09/07/2021,1575,CONSULTANTS FEES,V001725781
ROCHDALE BOROUGH COUNCIL,13/07/2021,CHILDREN�S SOCIAL CARE,PANORAMIC ASSOCIATES LTD,13/07/2021,1900,AGENCY STAFF,V001725782
ROCHDALE BOROUGH COUNCIL,13/07/2021,NEIGHBOURHOODS AND ENVIRONMENT,THE PROTON GROUP LIMITED,13/07/2021,255.86,CLEANING MATERIALS,V001725783
ROCHDALE BOROUGH COUNCIL,13/07/2021,NEIGHBOURHOODS AND ENVIRONMENT,ALLIANCE DISPOSABLES LIMITED,13/07/2021,85.5,CONSUMABLES,V001725784
ROCHDALE BOROUGH COUNCIL,19/07/2021,ADULT CARE LCO FUNCTIONS,STANNAH LIFT SERVICES LTD,19/07/2021,55,TRANSACTIONS-EXPENDITURE,V001725785
ROCHDALE BOROUGH COUNCIL,22/07/2021,ADULT CARE LCO FUNCTIONS,LANEMARK LTD,22/07/2021,2395,MINOR BUILDING WORKS,V001725786
ROCHDALE BOROUGH COUNCIL,19/07/2021,EARLY HELP AND SCHOOLS,TEENAGE WORKS,19/07/2021,1681.82,OTHER LA`S - SEN PROVISION,V001725788
ROCHDALE BOROUGH COUNCIL,19/07/2021,EARLY HELP AND SCHOOLS,FAMILY ACTION,19/07/2021,17.5,PROVISIONS,V001725789
ROCHDALE BOROUGH COUNCIL,19/07/2021,EARLY HELP AND SCHOOLS,SALFORD CITY COLLEGE,19/07/2021,1224,OTHER EST - SEN PROVISION,V001725790
ROCHDALE BOROUGH COUNCIL,19/07/2021,EARLY HELP AND SCHOOLS,SALFORD CITY COLLEGE,19/07/2021,1224,OTHER EST - SEN PROVISION,V001725790
ROCHDALE BOROUGH COUNCIL,19/07/2021,NEIGHBOURHOODS AND ENVIRONMENT,FORENSICS LTD,19/07/2021,467.88,TOXICOLOGY PAYMENTS,V001725791
ROCHDALE BOROUGH COUNCIL,19/07/2021,ADULT CARE LCO FUNCTIONS,STANNAH LIFT SERVICES LTD,19/07/2021,55,REMOVAL EXPENDITURE,V001725793
ROCHDALE BOROUGH COUNCIL,20/07/2021,PROPERTY AND HIGHWAYS,FRANK KEY TOOL HIRE LTD,20/07/2021,6,PROPERTY - WORKS ELEMENT,V001725796
ROCHDALE BOROUGH COUNCIL,20/07/2021,PROPERTY AND HIGHWAYS,ELECTRIC CENTER,20/07/2021,17.61,PROPERTY - WORKS ELEMENT,V001725797
ROCHDALE BOROUGH COUNCIL,20/07/2021,NEIGHBOURHOODS AND ENVIRONMENT,UPDATA INFRASTRUCTURE UK LTD,20/07/2021,15140,COMMUNICATION AND COMPUTING - GENERAL,V001725799
ROCHDALE BOROUGH COUNCIL,20/07/2021,EARLY HELP AND SCHOOLS,FAMILY ACTION,20/07/2021,38.5,PROVISIONS,V001725800
ROCHDALE BOROUGH COUNCIL,20/07/2021,EARLY HELP AND SCHOOLS,FAMILY ACTION,20/07/2021,182,PROVISIONS,V001725801
ROCHDALE BOROUGH COUNCIL,20/07/2021,CHILDREN�S SOCIAL CARE,ADOPTION MATTERS NORTHWEST,20/07/2021,889,ADOPTION PAYMENTS,V001725802
ROCHDALE BOROUGH COUNCIL,20/07/2021,EARLY HELP AND SCHOOLS,DSG RETAIL LIMITED,20/07/2021,35.36,EQUIPMENT - GENERAL,V001725804
ROCHDALE BOROUGH COUNCIL,20/07/2021,ADULT CARE LCO FUNCTIONS,ELDERCARE UK LTD,20/07/2021,3532.76,SERVICE LEVEL AGREEMENTS,V001725805
ROCHDALE BOROUGH COUNCIL,20/07/2021,CHILDREN�S SOCIAL CARE,PARADIGM PROFESSIONAL CONSULTANCY LTD,20/07/2021,1387.5,AGENCY STAFF,V001725808
ROCHDALE BOROUGH COUNCIL,20/07/2021,ADULT CARE LCO FUNCTIONS,ADASS,20/07/2021,2366,SUBSCRIPTIONS,V001725809
ROCHDALE BOROUGH COUNCIL,20/07/2021,ADULT CARE LCO FUNCTIONS,MI HUB LTD,20/07/2021,10.49,"CLOTHES, UNIFORM AND LAUNDRY",V001725810
ROCHDALE BOROUGH COUNCIL,20/07/2021,ADULT CARE LCO FUNCTIONS,MI HUB LTD,20/07/2021,10.49,"CLOTHES, UNIFORM AND LAUNDRY",V001725810
ROCHDALE BOROUGH COUNCIL,20/07/2021,CHILDREN�S SOCIAL CARE,BANNER GROUP LIMITED,20/07/2021,1.31,PRINTING & STATIONERY,V001725812
ROCHDALE BOROUGH COUNCIL,20/07/2021,ADULT CARE LCO FUNCTIONS,STANNAH LIFT SERVICES LTD,20/07/2021,3005,MINOR BUILDING WORKS,V001725813
ROCHDALE BOROUGH COUNCIL,20/07/2021,EARLY HELP AND SCHOOLS,TEACHING PERSONNEL LTD,20/07/2021,222,OTHER LA`S - SEN PROVISION,V001725815
ROCHDALE BOROUGH COUNCIL,20/07/2021,CHILDREN�S SOCIAL CARE,FOSTER TALK,20/07/2021,130,ACTIVITIES,V001725816
ROCHDALE BOROUGH COUNCIL,20/07/2021,ADULT CARE LCO FUNCTIONS,BUDDI LTD,20/07/2021,300,SERVICE LEVEL AGREEMENTS,V001725817
ROCHDALE BOROUGH COUNCIL,20/07/2021,ADULT CARE LCO FUNCTIONS,ROUTES HEALTHCARE NORTH LTD,20/07/2021,501.12,HOME CARE - ADULT SERVICES,V001725819
ROCHDALE BOROUGH COUNCIL,12/07/2021,NEIGHBOURHOODS AND ENVIRONMENT,RELIANCE MEDICAL,12/07/2021,145.6,EQUIPMENT - GENERAL,V001725826
ROCHDALE BOROUGH COUNCIL,12/07/2021,NEIGHBOURHOODS AND ENVIRONMENT,RELIANCE MEDICAL,12/07/2021,70,EQUIPMENT - GENERAL,V001725826
ROCHDALE BOROUGH COUNCIL,12/07/2021,NEIGHBOURHOODS AND ENVIRONMENT,RELIANCE MEDICAL,12/07/2021,99.84,EQUIPMENT - GENERAL,V001725826
ROCHDALE BOROUGH COUNCIL,12/07/2021,NEIGHBOURHOODS AND ENVIRONMENT,RELIANCE MEDICAL,12/07/2021,15.77,EQUIPMENT - GENERAL,V001725826
ROCHDALE BOROUGH COUNCIL,13/07/2021,NEIGHBOURHOODS AND ENVIRONMENT,MOTION INDUSTRIES (UK) LIMITED,13/07/2021,12.96,VEHICLE MAINTENANCE,V001725827
ROCHDALE BOROUGH COUNCIL,13/07/2021,NEIGHBOURHOODS AND ENVIRONMENT,MOTION INDUSTRIES (UK) LIMITED,13/07/2021,12.96,VEHICLE MAINTENANCE,V001725827
ROCHDALE BOROUGH COUNCIL,13/07/2021,NEIGHBOURHOODS AND ENVIRONMENT,MOTION INDUSTRIES (UK) LIMITED,13/07/2021,11.9,VEHICLE MAINTENANCE,V001725827
ROCHDALE BOROUGH COUNCIL,13/07/2021,NEIGHBOURHOODS AND ENVIRONMENT,MOTION INDUSTRIES (UK) LIMITED,13/07/2021,11.9,VEHICLE MAINTENANCE,V001725827
ROCHDALE BOROUGH COUNCIL,13/07/2021,NEIGHBOURHOODS AND ENVIRONMENT,MOTION INDUSTRIES (UK) LIMITED,13/07/2021,2.5,VEHICLE MAINTENANCE,V001725827
ROCHDALE BOROUGH COUNCIL,13/07/2021,NEIGHBOURHOODS AND ENVIRONMENT,MOTION INDUSTRIES (UK) LIMITED,13/07/2021,2.5,VEHICLE MAINTENANCE,V001725827
ROCHDALE BOROUGH COUNCIL,13/07/2021,NEIGHBOURHOODS AND ENVIRONMENT,SPALDINGS UK LIMITED,13/07/2021,77.8,"CLOTHES, UNIFORM AND LAUNDRY",V001725828
ROCHDALE BOROUGH COUNCIL,13/07/2021,NEIGHBOURHOODS AND ENVIRONMENT,CALIBRATION ENGINEERING SERVICES LTD,13/07/2021,165,WEAR AND TEAR,V001725829
ROCHDALE BOROUGH COUNCIL,13/07/2021,NEIGHBOURHOODS AND ENVIRONMENT,CICELEY COMMERCIALS LIMITED,13/07/2021,54.63,VEHICLE MAINTENANCE,V001725830
ROCHDALE BOROUGH COUNCIL,13/07/2021,NEIGHBOURHOODS AND ENVIRONMENT,BALMERS GM LTD,13/07/2021,16.78,TRANSACTIONS-EXPENDITURE,V001725831
ROCHDALE BOROUGH COUNCIL,13/07/2021,NEIGHBOURHOODS AND ENVIRONMENT,BALMERS GM LTD,13/07/2021,16.78,TRANSACTIONS-EXPENDITURE,V001725831
ROCHDALE BOROUGH COUNCIL,13/07/2021,NEIGHBOURHOODS AND ENVIRONMENT,BALMERS GM LTD,13/07/2021,12.5,VEHICLE MAINTENANCE,V001725832
ROCHDALE BOROUGH COUNCIL,13/07/2021,NEIGHBOURHOODS AND ENVIRONMENT,BALMERS GM LTD,13/07/2021,12.5,VEHICLE MAINTENANCE,V001725832
ROCHDALE BOROUGH COUNCIL,13/07/2021,NEIGHBOURHOODS AND ENVIRONMENT,E STAR TRUCK AND VAN LTD,13/07/2021,61.5,VEHICLE MAINTENANCE,V001725833
ROCHDALE BOROUGH COUNCIL,13/07/2021,NEIGHBOURHOODS AND ENVIRONMENT,MOTION INDUSTRIES (UK) LIMITED,13/07/2021,37.46,TRANSACTIONS-EXPENDITURE,V001725834
ROCHDALE BOROUGH COUNCIL,13/07/2021,NEIGHBOURHOODS AND ENVIRONMENT,MOTION INDUSTRIES (UK) LIMITED,13/07/2021,37.46,TRANSACTIONS-EXPENDITURE,V001725834
ROCHDALE BOROUGH COUNCIL,13/07/2021,NEIGHBOURHOODS AND ENVIRONMENT,UK TELEMATICS LTD,13/07/2021,89.25,VEHICLE MAINTENANCE,V001725835
ROCHDALE BOROUGH COUNCIL,16/07/2021,NEIGHBOURHOODS AND ENVIRONMENT,PARTSPLUS,16/07/2021,257.98,VEHICLE MAINTENANCE,V001725836
ROCHDALE BOROUGH COUNCIL,16/07/2021,NEIGHBOURHOODS AND ENVIRONMENT,BERENDSEN UK LTD,16/07/2021,461.8,"CLOTHES, UNIFORM AND LAUNDRY",V001725838
ROCHDALE BOROUGH COUNCIL,16/07/2021,NEIGHBOURHOODS AND ENVIRONMENT,MOTION INDUSTRIES (UK) LIMITED,16/07/2021,342.9,TRANSACTIONS-EXPENDITURE,V001725841
ROCHDALE BOROUGH COUNCIL,16/07/2021,NEIGHBOURHOODS AND ENVIRONMENT,MOTION INDUSTRIES (UK) LIMITED,16/07/2021,342.9,TRANSACTIONS-EXPENDITURE,V001725841
ROCHDALE BOROUGH COUNCIL,16/07/2021,NEIGHBOURHOODS AND ENVIRONMENT,CICELEY COMMERCIALS LIMITED,16/07/2021,42.5,VEHICLE MAINTENANCE,V001725842
ROCHDALE BOROUGH COUNCIL,16/07/2021,NEIGHBOURHOODS AND ENVIRONMENT,CICELEY COMMERCIALS LIMITED,16/07/2021,378,VEHICLE MAINTENANCE,V001725842
ROCHDALE BOROUGH COUNCIL,16/07/2021,NEIGHBOURHOODS AND ENVIRONMENT,QUICKCO,16/07/2021,126.26,VEHICLE MAINTENANCE,V001725843
ROCHDALE BOROUGH COUNCIL,19/07/2021,NEIGHBOURHOODS AND ENVIRONMENT,FAUN ZOELLER UK LTD,19/07/2021,340,VEHICLE MAINTENANCE,V001725844
ROCHDALE BOROUGH COUNCIL,19/07/2021,NEIGHBOURHOODS AND ENVIRONMENT,FAUN ZOELLER UK LTD,19/07/2021,15.5,VEHICLE MAINTENANCE,V001725844
ROCHDALE BOROUGH COUNCIL,09/07/2021,NEIGHBOURHOODS AND ENVIRONMENT,CAR 2000 HEYWOOD LLP,09/07/2021,960,TAXI HIRE,V001725923
ROCHDALE BOROUGH COUNCIL,19/07/2021,PUBLIC HEALTH,HOURGLASS ENVIRONMENT LTD,19/07/2021,15000,PH OTHER CONTRACTS,V001725928
ROCHDALE BOROUGH COUNCIL,20/07/2021,EARLY HELP AND SCHOOLS,SADDLEWORTH ENVIRONMENTAL EDUCATION,20/07/2021,1125,ACTIVITIES,V001725929
ROCHDALE BOROUGH COUNCIL,20/07/2021,NEIGHBOURHOODS AND ENVIRONMENT,STM ENVIRONMENTAL LTD,20/07/2021,505.92,IT MAINTENANCE,V001725930
ROCHDALE BOROUGH COUNCIL,20/07/2021,RESOURCES,STUART ROBERTSON AND ASSOCIATES LTD,20/07/2021,375,EXPENSES - GENERAL,V001725931
ROCHDALE BOROUGH COUNCIL,20/07/2021,RESOURCES,NORTH WEST ASSESSMENTS LTD,20/07/2021,195,REFERENCE BOOKS/NEWSPAPERS/PERIODICALS,V001725932
ROCHDALE BOROUGH COUNCIL,20/07/2021,RESOURCES,PHOENIX SOFTWARE LIMITED,20/07/2021,330,SOFTWARE,V001725933
ROCHDALE BOROUGH COUNCIL,20/07/2021,RESOURCES,PHOENIX SOFTWARE LIMITED,20/07/2021,330,SOFTWARE,V001725933
ROCHDALE BOROUGH COUNCIL,20/07/2021,NEIGHBOURHOODS AND ENVIRONMENT,ALLIANCE DISPOSABLES LIMITED,20/07/2021,25,CONSUMABLES,V001725938
ROCHDALE BOROUGH COUNCIL,20/07/2021,NEIGHBOURHOODS AND ENVIRONMENT,ALLIANCE DISPOSABLES LIMITED,20/07/2021,25,CONSUMABLES,V001725939
ROCHDALE BOROUGH COUNCIL,20/07/2021,NEIGHBOURHOODS AND ENVIRONMENT,ALLIANCE DISPOSABLES LIMITED,20/07/2021,54,CONSUMABLES,V001725940
ROCHDALE BOROUGH COUNCIL,20/07/2021,NEIGHBOURHOODS AND ENVIRONMENT,ALLIANCE DISPOSABLES LIMITED,20/07/2021,56,CONSUMABLES,V001725941
ROCHDALE BOROUGH COUNCIL,20/07/2021,EARLY HELP AND SCHOOLS,BURY COLLEGE,20/07/2021,61918.81,OTHER EST - SEN PROVISION,V001725942
ROCHDALE BOROUGH COUNCIL,20/07/2021,EARLY HELP AND SCHOOLS,BURY COLLEGE,20/07/2021,61918.81,OTHER EST - SEN PROVISION,V001725942
ROCHDALE BOROUGH COUNCIL,20/07/2021,CHILDREN�S SOCIAL CARE,PARADIGM PROFESSIONAL CONSULTANCY LTD,20/07/2021,1401,AGENCY STAFF,V001725943
ROCHDALE BOROUGH COUNCIL,14/07/2021,CHILDREN�S SOCIAL CARE,CHANGES SUPPORT LTD,14/07/2021,3800,YOUNG PEOPLES RENTS,V001725946
ROCHDALE BOROUGH COUNCIL,14/07/2021,CHILDREN�S SOCIAL CARE,CHANGES SUPPORT LTD,14/07/2021,236.8,YOUNGE PERSONS ALLOWANCE,V001725946
ROCHDALE BOROUGH COUNCIL,13/07/2021,ECONOMY DIRECTORATE,REACH PUBLISHING SERVICES LTD,13/07/2021,132.3,EQUIPMENT - GENERAL,V001725947
ROCHDALE BOROUGH COUNCIL,13/07/2021,ECONOMY DIRECTORATE,REACH PUBLISHING SERVICES LTD,13/07/2021,114.66,EQUIPMENT - GENERAL,V001725948
ROCHDALE BOROUGH COUNCIL,13/07/2021,NEIGHBOURHOODS AND ENVIRONMENT,ALLIANCE DISPOSABLES LIMITED,13/07/2021,85.5,CONSUMABLES,V001725949
ROCHDALE BOROUGH COUNCIL,21/07/2021,NEIGHBOURHOODS AND ENVIRONMENT,SPIN PRINT SOLUTIONS,21/07/2021,64,PRINTING & STATIONERY,V001725951
ROCHDALE BOROUGH COUNCIL,13/07/2021,NEIGHBOURHOODS AND ENVIRONMENT,SPIN PRINT SOLUTIONS,13/07/2021,122,PRINTING & STATIONERY,V001725952
ROCHDALE BOROUGH COUNCIL,13/07/2021,NEIGHBOURHOODS AND ENVIRONMENT,SPIN PRINT SOLUTIONS,13/07/2021,94,PRINTING & STATIONERY,V001725953
ROCHDALE BOROUGH COUNCIL,12/07/2021,ECONOMY DIRECTORATE,POOLE DICK ASSOCIATES,12/07/2021,1350,PROFESSIONAL FEES,V001725954
ROCHDALE BOROUGH COUNCIL,20/07/2021,PROPERTY AND HIGHWAYS,CANAL AND RIVER TRUST,20/07/2021,9541.97,SUPPLIES AND SERVICES PROVISION,V001725975
ROCHDALE BOROUGH COUNCIL,20/07/2021,EARLY HELP AND SCHOOLS,ARJO UK LTD,20/07/2021,104,SPECIFIED MAINTENANCE,V001725976
ROCHDALE BOROUGH COUNCIL,20/07/2021,ADULT CARE LCO FUNCTIONS,ROUTES HEALTHCARE NORTH LTD,20/07/2021,63.84,HOME CARE - ADULT SERVICES,V001725978
ROCHDALE BOROUGH COUNCIL,20/07/2021,ADULT CARE LCO FUNCTIONS,ROUTES HEALTHCARE NORTH LTD,20/07/2021,546.24,HOME CARE - ADULT SERVICES,V001725979
ROCHDALE BOROUGH COUNCIL,20/07/2021,EARLY HELP AND SCHOOLS,LINGVOHOUSE TRANSLATION SERVICES LTD,20/07/2021,75,TRANSLATION & INTERPRETATION,V001725980
ROCHDALE BOROUGH COUNCIL,20/07/2021,NEIGHBOURHOODS AND ENVIRONMENT,LANES GROUP PLC,20/07/2021,730,MAINTENANCE,V001725981
ROCHDALE BOROUGH COUNCIL,20/07/2021,CHILDREN�S SOCIAL CARE,BANNER GROUP LIMITED,20/07/2021,8.1,PRINTING & STATIONERY,V001725982
ROCHDALE BOROUGH COUNCIL,06/07/2021,CHILDREN�S SOCIAL CARE,SWIIS FOSTER CARE LIMITED,06/07/2021,796.11,FOSTER PARENTS BASIC ALLOWANCE,V001725985
ROCHDALE BOROUGH COUNCIL,20/07/2021,PROPERTY AND HIGHWAYS,REXEL UK LIMITED,20/07/2021,583.27,PROPERTY - WORKS ELEMENT,V001725986
ROCHDALE BOROUGH COUNCIL,20/07/2021,EARLY HELP AND SCHOOLS,APOLLO HOME HEALTHCARE,20/07/2021,573.6,HOME CARE - CHILDRENS SERVICES,V001725990
ROCHDALE BOROUGH COUNCIL,20/07/2021,CHILDREN�S SOCIAL CARE,PARADIGM PROFESSIONAL CONSULTANCY LTD,20/07/2021,1372.63,AGENCY STAFF,V001725991
ROCHDALE BOROUGH COUNCIL,20/07/2021,CHILDREN�S SOCIAL CARE,PARADIGM PROFESSIONAL CONSULTANCY LTD,20/07/2021,1387.5,AGENCY STAFF,V001725992
ROCHDALE BOROUGH COUNCIL,20/07/2021,NEIGHBOURHOODS AND ENVIRONMENT,AGE CHECK CERTIFICATION SERVICES LTD,20/07/2021,50.48,AGENCY STAFF,V001725993
ROCHDALE BOROUGH COUNCIL,20/07/2021,NEIGHBOURHOODS AND ENVIRONMENT,FORENSICS LTD,20/07/2021,983.26,TOXICOLOGY PAYMENTS,V001725994
ROCHDALE BOROUGH COUNCIL,12/07/2021,ECONOMY DIRECTORATE,POOLE DICK ASSOCIATES,12/07/2021,600,CONSULTANTS FEES,V001725997
ROCHDALE BOROUGH COUNCIL,13/07/2021,PROPERTY AND HIGHWAYS,ELECTRIC CENTER,13/07/2021,2.08,PROPERTY - WORKS ELEMENT,V001725998
ROCHDALE BOROUGH COUNCIL,13/07/2021,EARLY HELP AND SCHOOLS,YORKSHIRE PURCHASING ORGANISATION,13/07/2021,30.94,EQUIPMENT - GENERAL,V001726001
ROCHDALE BOROUGH COUNCIL,13/07/2021,ADULT CARE LCO FUNCTIONS,HOIST AND SHOWER CHAIR CO LTD,13/07/2021,2183,MINOR BUILDING WORKS,V001726003
ROCHDALE BOROUGH COUNCIL,13/07/2021,ADULT CARE LCO FUNCTIONS,UPS BUILDING AND MAINTENANCE LTD,13/07/2021,4654.75,TRANSACTIONS-EXPENDITURE,V001726004
ROCHDALE BOROUGH COUNCIL,13/07/2021,ADULT CARE LCO FUNCTIONS,UPS BUILDING AND MAINTENANCE LTD,13/07/2021,4694.15,TRANSACTIONS-EXPENDITURE,V001726005
ROCHDALE BOROUGH COUNCIL,13/07/2021,ADULT CARE LCO FUNCTIONS,HOIST AND SHOWER CHAIR CO LTD,13/07/2021,2899,MINOR BUILDING WORKS,V001726006
ROCHDALE BOROUGH COUNCIL,20/07/2021,NEIGHBOURHOODS AND ENVIRONMENT,BANNER GROUP LIMITED,20/07/2021,6.7,PRINTING & STATIONERY,V001726008
ROCHDALE BOROUGH COUNCIL,20/07/2021,NEIGHBOURHOODS AND ENVIRONMENT,BANNER GROUP LIMITED,20/07/2021,3.92,PRINTING & STATIONERY,V001726008
ROCHDALE BOROUGH COUNCIL,20/07/2021,NEIGHBOURHOODS AND ENVIRONMENT,BANNER GROUP LIMITED,20/07/2021,90.78,PRINTING & STATIONERY,V001726008
ROCHDALE BOROUGH COUNCIL,20/07/2021,NEIGHBOURHOODS AND ENVIRONMENT,BANNER GROUP LIMITED,20/07/2021,3.85,PRINTING & STATIONERY,V001726008
ROCHDALE BOROUGH COUNCIL,13/07/2021,ECONOMY DIRECTORATE,IRWELL STREET METALS,13/07/2021,169.84,REFUSE DISPOSAL,V001726010
ROCHDALE BOROUGH COUNCIL,13/07/2021,EARLY HELP AND SCHOOLS,CHEADLE ROYAL SCHOOL PRIORY,13/07/2021,1288,OTHER EST - SEN PROVISION,V001726013
ROCHDALE BOROUGH COUNCIL,13/07/2021,EARLY HELP AND SCHOOLS,CHEADLE ROYAL SCHOOL PRIORY,13/07/2021,1288,OTHER EST - SEN PROVISION,V001726014
ROCHDALE BOROUGH COUNCIL,13/07/2021,NEIGHBOURHOODS AND ENVIRONMENT,KBP SERVICES LIMITED,13/07/2021,1080,MEDICAL FEES,V001726016
ROCHDALE BOROUGH COUNCIL,13/07/2021,ECONOMY DIRECTORATE,IRWELL STREET METALS,13/07/2021,155.06,REFUSE DISPOSAL,V001726029
ROCHDALE BOROUGH COUNCIL,13/07/2021,EARLY HELP AND SCHOOLS,BELMONT SCHOOL LIMITED,13/07/2021,12771,OTHER LA`S - SEN PROVISION,V001726031
ROCHDALE BOROUGH COUNCIL,13/07/2021,EARLY HELP AND SCHOOLS,BELMONT SCHOOL LIMITED,13/07/2021,12771,OTHER LA`S - SEN PROVISION,V001726032
ROCHDALE BOROUGH COUNCIL,13/07/2021,EARLY HELP AND SCHOOLS,BELMONT SCHOOL LIMITED,13/07/2021,11880.33,OTHER LA`S - SEN PROVISION,V001726034
ROCHDALE BOROUGH COUNCIL,13/07/2021,EARLY HELP AND SCHOOLS,BELMONT SCHOOL LIMITED,13/07/2021,12771,OTHER LA`S - SEN PROVISION,V001726036
ROCHDALE BOROUGH COUNCIL,13/07/2021,EARLY HELP AND SCHOOLS,BELMONT SCHOOL LIMITED,13/07/2021,12771,OTHER LA`S - SEN PROVISION,V001726038
ROCHDALE BOROUGH COUNCIL,13/07/2021,EARLY HELP AND SCHOOLS,BELMONT SCHOOL LIMITED,13/07/2021,12224.52,OTHER LA`S - SEN PROVISION,V001726039
ROCHDALE BOROUGH COUNCIL,06/07/2021,NEIGHBOURHOODS AND ENVIRONMENT,CORONA ENERGY RETAIL 4 LIMITED,06/07/2021,57.3,GAS,V001726040
ROCHDALE BOROUGH COUNCIL,06/07/2021,NEIGHBOURHOODS AND ENVIRONMENT,CORONA ENERGY RETAIL 4 LIMITED,06/07/2021,106.4,GAS,V001726040
ROCHDALE BOROUGH COUNCIL,06/07/2021,NEIGHBOURHOODS AND ENVIRONMENT,CORONA ENERGY RETAIL 4 LIMITED,06/07/2021,565.59,GAS,V001726040
ROCHDALE BOROUGH COUNCIL,06/07/2021,NEIGHBOURHOODS AND ENVIRONMENT,CORONA ENERGY RETAIL 4 LIMITED,06/07/2021,41.56,GAS,V001726040
ROCHDALE BOROUGH COUNCIL,06/07/2021,ECONOMY DIRECTORATE,CORONA ENERGY RETAIL 4 LIMITED,06/07/2021,1743.23,GAS,V001726040
ROCHDALE BOROUGH COUNCIL,06/07/2021,ECONOMY DIRECTORATE,CORONA ENERGY RETAIL 4 LIMITED,06/07/2021,236.36,GAS,V001726040
ROCHDALE BOROUGH COUNCIL,06/07/2021,ADULT CARE LCO FUNCTIONS,CORONA ENERGY RETAIL 4 LIMITED,06/07/2021,71.7,GAS,V001726040
ROCHDALE BOROUGH COUNCIL,06/07/2021,ECONOMY DIRECTORATE,CORONA ENERGY RETAIL 4 LIMITED,06/07/2021,1979.15,GAS,V001726040
ROCHDALE BOROUGH COUNCIL,06/07/2021,NEIGHBOURHOODS AND ENVIRONMENT,CORONA ENERGY RETAIL 4 LIMITED,06/07/2021,18,GAS,V001726040
ROCHDALE BOROUGH COUNCIL,06/07/2021,CHILDREN�S SOCIAL CARE,CORONA ENERGY RETAIL 4 LIMITED,06/07/2021,305.16,GAS,V001726040
ROCHDALE BOROUGH COUNCIL,06/07/2021,NEIGHBOURHOODS AND ENVIRONMENT,CORONA ENERGY RETAIL 4 LIMITED,06/07/2021,41.31,GAS,V001726040
ROCHDALE BOROUGH COUNCIL,06/07/2021,NEIGHBOURHOODS AND ENVIRONMENT,CORONA ENERGY RETAIL 4 LIMITED,06/07/2021,47.64,GAS,V001726040
ROCHDALE BOROUGH COUNCIL,06/07/2021,PUBLIC HEALTH,CORONA ENERGY RETAIL 4 LIMITED,06/07/2021,25.71,GAS,V001726040
ROCHDALE BOROUGH COUNCIL,06/07/2021,RESOURCES,CORONA ENERGY RETAIL 4 LIMITED,06/07/2021,62.4,GAS,V001726040
ROCHDALE BOROUGH COUNCIL,06/07/2021,NEIGHBOURHOODS AND ENVIRONMENT,CORONA ENERGY RETAIL 4 LIMITED,06/07/2021,199.35,GAS,V001726040
ROCHDALE BOROUGH COUNCIL,06/07/2021,NEIGHBOURHOODS AND ENVIRONMENT,CORONA ENERGY RETAIL 4 LIMITED,06/07/2021,2733.91,GAS,V001726040
ROCHDALE BOROUGH COUNCIL,06/07/2021,NEIGHBOURHOODS AND ENVIRONMENT,CORONA ENERGY RETAIL 4 LIMITED,06/07/2021,73.14,GAS,V001726040
ROCHDALE BOROUGH COUNCIL,06/07/2021,NEIGHBOURHOODS AND ENVIRONMENT,CORONA ENERGY RETAIL 4 LIMITED,06/07/2021,506.64,GAS,V001726040
ROCHDALE BOROUGH COUNCIL,06/07/2021,NEIGHBOURHOODS AND ENVIRONMENT,CORONA ENERGY RETAIL 4 LIMITED,06/07/2021,57.44,GAS,V001726040
ROCHDALE BOROUGH COUNCIL,06/07/2021,NEIGHBOURHOODS AND ENVIRONMENT,CORONA ENERGY RETAIL 4 LIMITED,06/07/2021,77.46,GAS,V001726040
ROCHDALE BOROUGH COUNCIL,06/07/2021,NEIGHBOURHOODS AND ENVIRONMENT,CORONA ENERGY RETAIL 4 LIMITED,06/07/2021,81.63,GAS,V001726040
ROCHDALE BOROUGH COUNCIL,06/07/2021,EARLY HELP AND SCHOOLS,CORONA ENERGY RETAIL 4 LIMITED,06/07/2021,469.19,GAS,V001726040
ROCHDALE BOROUGH COUNCIL,06/07/2021,NEIGHBOURHOODS AND ENVIRONMENT,CORONA ENERGY RETAIL 4 LIMITED,06/07/2021,67.79,GAS,V001726040
ROCHDALE BOROUGH COUNCIL,06/07/2021,NEIGHBOURHOODS AND ENVIRONMENT,CORONA ENERGY RETAIL 4 LIMITED,06/07/2021,104.94,GAS,V001726040
ROCHDALE BOROUGH COUNCIL,06/07/2021,NEIGHBOURHOODS AND ENVIRONMENT,CORONA ENERGY RETAIL 4 LIMITED,06/07/2021,62.59,GAS,V001726040
ROCHDALE BOROUGH COUNCIL,06/07/2021,NEIGHBOURHOODS AND ENVIRONMENT,CORONA ENERGY RETAIL 4 LIMITED,06/07/2021,17.7,GAS,V001726040
ROCHDALE BOROUGH COUNCIL,06/07/2021,ECONOMY DIRECTORATE,CORONA ENERGY RETAIL 4 LIMITED,06/07/2021,54.8,GAS,V001726040
ROCHDALE BOROUGH COUNCIL,06/07/2021,CHILDREN�S SOCIAL CARE,CORONA ENERGY RETAIL 4 LIMITED,06/07/2021,498.56,GAS,V001726040
ROCHDALE BOROUGH COUNCIL,06/07/2021,NEIGHBOURHOODS AND ENVIRONMENT,CORONA ENERGY RETAIL 4 LIMITED,06/07/2021,128.76,GAS,V001726040
ROCHDALE BOROUGH COUNCIL,06/07/2021,ECONOMY DIRECTORATE,CORONA ENERGY RETAIL 4 LIMITED,06/07/2021,291.8,GAS,V001726040
ROCHDALE BOROUGH COUNCIL,06/07/2021,ADULT CARE LCO FUNCTIONS,CORONA ENERGY RETAIL 4 LIMITED,06/07/2021,70.79,GAS,V001726040
ROCHDALE BOROUGH COUNCIL,06/07/2021,ECONOMY DIRECTORATE,CORONA ENERGY RETAIL 4 LIMITED,06/07/2021,411.44,GAS,V001726040
ROCHDALE BOROUGH COUNCIL,06/07/2021,ECONOMY DIRECTORATE,CORONA ENERGY RETAIL 4 LIMITED,06/07/2021,503.72,GAS,V001726040
ROCHDALE BOROUGH COUNCIL,06/07/2021,ECONOMY DIRECTORATE,CORONA ENERGY RETAIL 4 LIMITED,06/07/2021,148.92,GAS,V001726040
ROCHDALE BOROUGH COUNCIL,06/07/2021,ECONOMY DIRECTORATE,CORONA ENERGY RETAIL 4 LIMITED,06/07/2021,15.6,GAS,V001726040
ROCHDALE BOROUGH COUNCIL,06/07/2021,NEIGHBOURHOODS AND ENVIRONMENT,CORONA ENERGY RETAIL 4 LIMITED,06/07/2021,171.18,GAS,V001726040
ROCHDALE BOROUGH COUNCIL,06/07/2021,NEIGHBOURHOODS AND ENVIRONMENT,CORONA ENERGY RETAIL 4 LIMITED,06/07/2021,30.1,GAS,V001726040
ROCHDALE BOROUGH COUNCIL,06/07/2021,NEIGHBOURHOODS AND ENVIRONMENT,CORONA ENERGY RETAIL 4 LIMITED,06/07/2021,148.84,GAS,V001726040
ROCHDALE BOROUGH COUNCIL,06/07/2021,EARLY HELP AND SCHOOLS,CORONA ENERGY RETAIL 4 LIMITED,06/07/2021,154.69,GAS,V001726040
ROCHDALE BOROUGH COUNCIL,06/07/2021,EARLY HELP AND SCHOOLS,CORONA ENERGY RETAIL 4 LIMITED,06/07/2021,353.41,GAS,V001726040
ROCHDALE BOROUGH COUNCIL,06/07/2021,ADULT CARE LCO FUNCTIONS,CORONA ENERGY RETAIL 4 LIMITED,06/07/2021,94.32,GAS,V001726040
ROCHDALE BOROUGH COUNCIL,06/07/2021,ECONOMY DIRECTORATE,CORONA ENERGY RETAIL 4 LIMITED,06/07/2021,446.32,GAS,V001726040
ROCHDALE BOROUGH COUNCIL,06/07/2021,NEIGHBOURHOODS AND ENVIRONMENT,CORONA ENERGY RETAIL 4 LIMITED,06/07/2021,80.93,GAS,V001726040
ROCHDALE BOROUGH COUNCIL,06/07/2021,ECONOMY DIRECTORATE,CORONA ENERGY RETAIL 4 LIMITED,06/07/2021,677.83,GAS,V001726040
ROCHDALE BOROUGH COUNCIL,06/07/2021,CHILDREN�S SOCIAL CARE,CORONA ENERGY RETAIL 4 LIMITED,06/07/2021,120.26,GAS,V001726040
ROCHDALE BOROUGH COUNCIL,06/07/2021,EARLY HELP AND SCHOOLS,CORONA ENERGY RETAIL 4 LIMITED,06/07/2021,152.22,GAS,V001726040
ROCHDALE BOROUGH COUNCIL,06/07/2021,NEIGHBOURHOODS AND ENVIRONMENT,CORONA ENERGY RETAIL 4 LIMITED,06/07/2021,22.2,GAS,V001726040
ROCHDALE BOROUGH COUNCIL,06/07/2021,ADULT CARE LCO FUNCTIONS,CORONA ENERGY RETAIL 4 LIMITED,06/07/2021,24,GAS,V001726040
ROCHDALE BOROUGH COUNCIL,06/07/2021,ECONOMY DIRECTORATE,CORONA ENERGY RETAIL 4 LIMITED,06/07/2021,81.27,GAS,V001726040
ROCHDALE BOROUGH COUNCIL,06/07/2021,ECONOMY DIRECTORATE,CORONA ENERGY RETAIL 4 LIMITED,06/07/2021,186.91,GAS,V001726040
ROCHDALE BOROUGH COUNCIL,06/07/2021,NEIGHBOURHOODS AND ENVIRONMENT,CORONA ENERGY RETAIL 4 LIMITED,06/07/2021,66.78,GAS,V001726040
ROCHDALE BOROUGH COUNCIL,06/07/2021,NEIGHBOURHOODS AND ENVIRONMENT,CORONA ENERGY RETAIL 4 LIMITED,06/07/2021,18.29,GAS,V001726040
ROCHDALE BOROUGH COUNCIL,06/07/2021,NEIGHBOURHOODS AND ENVIRONMENT,CORONA ENERGY RETAIL 4 LIMITED,06/07/2021,49.39,GAS,V001726040
ROCHDALE BOROUGH COUNCIL,06/07/2021,NEIGHBOURHOODS AND ENVIRONMENT,CORONA ENERGY RETAIL 4 LIMITED,06/07/2021,183.85,GAS,V001726040
ROCHDALE BOROUGH COUNCIL,06/07/2021,CHILDREN�S SOCIAL CARE,CORONA ENERGY RETAIL 4 LIMITED,06/07/2021,402.98,GAS,V001726040
ROCHDALE BOROUGH COUNCIL,06/07/2021,NEIGHBOURHOODS AND ENVIRONMENT,CORONA ENERGY RETAIL 4 LIMITED,06/07/2021,45.28,GAS,V001726040
ROCHDALE BOROUGH COUNCIL,06/07/2021,NEIGHBOURHOODS AND ENVIRONMENT,CORONA ENERGY RETAIL 4 LIMITED,06/07/2021,16.12,GAS,V001726040
ROCHDALE BOROUGH COUNCIL,06/07/2021,ECONOMY DIRECTORATE,CORONA ENERGY RETAIL 4 LIMITED,06/07/2021,25.59,GAS,V001726040
ROCHDALE BOROUGH COUNCIL,06/07/2021,NEIGHBOURHOODS AND ENVIRONMENT,CORONA ENERGY RETAIL 4 LIMITED,06/07/2021,62.84,GAS,V001726040
ROCHDALE BOROUGH COUNCIL,06/07/2021,NEIGHBOURHOODS AND ENVIRONMENT,CORONA ENERGY RETAIL 4 LIMITED,06/07/2021,13.95,GAS,V001726040
ROCHDALE BOROUGH COUNCIL,06/07/2021,NEIGHBOURHOODS AND ENVIRONMENT,CORONA ENERGY RETAIL 4 LIMITED,06/07/2021,273.87,GAS,V001726040
ROCHDALE BOROUGH COUNCIL,06/07/2021,NEIGHBOURHOODS AND ENVIRONMENT,CORONA ENERGY RETAIL 4 LIMITED,06/07/2021,73.2,GAS,V001726040
ROCHDALE BOROUGH COUNCIL,06/07/2021,NEIGHBOURHOODS AND ENVIRONMENT,CORONA ENERGY RETAIL 4 LIMITED,06/07/2021,66.73,GAS,V001726040
ROCHDALE BOROUGH COUNCIL,06/07/2021,NEIGHBOURHOODS AND ENVIRONMENT,CORONA ENERGY RETAIL 4 LIMITED,06/07/2021,92.45,GAS,V001726040
ROCHDALE BOROUGH COUNCIL,06/07/2021,RESOURCES,CORONA ENERGY RETAIL 4 LIMITED,06/07/2021,64.48,GAS,V001726040
ROCHDALE BOROUGH COUNCIL,06/07/2021,EARLY HELP AND SCHOOLS,CORONA ENERGY RETAIL 4 LIMITED,06/07/2021,115.25,GAS,V001726040
ROCHDALE BOROUGH COUNCIL,06/07/2021,NEIGHBOURHOODS AND ENVIRONMENT,CORONA ENERGY RETAIL 4 LIMITED,06/07/2021,795.35,GAS,V001726040
ROCHDALE BOROUGH COUNCIL,06/07/2021,NEIGHBOURHOODS AND ENVIRONMENT,CORONA ENERGY RETAIL 4 LIMITED,06/07/2021,151.84,GAS,V001726040
ROCHDALE BOROUGH COUNCIL,06/07/2021,ECONOMY DIRECTORATE,CORONA ENERGY RETAIL 4 LIMITED,06/07/2021,375.07,GAS,V001726040
ROCHDALE BOROUGH COUNCIL,06/07/2021,EARLY HELP AND SCHOOLS,CORONA ENERGY RETAIL 4 LIMITED,06/07/2021,354.84,GAS,V001726040
ROCHDALE BOROUGH COUNCIL,06/07/2021,ECONOMY DIRECTORATE,CORONA ENERGY RETAIL 4 LIMITED,06/07/2021,16.12,GAS,V001726040
ROCHDALE BOROUGH COUNCIL,06/07/2021,ECONOMY DIRECTORATE,CORONA ENERGY RETAIL 4 LIMITED,06/07/2021,915.34,GAS,V001726040
ROCHDALE BOROUGH COUNCIL,06/07/2021,ECONOMY DIRECTORATE,CORONA ENERGY RETAIL 4 LIMITED,06/07/2021,379.29,GAS,V001726040
ROCHDALE BOROUGH COUNCIL,06/07/2021,PUBLIC HEALTH,CORONA ENERGY RETAIL 4 LIMITED,06/07/2021,24.14,GAS,V001726040
ROCHDALE BOROUGH COUNCIL,06/07/2021,NEIGHBOURHOODS AND ENVIRONMENT,CORONA ENERGY RETAIL 4 LIMITED,06/07/2021,79.19,GAS,V001726040
ROCHDALE BOROUGH COUNCIL,06/07/2021,EARLY HELP AND SCHOOLS,CORONA ENERGY RETAIL 4 LIMITED,06/07/2021,338.38,GAS,V001726040
ROCHDALE BOROUGH COUNCIL,06/07/2021,NEIGHBOURHOODS AND ENVIRONMENT,CORONA ENERGY RETAIL 4 LIMITED,06/07/2021,18.6,GAS,V001726040
ROCHDALE BOROUGH COUNCIL,06/07/2021,ECONOMY DIRECTORATE,CORONA ENERGY RETAIL 4 LIMITED,06/07/2021,496.62,GAS,V001726040
ROCHDALE BOROUGH COUNCIL,06/07/2021,EARLY HELP AND SCHOOLS,CORONA ENERGY RETAIL 4 LIMITED,06/07/2021,296.21,GAS,V001726040
ROCHDALE BOROUGH COUNCIL,06/07/2021,CHILDREN�S SOCIAL CARE,CORONA ENERGY RETAIL 4 LIMITED,06/07/2021,341.77,GAS,V001726040
ROCHDALE BOROUGH COUNCIL,06/07/2021,ECONOMY DIRECTORATE,CORONA ENERGY RETAIL 4 LIMITED,06/07/2021,173.54,GAS,V001726040
ROCHDALE BOROUGH COUNCIL,06/07/2021,ECONOMY DIRECTORATE,CORONA ENERGY RETAIL 4 LIMITED,06/07/2021,624.08,GAS,V001726040
ROCHDALE BOROUGH COUNCIL,06/07/2021,NEIGHBOURHOODS AND ENVIRONMENT,CORONA ENERGY RETAIL 4 LIMITED,06/07/2021,115.12,GAS,V001726040
ROCHDALE BOROUGH COUNCIL,06/07/2021,EARLY HELP AND SCHOOLS,CORONA ENERGY RETAIL 4 LIMITED,06/07/2021,50.38,GAS,V001726040
ROCHDALE BOROUGH COUNCIL,06/07/2021,NEIGHBOURHOODS AND ENVIRONMENT,CORONA ENERGY RETAIL 4 LIMITED,06/07/2021,115.54,GAS,V001726040
ROCHDALE BOROUGH COUNCIL,06/07/2021,NEIGHBOURHOODS AND ENVIRONMENT,CORONA ENERGY RETAIL 4 LIMITED,06/07/2021,94.45,GAS,V001726040
ROCHDALE BOROUGH COUNCIL,06/07/2021,NEIGHBOURHOODS AND ENVIRONMENT,CORONA ENERGY RETAIL 4 LIMITED,06/07/2021,48.08,GAS,V001726040
ROCHDALE BOROUGH COUNCIL,06/07/2021,ECONOMY DIRECTORATE,CORONA ENERGY RETAIL 4 LIMITED,06/07/2021,1713.95,GAS,V001726040
ROCHDALE BOROUGH COUNCIL,06/07/2021,NEIGHBOURHOODS AND ENVIRONMENT,CORONA ENERGY RETAIL 4 LIMITED,06/07/2021,191.94,GAS,V001726040
ROCHDALE BOROUGH COUNCIL,06/07/2021,NEIGHBOURHOODS AND ENVIRONMENT,CORONA ENERGY RETAIL 4 LIMITED,06/07/2021,413.69,GAS,V001726040
ROCHDALE BOROUGH COUNCIL,06/07/2021,EARLY HELP AND SCHOOLS,CORONA ENERGY RETAIL 4 LIMITED,06/07/2021,149.62,GAS,V001726040
ROCHDALE BOROUGH COUNCIL,06/07/2021,NEIGHBOURHOODS AND ENVIRONMENT,CORONA ENERGY RETAIL 4 LIMITED,06/07/2021,37.71,GAS,V001726040
ROCHDALE BOROUGH COUNCIL,06/07/2021,NEIGHBOURHOODS AND ENVIRONMENT,CORONA ENERGY RETAIL 4 LIMITED,06/07/2021,156.43,GAS,V001726040
ROCHDALE BOROUGH COUNCIL,06/07/2021,CHILDREN�S SOCIAL CARE,CORONA ENERGY RETAIL 4 LIMITED,06/07/2021,110.43,GAS,V001726040
ROCHDALE BOROUGH COUNCIL,06/07/2021,ADULT CARE LCO FUNCTIONS,CORONA ENERGY RETAIL 4 LIMITED,06/07/2021,24.8,GAS,V001726040
ROCHDALE BOROUGH COUNCIL,06/07/2021,ADULT CARE LCO FUNCTIONS,CORONA ENERGY RETAIL 4 LIMITED,06/07/2021,84.06,GAS,V001726040
ROCHDALE BOROUGH COUNCIL,06/07/2021,ECONOMY DIRECTORATE,CORONA ENERGY RETAIL 4 LIMITED,06/07/2021,69.35,GAS,V001726040
ROCHDALE BOROUGH COUNCIL,06/07/2021,NEIGHBOURHOODS AND ENVIRONMENT,CORONA ENERGY RETAIL 4 LIMITED,06/07/2021,445.78,GAS,V001726040
ROCHDALE BOROUGH COUNCIL,06/07/2021,ADULT CARE LCO FUNCTIONS,CORONA ENERGY RETAIL 4 LIMITED,06/07/2021,176.68,GAS,V001726040
ROCHDALE BOROUGH COUNCIL,06/07/2021,NEIGHBOURHOODS AND ENVIRONMENT,CORONA ENERGY RETAIL 4 LIMITED,06/07/2021,76.26,GAS,V001726040
ROCHDALE BOROUGH COUNCIL,06/07/2021,ECONOMY DIRECTORATE,CORONA ENERGY RETAIL 4 LIMITED,06/07/2021,85.67,GAS,V001726040
ROCHDALE BOROUGH COUNCIL,06/07/2021,ECONOMY DIRECTORATE,CORONA ENERGY RETAIL 4 LIMITED,06/07/2021,267.4,GAS,V001726040
ROCHDALE BOROUGH COUNCIL,06/07/2021,CHILDREN�S SOCIAL CARE,CORONA ENERGY RETAIL 4 LIMITED,06/07/2021,206.39,GAS,V001726040
ROCHDALE BOROUGH COUNCIL,06/07/2021,NEIGHBOURHOODS AND ENVIRONMENT,CORONA ENERGY RETAIL 4 LIMITED,06/07/2021,31.04,GAS,V001726040
ROCHDALE BOROUGH COUNCIL,06/07/2021,ECONOMY DIRECTORATE,CORONA ENERGY RETAIL 4 LIMITED,06/07/2021,2507.82,GAS,V001726040
ROCHDALE BOROUGH COUNCIL,06/07/2021,NEIGHBOURHOODS AND ENVIRONMENT,CORONA ENERGY RETAIL 4 LIMITED,06/07/2021,69.59,GAS,V001726040
ROCHDALE BOROUGH COUNCIL,06/07/2021,NEIGHBOURHOODS AND ENVIRONMENT,CORONA ENERGY RETAIL 4 LIMITED,06/07/2021,46.86,GAS,V001726040
ROCHDALE BOROUGH COUNCIL,06/07/2021,NEIGHBOURHOODS AND ENVIRONMENT,CORONA ENERGY RETAIL 4 LIMITED,06/07/2021,655.26,GAS,V001726040
ROCHDALE BOROUGH COUNCIL,06/07/2021,NEIGHBOURHOODS AND ENVIRONMENT,CORONA ENERGY RETAIL 4 LIMITED,06/07/2021,1013.85,GAS,V001726040
ROCHDALE BOROUGH COUNCIL,06/07/2021,NEIGHBOURHOODS AND ENVIRONMENT,CORONA ENERGY RETAIL 4 LIMITED,06/07/2021,80.93,GAS,V001726040
ROCHDALE BOROUGH COUNCIL,06/07/2021,ECONOMY DIRECTORATE,CORONA ENERGY RETAIL 4 LIMITED,06/07/2021,330.32,GAS,V001726040
ROCHDALE BOROUGH COUNCIL,06/07/2021,NEIGHBOURHOODS AND ENVIRONMENT,CORONA ENERGY RETAIL 4 LIMITED,06/07/2021,1073.27,GAS,V001726040
ROCHDALE BOROUGH COUNCIL,06/07/2021,NEIGHBOURHOODS AND ENVIRONMENT,CORONA ENERGY RETAIL 4 LIMITED,06/07/2021,45.01,GAS,V001726040
ROCHDALE BOROUGH COUNCIL,06/07/2021,NEIGHBOURHOODS AND ENVIRONMENT,CORONA ENERGY RETAIL 4 LIMITED,06/07/2021,201.67,GAS,V001726040
ROCHDALE BOROUGH COUNCIL,06/07/2021,NEIGHBOURHOODS AND ENVIRONMENT,CORONA ENERGY RETAIL 4 LIMITED,06/07/2021,164.8,GAS,V001726040
ROCHDALE BOROUGH COUNCIL,06/07/2021,ECONOMY DIRECTORATE,CORONA ENERGY RETAIL 4 LIMITED,06/07/2021,24.6,GAS,V001726040
ROCHDALE BOROUGH COUNCIL,06/07/2021,NEIGHBOURHOODS AND ENVIRONMENT,CORONA ENERGY RETAIL 4 LIMITED,06/07/2021,15.6,GAS,V001726040
ROCHDALE BOROUGH COUNCIL,06/07/2021,NEIGHBOURHOODS AND ENVIRONMENT,CORONA ENERGY RETAIL 4 LIMITED,06/07/2021,1854.96,GAS,V001726040
ROCHDALE BOROUGH COUNCIL,06/07/2021,NEIGHBOURHOODS AND ENVIRONMENT,CORONA ENERGY RETAIL 4 LIMITED,06/07/2021,13.5,GAS,V001726040
ROCHDALE BOROUGH COUNCIL,06/07/2021,EARLY HELP AND SCHOOLS,CORONA ENERGY RETAIL 4 LIMITED,06/07/2021,145.46,GAS,V001726040
ROCHDALE BOROUGH COUNCIL,06/07/2021,NEIGHBOURHOODS AND ENVIRONMENT,CORONA ENERGY RETAIL 4 LIMITED,06/07/2021,272.62,GAS,V001726040
ROCHDALE BOROUGH COUNCIL,06/07/2021,NEIGHBOURHOODS AND ENVIRONMENT,CORONA ENERGY RETAIL 4 LIMITED,06/07/2021,109.87,GAS,V001726040
ROCHDALE BOROUGH COUNCIL,06/07/2021,CHILDREN�S SOCIAL CARE,CORONA ENERGY RETAIL 4 LIMITED,06/07/2021,430.72,GAS,V001726040
ROCHDALE BOROUGH COUNCIL,06/07/2021,ADULT CARE LCO FUNCTIONS,CORONA ENERGY RETAIL 4 LIMITED,06/07/2021,198.3,GAS,V001726040
ROCHDALE BOROUGH COUNCIL,06/07/2021,NEIGHBOURHOODS AND ENVIRONMENT,CORONA ENERGY RETAIL 4 LIMITED,06/07/2021,80.25,GAS,V001726040
ROCHDALE BOROUGH COUNCIL,06/07/2021,EARLY HELP AND SCHOOLS,CORONA ENERGY RETAIL 4 LIMITED,06/07/2021,64.1,GAS,V001726040
ROCHDALE BOROUGH COUNCIL,06/07/2021,NEIGHBOURHOODS AND ENVIRONMENT,CORONA ENERGY RETAIL 4 LIMITED,06/07/2021,432.97,GAS,V001726040
ROCHDALE BOROUGH COUNCIL,06/07/2021,NEIGHBOURHOODS AND ENVIRONMENT,CORONA ENERGY RETAIL 4 LIMITED,06/07/2021,348.83,GAS,V001726040
ROCHDALE BOROUGH COUNCIL,06/07/2021,CHILDREN�S SOCIAL CARE,CORONA ENERGY RETAIL 4 LIMITED,06/07/2021,211.8,GAS,V001726040
ROCHDALE BOROUGH COUNCIL,06/07/2021,ECONOMY DIRECTORATE,CORONA ENERGY RETAIL 4 LIMITED,06/07/2021,939.75,GAS,V001726040
ROCHDALE BOROUGH COUNCIL,06/07/2021,EARLY HELP AND SCHOOLS,CORONA ENERGY RETAIL 4 LIMITED,06/07/2021,365.99,GAS,V001726040
ROCHDALE BOROUGH COUNCIL,06/07/2021,ECONOMY DIRECTORATE,CORONA ENERGY RETAIL 4 LIMITED,06/07/2021,41.07,GAS,V001726040
ROCHDALE BOROUGH COUNCIL,06/07/2021,CHILDREN�S SOCIAL CARE,CORONA ENERGY RETAIL 4 LIMITED,06/07/2021,274.98,GAS,V001726040
ROCHDALE BOROUGH COUNCIL,06/07/2021,NEIGHBOURHOODS AND ENVIRONMENT,CORONA ENERGY RETAIL 4 LIMITED,06/07/2021,59.21,GAS,V001726040
ROCHDALE BOROUGH COUNCIL,06/07/2021,NEIGHBOURHOODS AND ENVIRONMENT,CORONA ENERGY RETAIL 4 LIMITED,06/07/2021,333.5,GAS,V001726040
ROCHDALE BOROUGH COUNCIL,06/07/2021,NEIGHBOURHOODS AND ENVIRONMENT,CORONA ENERGY RETAIL 4 LIMITED,06/07/2021,1923.26,GAS,V001726040
ROCHDALE BOROUGH COUNCIL,06/07/2021,NEIGHBOURHOODS AND ENVIRONMENT,CORONA ENERGY RETAIL 4 LIMITED,06/07/2021,588.04,GAS,V001726040
ROCHDALE BOROUGH COUNCIL,06/07/2021,NEIGHBOURHOODS AND ENVIRONMENT,CORONA ENERGY RETAIL 4 LIMITED,06/07/2021,2959.29,GAS,V001726040
ROCHDALE BOROUGH COUNCIL,06/07/2021,EARLY HELP AND SCHOOLS,CORONA ENERGY RETAIL 4 LIMITED,06/07/2021,127.22,GAS,V001726040
ROCHDALE BOROUGH COUNCIL,06/07/2021,NEIGHBOURHOODS AND ENVIRONMENT,CORONA ENERGY RETAIL 4 LIMITED,06/07/2021,22.94,GAS,V001726040
ROCHDALE BOROUGH COUNCIL,19/07/2021,NEIGHBOURHOODS AND ENVIRONMENT,G AND A TAYLOR HOTELS LTD,19/07/2021,4253.21,ACCOMMODATION,V001726041
ROCHDALE BOROUGH COUNCIL,19/07/2021,NEIGHBOURHOODS AND ENVIRONMENT,247 HOTEL,19/07/2021,2905.24,ACCOMMODATION,V001726042
ROCHDALE BOROUGH COUNCIL,19/07/2021,NEIGHBOURHOODS AND ENVIRONMENT,CORNERSTONE PLACE,19/07/2021,2159.29,CONDITION SURVEYS,V001726044
ROCHDALE BOROUGH COUNCIL,19/07/2021,NEIGHBOURHOODS AND ENVIRONMENT,GROUNDWORK GREATER MANCHESTER,19/07/2021,950,CAPITAL SALARIES,V001726045
ROCHDALE BOROUGH COUNCIL,13/07/2021,ADULT CARE LCO FUNCTIONS,SARA MEDICS LTD,13/07/2021,173.37,EXPENSES - GENERAL,V001726048
ROCHDALE BOROUGH COUNCIL,13/07/2021,ADULT CARE LCO FUNCTIONS,ACTION FIRST ASSESSMENTS LTD,13/07/2021,975,FEES / COMMISSION,V001726050
ROCHDALE BOROUGH COUNCIL,19/07/2021,NEIGHBOURHOODS AND ENVIRONMENT,HENDHAM HOTEL LTD,19/07/2021,1893,ACCOMMODATION,V001726052
ROCHDALE BOROUGH COUNCIL,19/07/2021,NEIGHBOURHOODS AND ENVIRONMENT,SAFENET DOMESTIC ABUSE SERVICE,19/07/2021,2136.75,ACCOMMODATION,V001726053
ROCHDALE BOROUGH COUNCIL,19/07/2021,ADULT CARE LCO FUNCTIONS,STANNAH LIFT SERVICES LTD,19/07/2021,5836,MINOR BUILDING WORKS,V001726054
ROCHDALE BOROUGH COUNCIL,20/07/2021,PUBLIC HEALTH,CPGM HEALTHCARE LTD,20/07/2021,5500,PH LCS PAYMENTS,V001726055
ROCHDALE BOROUGH COUNCIL,20/07/2021,NEIGHBOURHOODS AND ENVIRONMENT,CHARTERED INSTITUTE OF HOUSING,20/07/2021,2520,TRAINING-QUALIFICATION,V001726061
ROCHDALE BOROUGH COUNCIL,20/07/2021,NEIGHBOURHOODS AND ENVIRONMENT,CHALLEN COMMERCIAL INVESTIGATIONS LTD,20/07/2021,1350,CONDITION SURVEYS,V001726062
ROCHDALE BOROUGH COUNCIL,20/07/2021,NEIGHBOURHOODS AND ENVIRONMENT,ALLIANCE DISPOSABLES LIMITED,20/07/2021,100,CONSUMABLES,V001726064
ROCHDALE BOROUGH COUNCIL,20/07/2021,NEIGHBOURHOODS AND ENVIRONMENT,ALLIANCE DISPOSABLES LIMITED,20/07/2021,31.52,CONSUMABLES,V001726065
ROCHDALE BOROUGH COUNCIL,20/07/2021,NEIGHBOURHOODS AND ENVIRONMENT,ALLIANCE DISPOSABLES LIMITED,20/07/2021,26.6,CONSUMABLES,V001726065
ROCHDALE BOROUGH COUNCIL,20/07/2021,NEIGHBOURHOODS AND ENVIRONMENT,ALLIANCE DISPOSABLES LIMITED,20/07/2021,41,CONSUMABLES,V001726065
ROCHDALE BOROUGH COUNCIL,20/07/2021,NEIGHBOURHOODS AND ENVIRONMENT,ALLIANCE DISPOSABLES LIMITED,20/07/2021,99.75,CONSUMABLES,V001726065
ROCHDALE BOROUGH COUNCIL,20/07/2021,EARLY HELP AND SCHOOLS,DSG RETAIL LIMITED,20/07/2021,588.64,PURCHASE OF ICT HARDWARE,V001726066
ROCHDALE BOROUGH COUNCIL,20/07/2021,NEIGHBOURHOODS AND ENVIRONMENT,STHREE PARTNERSHIP LLP,20/07/2021,750,CAPITAL - STAFFING AGENCY PAYMENTS,V001726067
ROCHDALE BOROUGH COUNCIL,20/07/2021,RESOURCES,THOMSON REUTERS,20/07/2021,395,REFERENCE BOOKS/NEWSPAPERS/PERIODICALS,V001726068
ROCHDALE BOROUGH COUNCIL,20/07/2021,NEIGHBOURHOODS AND ENVIRONMENT,OTIS LTD,20/07/2021,3236.24,SPECIFIED MAINTENANCE,V001726080
ROCHDALE BOROUGH COUNCIL,20/07/2021,CHILDREN�S SOCIAL CARE,ROYAL MAIL GROUP LTD,20/07/2021,0.52,POSTAGE,V001726081
ROCHDALE BOROUGH COUNCIL,20/07/2021,CHILDREN�S SOCIAL CARE,BLUE SAILS PSYCHOLOGY,20/07/2021,4700,TRAINING,V001726084
ROCHDALE BOROUGH COUNCIL,15/07/2021,ECONOMY DIRECTORATE,GMCA,15/07/2021,1509628,PASSENGER TRANSPORT LEVY,V001726088
ROCHDALE BOROUGH COUNCIL,13/07/2021,BETTER CARE FUND POOLED BUDGET,N COMPASS,13/07/2021,40645.78,CONTRACTS,V001726089
ROCHDALE BOROUGH COUNCIL,13/07/2021,NEIGHBOURHOODS AND ENVIRONMENT,SPIN PRINT SOLUTIONS,13/07/2021,117,PRINTING & STATIONERY,V001726092
ROCHDALE BOROUGH COUNCIL,13/07/2021,EARLY HELP AND SCHOOLS,BELMONT SCHOOL LIMITED,13/07/2021,12224.52,OTHER LA`S - SEN PROVISION,V001726093
ROCHDALE BOROUGH COUNCIL,13/07/2021,EARLY HELP AND SCHOOLS,BELMONT SCHOOL LIMITED,13/07/2021,12224.52,OTHER LA`S - SEN PROVISION,V001726094
ROCHDALE BOROUGH COUNCIL,13/07/2021,EARLY HELP AND SCHOOLS,BELMONT SCHOOL LIMITED,13/07/2021,11867.79,OTHER LA`S - SEN PROVISION,V001726095
ROCHDALE BOROUGH COUNCIL,13/07/2021,EARLY HELP AND SCHOOLS,BELMONT SCHOOL LIMITED,13/07/2021,12224.52,OTHER LA`S - SEN PROVISION,V001726096
ROCHDALE BOROUGH COUNCIL,13/07/2021,EARLY HELP AND SCHOOLS,BELMONT SCHOOL LIMITED,13/07/2021,12771,OTHER LA`S - SEN PROVISION,V001726097
ROCHDALE BOROUGH COUNCIL,13/07/2021,EARLY HELP AND SCHOOLS,BELMONT SCHOOL LIMITED,13/07/2021,11631.13,OTHER LA`S - SEN PROVISION,V001726098
ROCHDALE BOROUGH COUNCIL,13/07/2021,EARLY HELP AND SCHOOLS,BELMONT SCHOOL LIMITED,13/07/2021,12224.52,OTHER LA`S - SEN PROVISION,V001726099
ROCHDALE BOROUGH COUNCIL,15/07/2021,EARLY HELP AND SCHOOLS,BELMONT SCHOOL LIMITED,15/07/2021,11867.8,OTHER LA`S - SEN PROVISION,V001726100
ROCHDALE BOROUGH COUNCIL,15/07/2021,EARLY HELP AND SCHOOLS,BELMONT SCHOOL LIMITED,15/07/2021,11863.18,OTHER LA`S - SEN PROVISION,V001726105
ROCHDALE BOROUGH COUNCIL,13/07/2021,EARLY HELP AND SCHOOLS,BELMONT SCHOOL LIMITED,13/07/2021,11867.79,OTHER LA`S - SEN PROVISION,V001726106
ROCHDALE BOROUGH COUNCIL,13/07/2021,NEIGHBOURHOODS AND ENVIRONMENT,ANIMAL WARDENS LIMITED,13/07/2021,136.9,CONTRACTED SERVICES,V001726112
ROCHDALE BOROUGH COUNCIL,16/07/2021,NEIGHBOURHOODS AND ENVIRONMENT,CASTLETON WROUGHT IRON,16/07/2021,100,EQUIPMENT - GENERAL,V001726123
ROCHDALE BOROUGH COUNCIL,13/07/2021,PROPERTY AND HIGHWAYS,ELECTRIC CENTER,13/07/2021,13.04,PROPERTY - WORKS ELEMENT,V001726125
ROCHDALE BOROUGH COUNCIL,13/07/2021,PROPERTY AND HIGHWAYS,ELECTRIC CENTER,13/07/2021,44.53,PROPERTY - WORKS ELEMENT,V001726126
ROCHDALE BOROUGH COUNCIL,16/07/2021,ADULT CARE LCO FUNCTIONS,UPS BUILDING AND MAINTENANCE LTD,16/07/2021,2722.17,TRANSACTIONS-EXPENDITURE,V001726127
ROCHDALE BOROUGH COUNCIL,16/07/2021,ADULT CARE LCO FUNCTIONS,UPS BUILDING AND MAINTENANCE LTD,16/07/2021,3976.32,TRANSACTIONS-EXPENDITURE,V001726127
ROCHDALE BOROUGH COUNCIL,13/07/2021,ADULT CARE LCO FUNCTIONS,UPS BUILDING AND MAINTENANCE LTD,13/07/2021,2786.41,MINOR BUILDING WORKS,V001726128
ROCHDALE BOROUGH COUNCIL,13/07/2021,ADULT CARE LCO FUNCTIONS,UPS BUILDING AND MAINTENANCE LTD,13/07/2021,1857.62,MINOR BUILDING WORKS,V001726128
ROCHDALE BOROUGH COUNCIL,13/07/2021,ADULT CARE LCO FUNCTIONS,UPS BUILDING AND MAINTENANCE LTD,13/07/2021,3399.03,MINOR BUILDING WORKS,V001726129
ROCHDALE BOROUGH COUNCIL,13/07/2021,ADULT CARE LCO FUNCTIONS,UPS BUILDING AND MAINTENANCE LTD,13/07/2021,2266.02,MINOR BUILDING WORKS,V001726129
ROCHDALE BOROUGH COUNCIL,13/07/2021,ADULT CARE LCO FUNCTIONS,UPS BUILDING AND MAINTENANCE LTD,13/07/2021,1351.74,MINOR BUILDING WORKS,V001726130
ROCHDALE BOROUGH COUNCIL,13/07/2021,ADULT CARE LCO FUNCTIONS,UPS BUILDING AND MAINTENANCE LTD,13/07/2021,901.16,MINOR BUILDING WORKS,V001726130
ROCHDALE BOROUGH COUNCIL,16/07/2021,NEIGHBOURHOODS AND ENVIRONMENT,COLO CARE GENERAL SURGICAL SERVICES LTD,16/07/2021,110,EXPERT REPORTS,V001726131
ROCHDALE BOROUGH COUNCIL,16/07/2021,NEIGHBOURHOODS AND ENVIRONMENT,CORONERS SOCIETY OF ENGLAND AND WALES,16/07/2021,395,SUBSCRIPTIONS,V001726132
ROCHDALE BOROUGH COUNCIL,13/07/2021,NEIGHBOURHOODS AND ENVIRONMENT,BEARING AND ENGINEERING SERVICES LIMITED,13/07/2021,58,EQUIPMENT - GENERAL,V001726134
ROCHDALE BOROUGH COUNCIL,13/07/2021,EARLY HELP AND SCHOOLS,BELMONT SCHOOL LIMITED,13/07/2021,11867.8,OTHER LA`S - SEN PROVISION,V001726135
ROCHDALE BOROUGH COUNCIL,13/07/2021,EARLY HELP AND SCHOOLS,BELMONT SCHOOL LIMITED,13/07/2021,11867.8,OTHER LA`S - SEN PROVISION,V001726136
ROCHDALE BOROUGH COUNCIL,13/07/2021,EARLY HELP AND SCHOOLS,BELMONT SCHOOL LIMITED,13/07/2021,15027.33,OTHER LA`S - SEN PROVISION,V001726138
ROCHDALE BOROUGH COUNCIL,13/07/2021,EARLY HELP AND SCHOOLS,BELMONT SCHOOL LIMITED,13/07/2021,751.17,OTHER LA`S - SEN PROVISION,V001726139
ROCHDALE BOROUGH COUNCIL,13/07/2021,EARLY HELP AND SCHOOLS,BELMONT SCHOOL LIMITED,13/07/2021,11473.35,OTHER LA`S - SEN PROVISION,V001726139
ROCHDALE BOROUGH COUNCIL,13/07/2021,EARLY HELP AND SCHOOLS,BELMONT SCHOOL LIMITED,13/07/2021,11473.35,OTHER LA`S - SEN PROVISION,V001726140
ROCHDALE BOROUGH COUNCIL,13/07/2021,EARLY HELP AND SCHOOLS,BELMONT SCHOOL LIMITED,13/07/2021,12224.52,OTHER LA`S - SEN PROVISION,V001726141
ROCHDALE BOROUGH COUNCIL,08/07/2021,NEIGHBOURHOODS AND ENVIRONMENT,HAVENPOWER,08/07/2021,2062.68,ELECTRICITY,V001726144
ROCHDALE BOROUGH COUNCIL,08/07/2021,PROPERTY AND HIGHWAYS,HAVENPOWER,08/07/2021,2721.42,ELECTRICITY,V001726144
ROCHDALE BOROUGH COUNCIL,08/07/2021,CHILDREN�S SOCIAL CARE,HAVENPOWER,08/07/2021,1346.28,ELECTRICITY,V001726144
ROCHDALE BOROUGH COUNCIL,08/07/2021,NEIGHBOURHOODS AND ENVIRONMENT,HAVENPOWER,08/07/2021,1368.28,ELECTRICITY,V001726144
ROCHDALE BOROUGH COUNCIL,08/07/2021,ECONOMY DIRECTORATE,HAVENPOWER,08/07/2021,1403.14,ELECTRICITY,V001726144
ROCHDALE BOROUGH COUNCIL,08/07/2021,ECONOMY DIRECTORATE,HAVENPOWER,08/07/2021,459.02,ELECTRICITY,V001726144
ROCHDALE BOROUGH COUNCIL,08/07/2021,NEIGHBOURHOODS AND ENVIRONMENT,HAVENPOWER,08/07/2021,228.11,ELECTRICITY,V001726144
ROCHDALE BOROUGH COUNCIL,08/07/2021,NEIGHBOURHOODS AND ENVIRONMENT,HAVENPOWER,08/07/2021,322.24,ELECTRICITY,V001726144
ROCHDALE BOROUGH COUNCIL,08/07/2021,NEIGHBOURHOODS AND ENVIRONMENT,HAVENPOWER,08/07/2021,23.38,ELECTRICITY,V001726144
ROCHDALE BOROUGH COUNCIL,08/07/2021,ECONOMY DIRECTORATE,HAVENPOWER,08/07/2021,1078.35,ELECTRICITY,V001726144
ROCHDALE BOROUGH COUNCIL,08/07/2021,ECONOMY DIRECTORATE,HAVENPOWER,08/07/2021,163.13,ELECTRICITY,V001726144
ROCHDALE BOROUGH COUNCIL,08/07/2021,ECONOMY DIRECTORATE,HAVENPOWER,08/07/2021,897.97,ELECTRICITY,V001726144
ROCHDALE BOROUGH COUNCIL,08/07/2021,NEIGHBOURHOODS AND ENVIRONMENT,HAVENPOWER,08/07/2021,281.54,ELECTRICITY,V001726144
ROCHDALE BOROUGH COUNCIL,08/07/2021,EARLY HELP AND SCHOOLS,HAVENPOWER,08/07/2021,93.31,ELECTRICITY,V001726144
ROCHDALE BOROUGH COUNCIL,08/07/2021,NEIGHBOURHOODS AND ENVIRONMENT,HAVENPOWER,08/07/2021,16743.75,ELECTRICITY,V001726144
ROCHDALE BOROUGH COUNCIL,08/07/2021,EARLY HELP AND SCHOOLS,HAVENPOWER,08/07/2021,255.29,ELECTRICITY,V001726144
ROCHDALE BOROUGH COUNCIL,08/07/2021,NEIGHBOURHOODS AND ENVIRONMENT,HAVENPOWER,08/07/2021,1680.56,ELECTRICITY,V001726144
ROCHDALE BOROUGH COUNCIL,08/07/2021,ECONOMY DIRECTORATE,HAVENPOWER,08/07/2021,2188.22,ELECTRICITY,V001726144
ROCHDALE BOROUGH COUNCIL,13/07/2021,NEIGHBOURHOODS AND ENVIRONMENT,HARROD UK LTD,13/07/2021,256.4,EQUIPMENT - GENERAL,V001726145
ROCHDALE BOROUGH COUNCIL,13/07/2021,NEIGHBOURHOODS AND ENVIRONMENT,HARROD UK LTD,13/07/2021,206.8,EQUIPMENT - GENERAL,V001726145
ROCHDALE BOROUGH COUNCIL,13/07/2021,NEIGHBOURHOODS AND ENVIRONMENT,HARROD UK LTD,13/07/2021,34.5,EQUIPMENT - GENERAL,V001726145
ROCHDALE BOROUGH COUNCIL,20/07/2021,NEIGHBOURHOODS AND ENVIRONMENT,MBL SEMINARS LTD,20/07/2021,125,TRAINING,V001726148
ROCHDALE BOROUGH COUNCIL,19/07/2021,NEIGHBOURHOODS AND ENVIRONMENT,247 HOTEL,19/07/2021,3057.14,ACCOMMODATION,V001726149
ROCHDALE BOROUGH COUNCIL,13/07/2021,NEIGHBOURHOODS AND ENVIRONMENT,BOLINDA UK LIMITED,13/07/2021,279.13,REFERENCE BOOKS/NEWSPAPERS/PERIODICALS,V001726152
ROCHDALE BOROUGH COUNCIL,09/07/2021,NEIGHBOURHOODS AND ENVIRONMENT,ASKEWS AND HOLTS LIBRARY SERVICES LTD,09/07/2021,9.99,REFERENCE BOOKS/NEWSPAPERS/PERIODICALS,V001726154
ROCHDALE BOROUGH COUNCIL,13/07/2021,NEIGHBOURHOODS AND ENVIRONMENT,ASKEWS AND HOLTS LIBRARY SERVICES LTD,13/07/2021,602.6,REFERENCE BOOKS/NEWSPAPERS/PERIODICALS,V001726155
ROCHDALE BOROUGH COUNCIL,13/07/2021,NEIGHBOURHOODS AND ENVIRONMENT,ASKEWS AND HOLTS LIBRARY SERVICES LTD,13/07/2021,78.65,REFERENCE BOOKS/NEWSPAPERS/PERIODICALS,V001726156
ROCHDALE BOROUGH COUNCIL,16/07/2021,NEIGHBOURHOODS AND ENVIRONMENT,ASKEWS AND HOLTS LIBRARY SERVICES LTD,16/07/2021,305.33,REFERENCE BOOKS/NEWSPAPERS/PERIODICALS,V001726157
ROCHDALE BOROUGH COUNCIL,13/07/2021,NEIGHBOURHOODS AND ENVIRONMENT,INITIAL WASHROOM HYGIENE,13/07/2021,70.13,EQUIPMENT - GENERAL,V001726159
ROCHDALE BOROUGH COUNCIL,23/07/2021,ADULT CARE LCO FUNCTIONS,PRO SUPPORT,23/07/2021,3429.08,PERSONAL BUDGETS - MANAGED,V001726498
ROCHDALE BOROUGH COUNCIL,23/07/2021,ADULT CARE LCO FUNCTIONS,PRO SUPPORT,23/07/2021,-24.67,PERSONAL BUDGETS - MANAGED,V001726610
ROCHDALE BOROUGH COUNCIL,23/07/2021,ADULT CARE LCO FUNCTIONS,PRO SUPPORT,23/07/2021,-3755.08,PERSONAL BUDGETS - MANAGED,V001726611
ROCHDALE BOROUGH COUNCIL,20/07/2021,NEIGHBOURHOODS AND ENVIRONMENT,LANES GROUP PLC,20/07/2021,445,MAINTENANCE,V001726865
ROCHDALE BOROUGH COUNCIL,13/07/2021,EARLY HELP AND SCHOOLS,CHEADLE ROYAL SCHOOL PRIORY,13/07/2021,920,OTHER EST - SEN PROVISION,V001726866
ROCHDALE BOROUGH COUNCIL,20/07/2021,NEIGHBOURHOODS AND ENVIRONMENT,LANES GROUP PLC,20/07/2021,825,MAINTENANCE,V001726867
ROCHDALE BOROUGH COUNCIL,13/07/2021,NEIGHBOURHOODS AND ENVIRONMENT,ALLIANCE DISPOSABLES LIMITED,13/07/2021,9.25,CLEANING EQUIPMENT,V001726868
ROCHDALE BOROUGH COUNCIL,13/07/2021,NEIGHBOURHOODS AND ENVIRONMENT,ALLIANCE DISPOSABLES LIMITED,13/07/2021,1.1,CLEANING EQUIPMENT,V001726868
ROCHDALE BOROUGH COUNCIL,13/07/2021,NEIGHBOURHOODS AND ENVIRONMENT,ALLIANCE DISPOSABLES LIMITED,13/07/2021,38.8,CLEANING EQUIPMENT,V001726868
ROCHDALE BOROUGH COUNCIL,13/07/2021,NEIGHBOURHOODS AND ENVIRONMENT,ALLIANCE DISPOSABLES LIMITED,13/07/2021,9.3,CLEANING MATERIALS,V001726868
ROCHDALE BOROUGH COUNCIL,13/07/2021,NEIGHBOURHOODS AND ENVIRONMENT,ALLIANCE DISPOSABLES LIMITED,13/07/2021,3.25,CLEANING EQUIPMENT,V001726868
ROCHDALE BOROUGH COUNCIL,13/07/2021,NEIGHBOURHOODS AND ENVIRONMENT,ALLIANCE DISPOSABLES LIMITED,13/07/2021,28.96,CLEANING MATERIALS,V001726868
ROCHDALE BOROUGH COUNCIL,13/07/2021,NEIGHBOURHOODS AND ENVIRONMENT,ALLIANCE DISPOSABLES LIMITED,13/07/2021,27.15,CLEANING MATERIALS,V001726868
ROCHDALE BOROUGH COUNCIL,20/07/2021,NEIGHBOURHOODS AND ENVIRONMENT,LANES GROUP PLC,20/07/2021,255,MAINTENANCE,V001726869
ROCHDALE BOROUGH COUNCIL,20/07/2021,NEIGHBOURHOODS AND ENVIRONMENT,LANES GROUP PLC,20/07/2021,285,MAINTENANCE,V001726869
ROCHDALE BOROUGH COUNCIL,20/07/2021,NEIGHBOURHOODS AND ENVIRONMENT,LANES GROUP PLC,20/07/2021,730,MAINTENANCE,V001726870
ROCHDALE BOROUGH COUNCIL,20/07/2021,NEIGHBOURHOODS AND ENVIRONMENT,LANES GROUP PLC,20/07/2021,540,MAINTENANCE,V001726871
ROCHDALE BOROUGH COUNCIL,13/07/2021,NEIGHBOURHOODS AND ENVIRONMENT,ALLIANCE DISPOSABLES LIMITED,13/07/2021,6.2,CLEANING MATERIALS,V001726872
ROCHDALE BOROUGH COUNCIL,13/07/2021,NEIGHBOURHOODS AND ENVIRONMENT,ALLIANCE DISPOSABLES LIMITED,13/07/2021,4.6,CLEANING MATERIALS,V001726872
ROCHDALE BOROUGH COUNCIL,13/07/2021,NEIGHBOURHOODS AND ENVIRONMENT,ALLIANCE DISPOSABLES LIMITED,13/07/2021,20.5,CONSUMABLES,V001726872
ROCHDALE BOROUGH COUNCIL,13/07/2021,NEIGHBOURHOODS AND ENVIRONMENT,ALLIANCE DISPOSABLES LIMITED,13/07/2021,4.95,CONSUMABLES,V001726872
ROCHDALE BOROUGH COUNCIL,09/07/2021,CHILDREN�S SOCIAL CARE,MEADOWS CARE LIMITED,09/07/2021,17571.43,EBD (EMOT & BEHAV DIFF) PLACEMENTS,V001726873
ROCHDALE BOROUGH COUNCIL,09/07/2021,CHILDREN�S SOCIAL CARE,MEADOWS CARE LIMITED,09/07/2021,17571.43,EBD (EMOT & BEHAV DIFF) PLACEMENTS,V001726874
ROCHDALE BOROUGH COUNCIL,09/07/2021,CHILDREN�S SOCIAL CARE,MEADOWS CARE LIMITED,09/07/2021,16714.29,EBD (EMOT & BEHAV DIFF) PLACEMENTS,V001726876
ROCHDALE BOROUGH COUNCIL,09/07/2021,CHILDREN�S SOCIAL CARE,MEADOWS CARE LIMITED,09/07/2021,17571.43,EBD (EMOT & BEHAV DIFF) PLACEMENTS,V001726877
ROCHDALE BOROUGH COUNCIL,09/07/2021,CHILDREN�S SOCIAL CARE,MEADOWS CARE LIMITED,09/07/2021,17571.43,EBD (EMOT & BEHAV DIFF) PLACEMENTS,V001726881
ROCHDALE BOROUGH COUNCIL,13/07/2021,NEIGHBOURHOODS AND ENVIRONMENT,ALLIANCE DISPOSABLES LIMITED,13/07/2021,9.35,CONSUMABLES,V001726882
ROCHDALE BOROUGH COUNCIL,13/07/2021,NEIGHBOURHOODS AND ENVIRONMENT,ALLIANCE DISPOSABLES LIMITED,13/07/2021,4.95,CONSUMABLES,V001726882
ROCHDALE BOROUGH COUNCIL,13/07/2021,NEIGHBOURHOODS AND ENVIRONMENT,ALLIANCE DISPOSABLES LIMITED,13/07/2021,19.95,CONSUMABLES,V001726882
ROCHDALE BOROUGH COUNCIL,13/07/2021,NEIGHBOURHOODS AND ENVIRONMENT,ALLIANCE DISPOSABLES LIMITED,13/07/2021,55,CONSUMABLES,V001726882
ROCHDALE BOROUGH COUNCIL,13/07/2021,NEIGHBOURHOODS AND ENVIRONMENT,ALLIANCE DISPOSABLES LIMITED,13/07/2021,9.2,CLEANING MATERIALS,V001726882
ROCHDALE BOROUGH COUNCIL,13/07/2021,NEIGHBOURHOODS AND ENVIRONMENT,ALLIANCE DISPOSABLES LIMITED,13/07/2021,2.1,CLEANING EQUIPMENT,V001726884
ROCHDALE BOROUGH COUNCIL,13/07/2021,NEIGHBOURHOODS AND ENVIRONMENT,ALLIANCE DISPOSABLES LIMITED,13/07/2021,7.4,CLEANING EQUIPMENT,V001726884
ROCHDALE BOROUGH COUNCIL,13/07/2021,NEIGHBOURHOODS AND ENVIRONMENT,ALLIANCE DISPOSABLES LIMITED,13/07/2021,7.4,CLEANING EQUIPMENT,V001726884
ROCHDALE BOROUGH COUNCIL,13/07/2021,NEIGHBOURHOODS AND ENVIRONMENT,ALLIANCE DISPOSABLES LIMITED,13/07/2021,3.3,CLEANING EQUIPMENT,V001726884
ROCHDALE BOROUGH COUNCIL,13/07/2021,NEIGHBOURHOODS AND ENVIRONMENT,ALLIANCE DISPOSABLES LIMITED,13/07/2021,12.4,CLEANING MATERIALS,V001726884
ROCHDALE BOROUGH COUNCIL,13/07/2021,NEIGHBOURHOODS AND ENVIRONMENT,ALLIANCE DISPOSABLES LIMITED,13/07/2021,19,CLEANING MATERIALS,V001726884
